Workbook

Sheet Inputs
A1: Inputs | B1: RPI Av 2014 | D1: 256
B2: RPI Dec | D2: 257.5
B3: £2014 | C3: Source | D3: 2017 | E3: =D3+1 -> 2018 | F3: =E3+1 -> 2019 | G3: 2020 | H3: 2021 | I3: 2022 | J3: 2023 | K3: 2024 | L3: 2025 | M3: 2026 | N3: 2027 | O3: 2028 | P3: 2029 | Q3: 2030 | R3: 2031 | S3: 2032 | T3: 2033 | U3: 2034 | V3: 2035 | W3: 2036 | X3: =W3+1 -> 2037 | Y3: =X3+1 -> 2038 | Z3: =Y3+1 -> 2039 | AA3: =Z3+1 -> 2040 | AB3: =AA3+1 -> 2041 | AC3: =AB3+1 -> 2042 | AD3: =AC3+1 -> 2043 | AE3: =AD3+1 -> 2044 | AF3: =AE3+1 -> 2045 | AG3: =AF3+1 -> 2046 | AH3: =AG3+1 -> 2047 | AI3: =AH3+1 -> 2048 | AJ3: =AI3+1 -> 2049 | AK3: =AJ3+1 -> 2050 | AL3: =AK3+1 -> 2051 | AM3: =AL3+1 -> 2052 | AN3: =AM3+1 -> 2053 | AO3: =AN3+1 -> 2054 | AP3: =AO3+1 -> 2055 | AQ3: =AP3+1 -> 2056 | AR3: =AQ3+1 -> 2057
E4: GD17 onward | F4: GD17 onward | G4: GD17 onward | H4: GD17 onward | I4: GD17 onward | J4: GD17 onward | K4: GD17 onward | L4: GD17 onward | M4: GD17 onward | N4: GD17 onward | O4: GD17 onward | P4: GD17 onward | Q4: GD17 onward | R4: GD17 onward | S4: GD17 onward | T4: GD17 onward | U4: GD17 onward | V4: GD17 onward | W4: GD17 onward | X4: GD17 onward | Y4: GD17 onward | Z4: GD17 onward | AA4: GD17 onward | AB4: GD17 onward | AC4: GD17 onward | AD4: GD17 onward | AE4: GD17 onward | AF4: GD17 onward | AG4: GD17 onward | AH4: GD17 onward | AI4: GD17 onward | AJ4: GD17 onward | AK4: GD17 onward | AL4: GD17 onward | AM4: GD17 onward | AN4: GD17 onward | AO4: GD17 onward | AP4: GD17 onward | AQ4: GD17 onward | AR4: GD17 onward
A6: Capex - Subtotals in £2014 Av - GD17 Submission
A8: 7 Bar Mains | D8: Mains | E8: =E20/$D$2*$D$1 -> 0 | F8: =F20/$D$2*$D$1 -> 0 | G8: 0 | H8: 0 | I8: 0 | J8: 0 | K8: 0 | L8: 0 | M8: 0 | N8: 0 | O8: 0 | P8: 0 | Q8: 0 | R8: 0 | S8: 0 | T8: 0 | U8: 0 | V8: 0 | W8: 0 | X8: 0 | Y8: 0 | Z8: 0 | AA8: 0 | AB8: 0 | AC8: 0 | AD8: 0 | AE8: 0 | AF8: 0 | AG8: 0 | AH8: 0 | AI8: 0 | AJ8: 0 | AK8: 0 | AL8: 0 | AM8: 0 | AN8: 0 | AO8: 0 | AP8: 0 | AQ8: 0 | AR8: 0
A9: LP, 2Bar or 4Bar Mains | D9: Mains | E9: =E21/$D$2*$D$1 -> 9121256.133 | F9: 7696483.473 | G9: 4610084.965 | H9: 4610084.965 | I9: 4610084.965 | J9: 161827.7903 | K9: 161827.7903 | L9: 161827.7903 | M9: 161827.7903 | N9: 161827.7903 | O9: 161827.7903 | P9: 161827.7903 | Q9: 161827.7903 | R9: 161827.7903 | S9: 161827.7903 | T9: 161827.7903 | U9: 161827.7903 | V9: 161827.7903 | W9: 161827.7903 | X9: 161827.7903 | Y9: 161827.7903 | Z9: 161827.7903 | AA9: 161827.7903 | AB9: 161827.7903 | AC9: 161827.7903 | AD9: 161827.7903 | AE9: 161827.7903 | AF9: 161827.7903 | AG9: 161827.7903 | AH9: 161827.7903 | AI9: 161827.7903 | AJ9: 161827.7903 | AK9: 161827.7903 | AL9: 161827.7903 | AM9: 161827.7903 | AN9: 161827.7903 | AO9: 161827.7903 | AP9: 161827.7903 | AQ9: 0 | AR9: 0
A10: Pressure Reduction | D10: Meters/PRS/Tele | E10: 760543.6893 | F10: 824170.8738 | G10: 802299.0291 | H10: 751596.1165 | I10: 700893.2039 | J10: 131231.068 | K10: 131231.068 | L10: 131231.068 | M10: 131231.068 | N10: 131231.068 | O10: 131231.068 | P10: 131231.068 | Q10: 131231.068 | R10: 131231.068 | S10: 131231.068 | T10: 131231.068 | U10: 131231.068 | V10: 131231.068 | W10: 131231.068 | X10: 131231.068 | Y10: 131231.068 | Z10: 131231.068 | AA10: 131231.068 | AB10: 131231.068 | AC10: 131231.068 | AD10: 131231.068 | AE10: 131231.068 | AF10: 131231.068 | AG10: 131231.068 | AH10: 131231.068 | AI10: 131231.068 | AJ10: 131231.068 | AK10: 131231.068 | AL10: 131231.068 | AM10: 131231.068 | AN10: 131231.068 | AO10: 131231.068 | AP10: 120295.1456 | AQ10: 0 | AR10: 0
A11: Domestic Services | D11: Services | E11: 451084.6692 | F11: 731244.3624 | G11: 1006168.765 | H11: 1281093.167 | I11: 1416110.174 | J11: =J23/$D$2*$D$1 -> 837198.6235 | K11: 684484.0812 | L11: 698456.2013 | M11: 712428.3213 | N11: 726400.4413 | O11: 740372.5613 | P11: 754344.6814 | Q11: 768316.8014 | R11: 782288.9214 | S11: 796261.0414 | T11: 810233.1615 | U11: 824205.2815 | V11: 838177.4015 | W11: 852149.5215 | X11: 866121.6416 | Y11: 880093.7616 | Z11: 894065.8816 | AA11: 908038.0016 | AB11: 922010.1217 | AC11: 935982.2417 | AD11: 949954.3617 | AE11: 963926.4817 | AF11: 977898.6017 | AG11: 991870.7218 | AH11: 609158.4607 | AI11: 244512.1004 | AJ11: 244512.1004 | AK11: 244512.1004 | AL11: 244512.1004 | AM11: 244512.1004 | AN11: 244512.1004 | AO11: 244512.1004 | AP11: 244512.1004 | AQ11: 0 | AR11: 0
A12: Domestic Meters | D12: Meters/PRS/Tele | E12: 95742.65023 | F12: 159618.6985 | G12: 220585.9951 | H12: 281553.2918 | I12: 311929.9512 | J12: 69114.17089 | K12: 56506.96075 | L12: 57660.41641 | M12: 58813.87207 | N12: 59967.32773 | O12: 61120.7834 | P12: 62274.23906 | Q12: 63427.69472 | R12: 64581.15038 | S12: 65734.60604 | T12: 66888.0617 | U12: 68041.51736 | V12: 69194.97302 | W12: 70348.42868 | X12: 71501.88434 | Y12: 72655.34 | Z12: 73808.79566 | AA12: 74962.25132 | AB12: 76115.70698 | AC12: 77269.16264 | AD12: 78422.6183 | AE12: 79576.07396 | AF12: 80729.52962 | AG12: 81882.98528 | AH12: 50288.52267 | AI12: 20185.47405 | AJ12: 20185.47405 | AK12: 20185.47405 | AL12: 20185.47405 | AM12: 20185.47405 | AN12: 20185.47405 | AO12: 20185.47405 | AP12: 20185.47405 | AQ12: 0 | AR12: 0
A13: I&C Services | D13: Services | E13: 327752.7978 | F13: 334079.2191 | G13: 99749.65489 | H13: 60250.44707 | I13: 90732.08764 | J13: 106880.9599 | K13: 63631.45004 | L13: 67405.51016 | M13: 70849.23716 | N13: 28821.67604 | O13: 28819.8284 | P13: 28819.8284 | Q13: 28819.8284 | R13: 28819.8284 | S13: 28819.8284 | T13: 28819.8284 | U13: 28819.8284 | V13: 28819.8284 | W13: 28819.8284 | X13: 28819.8284 | Y13: 28819.8284 | Z13: 28819.8284 | AA13: 28819.8284 | AB13: 28819.8284 | AC13: 28819.8284 | AD13: 28819.8284 | AE13: 28819.8284 | AF13: 28819.8284 | AG13: 28819.8284 | AH13: 13869.54242 | AI13: 0 | AJ13: 0 | AK13: 0 | AL13: 0 | AM13: 0 | AN13: 0 | AO13: 0 | AP13: 0 | AQ13: 0 | AR13: 0
A14: I&C Meters | D14: Meters/PRS/Tele | E14: 672517.8533 | F14: 542657.1205 | G14: 78724.21374 | H14: 45836.10997 | I14: 97450.81549 | J14: 295228.5426 | K14: 15886.673 | L14: 16743.7651 | M14: 15929.66117 | N14: 6490.205539 | O14: 6490.110587 | P14: 6490.110587 | Q14: 6490.110587 | R14: 6490.110587 | S14: 6490.110587 | T14: 6490.110587 | U14: 6490.110587 | V14: 6490.110587 | W14: 6490.110587 | X14: 6490.110587 | Y14: 6490.110587 | Z14: 6490.110587 | AA14: 6490.110587 | AB14: 6490.110587 | AC14: 6490.110587 | AD14: 6490.110587 | AE14: 6490.110587 | AF14: 6490.110587 | AG14: 6490.110587 | AH14: 3123.36572 | AI14: 0 | AJ14: 0 | AK14: 0 | AL14: 0 | AM14: 0 | AN14: 0 | AO14: 0 | AP14: =AP26/$D$2*$D$1 -> 0 | AQ14: 0 | AR14: 0
A15: Other Capex | D15: Other | E15: 467552.435 | F15: 467552.435 | G15: 467552.435 | H15: 467552.435 | I15: 467552.435 | J15: 472233.0097 | K15: 504185.7864 | L15: 472233.0097 | M15: 484452.4117 | N15: 502227.2621 | O15: 522238.0117 | P15: 541337.1029 | Q15: 560437.1883 | R15: 569953.4291 | S15: 552318.7573 | T15: 511586.4233 | U15: 512389.7165 | V15: 513193.0097 | W15: 526215.7049 | X15: 570966.6499 | Y15: 629851.2968 | Z15: 692615.4628 | AA15: 785380.6135 | AB15: 804656.8901 | AC15: 1495044.313 | AD15: 1223777.175 | AE15: 1270205.023 | AF15: 1251660.365 | AG15: 1256271.367 | AH15: 1266436.795 | AI15: 871366.4436 | AJ15: 861840.4613 | AK15: 884267.2556 | AL15: 897110.7291 | AM15: 850850.7468 | AN15: 845397.9123 | AO15: 849528.3986 | AP15: 853658.8849 | AQ15: 0 | AR15: 0
A16: TMA | D16: Mains | E16: 0 | F16: 0 | G16: 0 | H16: 0 | I16: 0 | J16: 0 | K16: 0 | L16: 0 | M16: 0 | N16: 0 | O16: 0 | P16: 0 | Q16: 0 | R16: 0 | S16: 0 | T16: 0 | U16: 0 | V16: 0 | W16: 0 | X16: 0 | Y16: 0 | Z16: 0 | AA16: 0 | AB16: 0 | AC16: 0 | AD16: 0 | AE16: 0 | AF16: 0 | AG16: 0 | AH16: 0 | AI16: 0 | AJ16: 0 | AK16: 0 | AL16: 0 | AM16: 0 | AN16: 0 | AO16: 0 | AP16: 0 | AQ16: 0 | AR16: 0
A18: Capex - Subtotals in DEC £2014 - GD17 Submission
A20: 7 Bar Mains | D20: Mains | E20: 0 | F20: 0 | G20: 0 | H20: 0 | I20: 0 | J20: 0 | K20: 0 | L20: 0 | M20: 0 | N20: 0 | O20: 0 | P20: 0 | Q20: 0 | R20: 0 | S20: 0 | T20: 0 | U20: 0 | V20: 0 | W20: 0 | X20: 0 | Y20: 0 | Z20: 0 | AA20: 0 | AB20: 0 | AC20: 0 | AD20: 0 | AE20: 0 | AF20: 0 | AG20: 0 | AH20: 0 | AI20: 0 | AJ20: 0 | AK20: 0 | AL20: 0 | AM20: 0 | AN20: 0 | AO20: 0 | AP20: 0 | AQ20: =AP20/SUM($AP$20:$AP$28)*$AQ$29 -> 0 | AR20: =AP20/SUM($AP$20:$AP$28)*$AR$29 -> 0
A21: LP, 2Bar or 4Bar Mains | D21: Mains | E21: 9174700.993 | F21: 7741580.056 | G21: 4637097.182 | H21: 4637097.182 | I21: 4637097.182 | J21: 162776 | K21: 162776 | L21: 162776 | M21: 162776 | N21: 162776 | O21: 162776 | P21: 162776 | Q21: 162776 | R21: 162776 | S21: 162776 | T21: 162776 | U21: 162776 | V21: 162776 | W21: 162776 | X21: 162776 | Y21: 162776 | Z21: 162776 | AA21: 162776 | AB21: 162776 | AC21: 162776 | AD21: 162776 | AE21: 162776 | AF21: 162776 | AG21: 162776 | AH21: 162776 | AI21: 162776 | AJ21: 162776 | AK21: 162776 | AL21: 162776 | AM21: 162776 | AN21: 162776 | AO21: 162776 | AP21: 162776 | AQ21: =AP21/SUM($AP$20:$AP$28)*$AQ$29 -> 0 | AR21: =AP21/SUM($AP$20:$AP$28)*$AR$29 -> 0
A22: Pressure Reduction | D22: Meters/PRS/Tele | E22: 765000 | F22: 829000 | G22: 807000 | H22: 756000 | I22: 705000 | J22: 132000 | K22: 132000 | L22: 132000 | M22: 132000 | N22: 132000 | O22: 132000 | P22: 132000 | Q22: 132000 | R22: 132000 | S22: 132000 | T22: 132000 | U22: 132000 | V22: 132000 | W22: 132000 | X22: 132000 | Y22: 132000 | Z22: 132000 | AA22: 132000 | AB22: 132000 | AC22: 132000 | AD22: 132000 | AE22: 132000 | AF22: 132000 | AG22: 132000 | AH22: 132000 | AI22: 132000 | AJ22: 132000 | AK22: 132000 | AL22: 132000 | AM22: 132000 | AN22: 132000 | AO22: 132000 | AP22: 121000 | AQ22: 0 | AR22: 0
A23: Domestic Services | D23: Services | E23: 453727.7435 | F23: 735528.9973 | G23: 1012064.285 | H23: 1288599.572 | I23: 1424407.694 | J23: 842104.0842 | K23: 688494.7302 | L23: 702548.7181 | M23: 716602.706 | N23: 730656.6939 | O23: 744710.6818 | P23: 758764.6697 | Q23: 772818.6576 | R23: 786872.6456 | S23: 800926.6335 | T23: 814980.6214 | U23: 829034.6093 | V23: 843088.5972 | W23: 857142.5851 | X23: 871196.5731 | Y23: 885250.561 | Z23: 899304.5489 | AA23: 913358.5368 | AB23: 927412.5247 | AC23: 941466.5126 | AD23: 955520.5005 | AE23: 969574.4885 | AF23: 983628.4764 | AG23: 997682.4643 | AH23: 612727.7486 | AI23: 245944.7885 | AJ23: 245944.7885 | AK23: 245944.7885 | AL23: 245944.7885 | AM23: 245944.7885 | AN23: 245944.7885 | AO23: 245944.7885 | AP23: 245944.7885 | AQ23: 0 | AR23: 0
A24: Domestic Meters | D24: Meters/PRS/Tele | E24: 96303.64232 | F24: 160553.9643 | G24: 221878.4912 | H24: 283203.0181 | I24: 313757.6658 | J24: 69519.13673 | K24: 56838.05623 | L24: 57998.27042 | M24: 59158.48461 | N24: 60318.6988 | O24: 61478.91299 | P24: 62639.12717 | Q24: 63799.34136 | R24: 64959.55555 | S24: 66119.76974 | T24: 67279.98393 | U24: 68440.19812 | V24: 69600.41231 | W24: 70760.6265 | X24: 71920.84069 | Y24: 73081.05488 | Z24: 74241.26907 | AA24: 75401.48326 | AB24: 76561.69745 | AC24: 77721.91164 | AD24: 78882.12583 | AE24: 80042.34002 | AF24: 81202.55421 | AG24: 82362.7684 | AH24: 50583.18198 | AI24: 20303.74832 | AJ24: 20303.74832 | AK24: 20303.74832 | AL24: 20303.74832 | AM24: 20303.74832 | AN24: 20303.74832 | AO24: 20303.74832 | AP24: 20303.74832 | AQ24: 0 | AR24: 0
A25: I&C Services | D25: Services | E25: 329673.2243 | F25: 336036.7145 | G25: 100334.1255 | H25: 60603.47704 | I25: 91263.72097 | J25: 107507.2156 | K25: 64004.29057 | L25: 67800.46432 | M25: 71264.36941 | N25: 28990.55305 | O25: 28988.69458 | P25: 28988.69458 | Q25: 28988.69458 | R25: 28988.69458 | S25: 28988.69458 | T25: 28988.69458 | U25: 28988.69458 | V25: 28988.69458 | W25: 28988.69458 | X25: 28988.69458 | Y25: 28988.69458 | Z25: 28988.69458 | AA25: 28988.69458 | AB25: 28988.69458 | AC25: 28988.69458 | AD25: 28988.69458 | AE25: 28988.69458 | AF25: 28988.69458 | AG25: 28988.69458 | AH25: 13950.80927 | AI25: 0 | AJ25: 0 | AK25: 0 | AL25: 0 | AM25: 0 | AN25: 0 | AO25: 0 | AP25: 0 | AQ25: 0 | AR25: 0
A26: I&C Meters | D26: Meters/PRS/Tele | E26: 676458.3876 | F26: 545836.752 | G26: 79185.48843 | H26: 46104.68093 | I26: 98021.81636 | J26: 296958.3974 | K26: 15979.75897 | L26: 16841.8731 | M26: 16022.99903 | N26: 6528.234087 | O26: 6528.138578 | P26: 6528.138578 | Q26: 6528.138578 | R26: 6528.138578 | S26: 6528.138578 | T26: 6528.138578 | U26: 6528.138578 | V26: 6528.138578 | W26: 6528.138578 | X26: 6528.138578 | Y26: 6528.138578 | Z26: 6528.138578 | AA26: 6528.138578 | AB26: 6528.138578 | AC26: 6528.138578 | AD26: 6528.138578 | AE26: 6528.138578 | AF26: 6528.138578 | AG26: 6528.138578 | AH26: 3141.666691 | AI26: 0 | AJ26: 0 | AK26: 0 | AL26: 0 | AM26: 0 | AN26: 0 | AO26: 0 | AP26: 0 | AQ26: 0 | AR26: 0
A27: Other Capex | D27: Other | E27: 470292 | F27: 470292 | G27: 470292 | H27: 470292 | I27: 470292 | J27: 475000 | K27: 507140 | L27: 475000 | M27: 487291 | N27: 505170 | O27: 525298 | P27: 544509 | Q27: 563721 | R27: 573293 | S27: 555555 | T27: 514584 | U27: 515392 | V27: 516200 | W27: 529299 | X27: 574312.1576 | Y27: 633541.8317 | Z27: 696673.7565 | AA27: 789982.4531 | AB27: 809371.6765 | AC27: 1503804.338 | AD27: 1230947.745 | AE27: 1277647.631 | AF27: 1258994.313 | AG27: 1263632.332 | AH27: 1273857.323 | AI27: 876472.1064 | AJ27: 866890.3077 | AK27: 889448.509 | AL27: 902367.2373 | AM27: 855836.2003 | AN27: 850351.4157 | AO27: 854506.1041 | AP27: 858660.7925 | AQ27: 0 | AR27: 0
A28: TMA | B28: exclude | D28: Mains | E28: 0 | F28: 0 | G28: 0 | H28: 0 | I28: 0 | J28: 0 | K28: 0 | L28: 0 | M28: 0 | N28: 0 | O28: 0 | P28: 0 | Q28: 0 | R28: 0 | S28: 0 | T28: 0 | U28: 0 | V28: 0 | W28: 0 | X28: 0 | Y28: 0 | Z28: 0 | AA28: 0 | AB28: 0 | AC28: 0 | AD28: 0 | AE28: 0 | AF28: 0 | AG28: 0 | AH28: 0 | AI28: 0 | AJ28: 0 | AK28: 0 | AL28: 0 | AM28: 0 | AN28: 0 | AO28: 0 | AP28: 0 | AQ28: 0 | AR28: 0
B29: 0.1
B30: include
A31: Capex - Subtotals in Av £2014 - UR Draft Det | B31: exclude
A33: 7 Bar Mains | D33: Mains | E33: 0 | F33: 0 | G33: 0 | H33: 0 | I33: 0 | J33: 0 | K33: 0 | L33: 0 | M33: 0 | N33: 0 | O33: 0 | P33: 0 | Q33: 0 | R33: 0 | S33: 0 | T33: 0 | U33: 0 | V33: 0 | W33: 0 | X33: 0 | Y33: 0 | Z33: 0 | AA33: 0 | AB33: 0 | AC33: 0 | AD33: 0 | AE33: 0 | AF33: 0 | AG33: 0 | AH33: 0 | AI33: 0 | AJ33: 0 | AK33: 0 | AL33: 0 | AM33: 0 | AN33: 0 | AO33: 0 | AP33: 0 | AQ33: 0 | AR33: 0
A34: LP, 2Bar or 4Bar Mains | D34: Mains | E34: 7155040.327 | F34: 6021885.242 | G34: 3424903.308 | H34: 3432337.301 | I34: 3400900.67 | J34: 2020649.676 | K34: 1474792.303 | L34: 1482611.292 | M34: 1145411.787 | N34: 1145871.727 | O34: 1145411.787 | P34: 306266.9274 | Q34: 305806.9869 | R34: 306266.9274 | S34: 305806.9869 | T34: 306266.9274 | U34: 305806.9869 | V34: 305806.9869 | W34: 306266.9274 | X34: 305806.9869 | Y34: 306266.9274 | Z34: 305806.9869 | AA34: 306266.9274 | AB34: 305806.9869 | AC34: 306266.9274 | AD34: 305806.9869 | AE34: 306266.9274 | AF34: 305806.9869 | AG34: =AF34 -> 305806.9869 | AH34: =AG34 -> 305806.9869 | AI34: 305806.9869 | AJ34: 305806.9869 | AK34: 305806.9869 | AL34: 305806.9869 | AM34: 305806.9869 | AN34: 305806.9869 | AO34: 305806.9869 | AP34: 305806.9869 | AQ34: 305806.9869 | AR34: 305806.9869
A35: Pressure Reduction | D35: Meters/PRS/Tele | E35: 86023.09551 | F35: 92471.81844 | G35: 89474.26673 | H35: 83313.64864 | I35: 77224.16508 | J35: 228344.4149 | K35: 27080.83009 | L35: 27080.83009 | M35: 27080.83009 | N35: 27080.83009 | O35: 27080.83009 | P35: 15208.36879 | Q35: 15208.36879 | R35: 15208.36879 | S35: 15208.36879 | T35: 15208.36879 | U35: 15208.36879 | V35: 15208.36879 | W35: 15208.36879 | X35: 133722.7652 | Y35: 101231.4643 | Z35: 107680.1872 | AA35: 104682.6355 | AB35: 98522.01742 | AC35: 92432.53387 | AD35: 243552.7837 | AE35: 42289.19888 | AF35: 42289.19888 | AG35: =AF35 -> 42289.19888 | AH35: 42289.19888 | AI35: 42289.19888 | AJ35: 42289.19888 | AK35: 42289.19888 | AL35: 42289.19888 | AM35: 42289.19888 | AN35: 42289.19888 | AO35: 42289.19888 | AP35: 42289.19888 | AQ35: 42289.19888 | AR35: 42289.19888
A36: Domestic Services | D36: Services | E36: 1683464.086 | F36: 1218307.884 | G36: 862579.6048 | H36: 875627.1026 | I36: 863813.4135 | J36: 787809.9673 | K36: 797058.442 | L36: 803405.7096 | M36: 802343.2847 | N36: 801941.465 | O36: 919482.8545 | P36: 919081.0349 | Q36: 919482.8545 | R36: 919081.0349 | S36: 919482.8545 | T36: 919813.1572 | U36: 918750.7322 | V36: 919482.8545 | W36: 918348.9126 | X36: 919482.8545 | Y36: 725068.6223 | Z36: 724738.3196 | AA36: 725068.6223 | AB36: 724738.3196 | AC36: 725068.6223 | AD36: 724738.3196 | AE36: 724336.5 | AF36: 724738.3196 | AG36: 724738.3196 | AH36: 724738.3196 | AI36: 724738.3196 | AJ36: 724738.3196 | AK36: 724738.3196 | AL36: 724738.3196 | AM36: 724738.3196 | AN36: 724738.3196 | AO36: 724738.3196 | AP36: 724738.3196 | AQ36: 724738.3196 | AR36: 724738.3196
A37: Domestic Meters | D37: Meters/PRS/Tele | E37: 438273.6619 | F37: 352824.8865 | G37: 257885.1823 | H37: 267084.3486 | I37: 261485.0662 | J37: 242444.4631 | K37: 247781.2909 | L37: 251212.1088 | M37: 250830.9068 | N37: 250830.9068 | O37: 281327.0657 | P37: 281327.0657 | Q37: 281327.0657 | R37: 281327.0657 | S37: 281327.0657 | T37: 281517.6667 | U37: 281136.4647 | V37: 281327.0657 | W37: 281136.4647 | X37: 281327.0657 | Y37: 669091.4645 | Z37: 583452.088 | AA37: 488702.9848 | AB37: 497711.5501 | AC37: 492302.8688 | AD37: 473071.6647 | AE37: 478408.4925 | AF37: 481839.3104 | AG37: 481839.3104 | AH37: 481839.3104 | AI37: 481839.3104 | AJ37: 481839.3104 | AK37: 481839.3104 | AL37: 481839.3104 | AM37: 481839.3104 | AN37: 481839.3104 | AO37: 481839.3104 | AP37: 481839.3104 | AQ37: 481839.3104 | AR37: 481839.3104
A38: I&C Services | D38: Services | E38: 246396.7948 | F38: 331905.4772 | G38: 224408.205 | H38: 190593.0784 | I38: 210575.6949 | J38: 241894.1809 | K38: 191167.0789 | L38: 169622.3097 | M38: 139300.042 | N38: 123568.9407 | O38: 107153.8784 | P38: 102024.1715 | Q38: 99060.34081 | R38: 95070.56874 | S38: 92106.73806 | T38: 90966.80318 | U38: 89142.90738 | V38: 83329.23951 | W38: 82189.30463 | X38: 81049.36975 | Y38: 76375.63676 | Z38: 71701.90376 | AA38: 68738.07308 | AB38: 64064.34009 | AC38: 62924.40521 | AD38: 61784.47033 | AE38: 60644.53546 | AF38: 58820.63965 | AG38: 58820.63965 | AH38: 58820.63965 | AI38: 58820.63965 | AJ38: 58820.63965 | AK38: 58820.63965 | AL38: 58820.63965 | AM38: 58820.63965 | AN38: 58820.63965 | AO38: 58820.63965 | AP38: 58820.63965 | AQ38: 58820.63965 | AR38: 58820.63965
A39: I&C Meters | D39: Meters/PRS/Tele | E39: 500632.3986 | F39: 474757.3044 | G39: 224467.4596 | H39: 183269.4552 | I39: 203587.0286 | J39: 236673.0084 | K39: 184573.7986 | L39: 163073.4676 | M39: 133211.3399 | N39: 119234.8079 | O39: 102124.4076 | P39: 96509.6724 | Q39: 95094.26691 | R39: 90894.93719 | S39: 89479.5317 | T39: 89288.93071 | U39: 87766.67369 | V39: 82342.53947 | W39: 82151.93848 | X39: 295427.2647 | Y39: 586352.1423 | Z39: 557316.8025 | AA39: 298490.6412 | AB39: 251602.5453 | AC39: 273946.4788 | AD39: 296290.4123 | AE39: 244000.6016 | AF39: 221275.4661 | AG39: 221275.4661 | AH39: 221275.4661 | AI39: 221275.4661 | AJ39: 221275.4661 | AK39: 221275.4661 | AL39: 221275.4661 | AM39: 221275.4661 | AN39: 221275.4661 | AO39: 221275.4661 | AP39: 221275.4661 | AQ39: 221275.4661 | AR39: 221275.4661
A40: Other Capex | D40: Other | E40: 383397.9576 | F40: 380321.6348 | G40: 378025.2218 | H40: 375742.6747 | I40: 373473.9099 | J40: 74722.23535 | K40: 74722.23535 | L40: 74722.23535 | M40: 74722.23535 | N40: 74722.23535 | O40: 74722.23535 | P40: 74722.23535 | Q40: 74722.23535 | R40: 74722.23535 | S40: 74722.23535 | T40: 74722.23535 | U40: 74722.23535 | V40: 74722.23535 | W40: 74722.23535 | X40: 74722.23535 | Y40: 74722.23535 | Z40: 74722.23535 | AA40: 74722.23535 | AB40: 74722.23535 | AC40: 74722.23535 | AD40: 74722.23535 | AE40: 74722.23535 | AF40: 74722.23535 | AG40: 74722.23535 | AH40: 74722.23535 | AI40: 74722.23535 | AJ40: 74722.23535 | AK40: 74722.23535 | AL40: 74722.23535 | AM40: 74722.23535 | AN40: 74722.23535 | AO40: 74722.23535 | AP40: 74722.23535 | AQ40: 74722.23535 | AR40: 74722.23535
A41: TMA | D41: Mains | E41: 908490.1207 | F41: 757209.8602 | G41: 451189.1118 | H41: 449855.7482 | I41: 447528.9779 | J41: 305035.3824 | K41: 246301.7824 | L41: 245563.9311 | M41: 208705.5114 | N41: 207138.2133 | O41: 217204.852 | P41: 132737.2134 | Q41: 132435.0182 | R41: 132041.8531 | S41: 131739.658 | T41: 131704.6888 | U41: 131370.0627 | V41: 130861.9081 | W41: 130680.5145 | X41: 130633.9211 | Y41: 110771.1186 | Z41: 110224.721 | AA41: 110007.3623 | AB41: 109460.9647 | AC41: 109425.9955 | AD41: 109232.9777 | AE41: 109124.7963 | AF41: 108936.5946 | AG41: 108936.5946 | AH41: 108936.5946 | AI41: 108936.5946 | AJ41: 108936.5946 | AK41: 108936.5946 | AL41: 108936.5946 | AM41: 108936.5946 | AN41: 108936.5946 | AO41: 108936.5946 | AP41: 108936.5946 | AQ41: 108936.5946 | AR41: 108936.5946
A43: Capex - Subtotals in Av £2014 - UR Final Det
A45: 7 Bar Mains | D45: Mains
A46: LP, 2Bar or 4Bar Mains | D46: Mains
A47: Pressure Reduction | D47: Meters/PRS/Tele
A48: Domestic Services | D48: Services
A49: Domestic Meters | D49: Meters/PRS/Tele
A50: I&C Services | D50: Services
A51: I&C Meters | D51: Meters/PRS/Tele
A52: Other Capex | D52: Other
A53: TMA | D53: Mains
A55: Capex
A56: Total Capex - Av £2014 - SGN GD17 Submission | E56: =SUM(E8:E16) -> 11896450.23 | F56: =SUM(F8:F16) -> 10755806.18 | G56: 7285165.058 | H56: 7497966.533 | I56: 7694753.632 | J56: 2073714.165 | K56: 1617753.81 | L56: 1605557.761 | M56: 1635532.362 | N56: 1616965.771 | O56: 1652100.154 | P56: 1686324.821 | Q56: 1720550.482 | R56: 1745192.298 | S56: 1742683.202 | T56: 1717076.444 | U56: 1733005.313 | V56: 1748934.181 | W56: 1777082.452 | X56: 1836958.973 | Y56: 1910969.196 | Z56: 1988858.937 | AA56: 2096749.664 | AB56: 2131151.516 | AC56: 2836664.515 | AD56: 2580522.953 | AE56: 2642076.376 | AF56: 2638657.294 | AG56: 2658393.871 | AH56: 2235935.545 | AI56: 1429122.876 | AJ56: 1419596.894 | AK56: 1442023.688 | AL56: 1454867.162 | AM56: 1408607.179 | AN56: 1403154.345 | AO56: 1407284.831 | AP56: 1400479.395 | AQ56: 0 | AR56: 0
A57: Total Capex - DEC £2014 | E57: =SUM(E20:E28) -> 11966155.99 | F57: =SUM(F20:F28) -> 10818828.48 | G57: 7327851.572 | H57: 7541899.93 | I57: 7739840.079 | J57: 2085864.834 | K57: 1627232.836 | L57: 1614965.326 | M57: 1645115.559 | N57: 1626440.18 | O57: 1661780.428 | P57: 1696205.63 | Q57: 1730631.832 | R57: 1755418.034 | S57: 1752894.236 | T57: 1727137.438 | U57: 1743159.641 | V57: 1759181.843 | W57: 1787495.045 | X57: 1847722.405 | Y57: 1922166.281 | Z57: 2000512.408 | AA57: 2109035.306 | AB57: 2143638.732 | AC57: 2853285.596 | AD57: 2595643.204 | AE57: 2657557.292 | AF57: 2654118.176 | AG57: 2673970.398 | AH57: 2249036.729 | AI57: 1437496.643 | AJ57: 1427914.845 | AK57: 1450473.046 | AL57: 1463391.774 | AM57: 1416860.737 | AN57: 1411375.952 | AO57: 1415530.641 | AP57: 1408685.329 | AQ57: 0 | AR57: 0
A58: Total Capex - Av £2014 - UR Draft Det | E58: =SUM(E33:E41) -> 11401718.44 | F58: =SUM(F33:F41) -> 9629684.107 | G58: 5912932.36 | H58: 5857823.358 | I58: =SUM(I33:I41) -> 5838588.926 | J58: 4137573.328 | K58: 3243477.761 | L58: 3217291.884 | M58: 2781605.937 | N58: 2750389.127 | O58: 2874507.911 | P58: 1927876.689 | Q58: 1923137.137 | R58: 1914612.991 | S58: 1909873.439 | T58: 1909488.778 | U58: 1903904.432 | V58: 1893081.198 | W58: 1890704.666 | X58: 2222172.463 | Y58: 2649879.611 | Z58: 2535643.244 | AA58: 2176679.482 | AB58: 2126628.959 | AC58: 2137090.067 | AD58: 2289199.851 | AE58: 2039793.287 | AF58: 2018428.751 | AG58: 2018428.751 | AH58: 2018428.751 | AI58: 2018428.751 | AJ58: 2018428.751 | AK58: 2018428.751 | AL58: 2018428.751 | AM58: 2018428.751 | AN58: 2018428.751 | AO58: 2018428.751 | AP58: 2018428.751 | AQ58: 2018428.751 | AR58: 2018428.751
A59: Total Capex - Av £2014 - UR Final Det | E59: =SUM(E45:E53) -> 0 | F59: =SUM(F45:F53) -> 0 | G59: 0 | H59: 0 | I59: 0 | J59: 0 | K59: 0 | L59: 0 | M59: 0 | N59: 0 | O59: 0 | P59: 0 | Q59: 0 | R59: 0 | S59: 0 | T59: 0 | U59: 0 | V59: 0 | W59: 0 | X59: 0 | Y59: 0 | Z59: 0 | AA59: 0 | AB59: 0 | AC59: 0 | AD59: 0 | AE59: 0 | AF59: 0 | AG59: 0 | AH59: 0 | AI59: 0 | AJ59: 0 | AK59: 0 | AL59: 0 | AM59: 0 | AN59: 0 | AO59: 0 | AP59: 0 | AQ59: 0 | AR59: 0
A61: Opex
A62: Total Opex - Av £2014 - SGN GD17 Submission | E62: =E63/$D$2*$D$1 -> 2554994.668 | F62: =F63/$D$2*$D$1 -> 2801997.795 | G62: 2330810.608 | H62: 2486761.482 | I62: 2795679.425 | J62: 2890493.201 | K62: 2895463.08 | L62: 2895463.08 | M62: 2895463.08 | N62: =N63/$D$2*$D$1 -> 1801870.848 | O62: 1780735.306 | P62: 1780735.306 | Q62: 1780735.306 | R62: 1780735.306 | S62: 1780735.306 | T62: 1780735.306 | U62: 1780735.306 | V62: 1780735.306 | W62: 1780735.306 | X62: 1780735.306 | Y62: 1780735.306 | Z62: 1780735.306 | AA62: 1780735.306 | AB62: 1780735.306 | AC62: 1780735.306 | AD62: 1780735.306 | AE62: 1780735.306 | AF62: 1780735.306 | AG62: 1780735.306 | AH62: 1780735.306 | AI62: 1780735.306 | AJ62: 1780735.306 | AK62: 1780735.306 | AL62: 1780735.306 | AM62: 1780735.306 | AN62: 1780735.306 | AO62: 1780735.306 | AP62: 1780735.306 | AQ62: =AQ63/$D$2*$D$1 -> 1780735.306 | AR62: 1780735.306
A63: Total Opex - DEC £2014 | E63: 2569965.34 | F63: 2818415.751 | G63: 2344467.701 | H63: 2501332.35 | I63: 2812060.359 | J63: 2907429.685 | K63: 2912428.684 | L63: 2912428.684 | M63: 2912428.684 | N63: 1812428.685 | O63: 1791169.302 | P63: 1791169.302 | Q63: 1791169.302 | R63: 1791169.302 | S63: 1791169.302 | T63: 1791169.302 | U63: 1791169.302 | V63: 1791169.302 | W63: 1791169.302 | X63: 1791169.302 | Y63: 1791169.302 | Z63: 1791169.302 | AA63: 1791169.302 | AB63: 1791169.302 | AC63: 1791169.302 | AD63: 1791169.302 | AE63: 1791169.302 | AF63: 1791169.302 | AG63: 1791169.302 | AH63: 1791169.302 | AI63: 1791169.302 | AJ63: 1791169.302 | AK63: 1791169.302 | AL63: 1791169.302 | AM63: 1791169.302 | AN63: 1791169.302 | AO63: 1791169.302 | AP63: 1791169.302 | AQ63: =AP63 -> 1791169.302 | AR63: =AP63 -> 1791169.302
A64: Total Opex - Av £2014 - UR Draft Det - Using Bid Opex to 2026 and continue trend from 2027 onwards | E64: 2129200.608 | F64: 1580319.757 | G64: 1387190.587 | H64: 1431612.075 | I64: 1494512.306 | J64: 1518705.91 | K64: 1544593.065 | L64: 1572292.322 | M64: 1601930.527 | N64: 1633643.406 | O64: 1667576.186 | P64: 1703884.262 | Q64: 1742733.902 | R64: 1784303.017 | S64: 1828781.971 | T64: 1876374.451 | U64: 1927298.404 | V64: 1981787.035 | W64: 2040089.869 | X64: 2102473.902 | Y64: 2169224.818 | Z64: 2240648.297 | AA64: 2317071.42 | AB64: 2398844.162 | AC64: 2486340.995 | AD64: 2579962.607 | AE64: 2680137.732 | AF64: 2787325.115 | AG64: 2902015.615 | AH64: 3024734.45 | AI64: 3156043.604 | AJ64: 3296544.398 | AK64: 3446880.248 | AL64: 3607739.608 | AM64: 3779859.123 | AN64: 3964027.003 | AO64: 4161086.636 | AP64: 4371940.442 | AQ64: 4597554.015 | AR64: 4838960.539
A65: Total Opex - Av £2014 - UR Final Det
A67: Volumes (Therms)
A68: Submission | B68: Categories for modelling purposes
A69: Domestic | B69: P1 | E69: 193129.3678 | F69: 469967.5538 | G69: 874426.8124 | H69: 1403599.712 | I69: 1998914.17 | J69: 2486887.676 | K69: 2741882.197 | L69: 3002121.978 | M69: 3267607.019 | N69: 3538337.319 | O69: 3814312.879 | P69: 4095533.699 | Q69: 4381999.779 | R69: 4673711.119 | S69: 4970667.718 | T69: 5272869.577 | U69: 5580316.696 | V69: 5893009.075 | W69: 6210946.713 | X69: 6534129.611 | Y69: 6862557.769 | Z69: 7196231.187 | AA69: 7535149.865 | AB69: 7879313.802 | AC69: 8228723 | AD69: 8583377.457 | AE69: 8943277.173 | AF69: 9308422.15 | AG69: 9678812.386 | AH69: 10013117.68 | AI69: 10104909.73 | AJ69: 10196701.78 | AK69: 10288493.82 | AL69: 10380285.87 | AM69: 10472077.92 | AN69: 10563869.96 | AO69: 10655662.01 | AP69: 10747454.06 | AQ69: 10839246.1 | AR69: 10873668.12
A70: Small I&C (Tarriff) | B70: P2 | E70: 5560.543789 | F70: 14054.6243 | G70: 26730.86111 | H70: 44489.21937 | I70: 64712.51242 | J70: 90043.52729 | K70: 115022.4825 | L70: 142240.3528 | M70: 172171.6638 | N70: 192015.2602 | O70: 204694.7657 | P70: 217374.2711 | Q70: 230053.7765 | R70: 242733.2819 | S70: 255412.7874 | T70: 268092.2928 | U70: 280771.7982 | V70: 293451.3036 | W70: 306130.8091 | X70: 318810.3145 | Y70: 331489.8199 | Z70: 344169.3253 | AA70: 356848.8307 | AB70: 369528.3362 | AC70: 382207.8416 | AD70: 394887.347 | AE70: 407566.8524 | AF70: 420246.3579 | AG70: 432925.8633 | AH70: 443782.6898 | AI70: 443782.6898 | AJ70: 443782.6898 | AK70: 443782.6898 | AL70: 443782.6898 | AM70: 443782.6898 | AN70: 443782.6898 | AO70: 443782.6898 | AP70: 443782.6898 | AQ70: 443782.6898 | AR70: 443782.6898
A71: Medium I&C (Tarriff) | B71: P3 | E71: 38297.93103 | F71: 117303.9127 | G71: 187178.5193 | H71: 240284.7748 | I71: 300430.5525 | J71: 377501.3259 | K71: 453552.5109 | L71: 536325.3939 | M71: 627178.0363 | N71: 688117.2328 | O71: 727847.1341 | P71: 767608.9591 | Q71: 807403.2384 | R71: 847230.5113 | S71: 887091.3264 | T71: 926986.2411 | U71: 966915.8223 | V71: 1004725.174 | W71: 1042534.525 | X71: 1080343.876 | Y71: 1118153.227 | Z71: 1155962.579 | AA71: 1193771.93 | AB71: 1231581.281 | AC71: 1269390.632 | AD71: 1307199.984 | AE71: 1345009.335 | AF71: 1382818.686 | AG71: 1420628.038 | AH71: 1453002.295 | AI71: 1453002.295 | AJ71: 1453002.295 | AK71: 1453002.295 | AL71: 1453002.295 | AM71: 1453002.295 | AN71: 1453002.295 | AO71: 1453002.295 | AP71: 1453002.295 | AQ71: 1453002.295 | AR71: 1452998.929
A72: Large I&C (Tarriff) | B72: P4 | E72: 208000 | F72: 786000 | G72: 1384000 | H72: 1548000 | I72: 1548000 | J72: 1638794.848 | K72: 1707375.903 | L72: 1773581.293 | M72: 1820152.598 | N72: 1850407.382 | O72: 1881165.065 | P72: 1912434.005 | Q72: 1944222.7 | R72: 1976539.792 | S72: 2009394.061 | T72: 2042794.438 | U72: 2076750 | V72: 2076750 | W72: 2076750 | X72: 2076750 | Y72: 2076750 | Z72: 2076750 | AA72: 2076750 | AB72: 2076750 | AC72: 2076750 | AD72: 2076750 | AE72: 2076750 | AF72: 2076750 | AG72: 2076750 | AH72: 2076750 | AI72: 2076750 | AJ72: 2076750 | AK72: 2076750 | AL72: 2076750 | AM72: 2076750 | AN72: 2076750 | AO72: 2076750 | AP72: 2076750 | AQ72: 2076750 | AR72: 2076750
A73: Contract I&C (Contract) | B73: P5 | E73: 6683200 | F73: 9945836.8 | G73: 11620236.8 | H73: 11620236.8 | I73: 11785836.8 | J73: 15417925.07 | K73: 15674203.57 | L73: 15934741.97 | M73: 16199611.07 | N73: 16468882.85 | O73: 16742630.49 | P73: 17020928.41 | Q73: 17303852.22 | R73: 17591478.82 | S73: 17883886.38 | T73: 18181154.38 | U73: 18483363.6 | V73: 18483363.6 | W73: 18483363.6 | X73: 18483363.6 | Y73: 18483363.6 | Z73: 18483363.6 | AA73: 18483363.6 | AB73: 18483363.6 | AC73: 18483363.6 | AD73: 18483363.6 | AE73: 18483363.6 | AF73: 18483363.6 | AG73: 18483363.6 | AH73: 18483363.6 | AI73: 18483363.6 | AJ73: 18483363.6 | AK73: 18483363.6 | AL73: 18483363.6 | AM73: 18483363.6 | AN73: 18483363.6 | AO73: 18483363.6 | AP73: 18483363.6 | AQ73: 18483363.6 | AR73: 18483363.6
A74: Super Contract I&C (Contract) | B74: P6 | E74: 10560000 | F74: 10560000 | G74: 10560000 | H74: 10560000 | I74: 10560000 | J74: 10735529.52 | K74: 10913976.72 | L74: 11095390.08 | M74: 11279818.92 | N74: 11467313.35 | O74: 11657924.34 | P74: 11851703.69 | Q74: 12048704.06 | R74: 12248978.99 | S74: 12452582.91 | T74: 12659571.17 | U74: 12870000 | V74: 12870000 | W74: 12870000 | X74: 12870000 | Y74: 12870000 | Z74: 12870000 | AA74: 12870000 | AB74: 12870000 | AC74: 12870000 | AD74: 12870000 | AE74: 12870000 | AF74: 12870000 | AG74: 12870000 | AH74: 12870000 | AI74: 12870000 | AJ74: 12870000 | AK74: 12870000 | AL74: 12870000 | AM74: 12870000 | AN74: 12870000 | AO74: 12870000 | AP74: 12870000 | AQ74: 12870000 | AR74: 12870000
A75: Total Volume (Therms) - SGN GD17 Submission | E75: =SUM(E69:E74) -> 17688187.84 | F75: =SUM(F69:F74) -> 21893162.89 | G75: 24652572.99 | H75: 25416610.51 | I75: 26257894.03 | J75: 30746681.97 | K75: 31606013.39 | L75: 32484401.07 | M75: 33366539.3 | N75: 34205073.4 | O75: 35028574.68 | P75: 35865583.03 | Q75: 36716235.77 | R75: 37580672.51 | S75: 38459035.19 | T75: 39351468.1 | U75: 40258117.92 | V75: 40621299.15 | W75: 40989725.65 | X75: 41363397.4 | Y75: 41742314.42 | Z75: 42126476.69 | AA75: 42515884.23 | AB75: 42910537.02 | AC75: 43310435.07 | AD75: 43715578.39 | AE75: 44125966.96 | AF75: 44541600.79 | AG75: 44962479.89 | AH75: 45340016.27 | AI75: 45431808.32 | AJ75: 45523600.36 | AK75: 45615392.41 | AL75: 45707184.45 | AM75: 45798976.5 | AN75: 45890768.55 | AO75: 45982560.59 | AP75: 46074352.64 | AQ75: 46166144.69 | AR75: 46200563.34
A76: GD17 DD - using Bid Volumes
A77: Domestic | B77: P1 | E77: 895511.8974 | F77: 1622047.36 | G77: 2155910.317 | H77: 2713072.766 | I77: 3261142.73 | J77: 3744677.933 | K77: 4238718.84 | L77: 4739018.311 | M77: 5239317.781 | N77: 5739617.251 | O77: 6300473.522 | P77: 6861329.792 | Q77: 7422186.062 | R77: 7983042.333 | S77: 8543898.603 | T77: 9104754.874 | U77: 9665611.144 | V77: 10226467.41 | W77: 10787323.68 | X77: 11348179.96 | Y77: 11808108.23 | Z77: 12268036.5 | AA77: 12727964.77 | AB77: 13187893.04 | AC77: 13647821.31 | AD77: 14107749.58 | AE77: 14567677.85 | AF77: 15027606.12 | AG77: 15487534.39 | AH77: 15947462.66 | AI77: 16100015.99 | AJ77: 16252569.33 | AK77: 16405122.66 | AL77: 16557676 | AM77: 16710229.33 | AN77: 16862782.67 | AO77: 17015336 | AP77: 17015336 | AQ77: 17015336 | AR77: =AQ77 -> 17015336
A78: Small I&C (Tarriff) | B78: P2 | E78: 2058.399333 | F78: 39324.69658 | G78: 125797.5849 | H78: 204435.7998 | I78: 272559.2841 | J78: 351721.6212 | K78: 451281.7569 | L78: 551932.642 | M78: 660840.0183 | N78: 779471.8636 | O78: 871992.1933 | P78: 924404.7376 | Q78: 976848.943 | R78: 1029325.603 | S78: 1081835.256 | T78: 1134378.451 | U78: 1186955.746 | V78: 1239567.708 | W78: 1290059.44 | X78: 1340551.171 | Y78: 1391042.903 | Z78: 1441534.635 | AA78: 1492026.366 | AB78: 1542518.098 | AC78: 1593009.83 | AD78: 1643501.561 | AE78: 1693993.293 | AF78: 1744485.025 | AG78: 1794976.756 | AH78: 1845468.488 | AI78: 1891985.28 | AJ78: 1896885.608 | AK78: 1896885.608 | AL78: 1896885.608 | AM78: 1896885.608 | AN78: 1896885.608 | AO78: 1896885.608 | AP78: 1896885.608 | AQ78: 1896885.608 | AR78: =AQ78 -> 1896885.608
A79: Medium I&C (Tarriff) | B79: P3
A80: Large I&C (Tarriff) | B80: P4 | E80: 953200 | F80: 1906400 | G80: 1906400 | H80: 1906400 | I80: 1906400 | J80: 1906400 | K80: 1906400 | L80: 1906400 | M80: 1906400 | N80: 1906400 | O80: 1906400 | P80: 1906400 | Q80: 1906400 | R80: 1906400 | S80: 1906400 | T80: 1906400 | U80: 1906400 | V80: 1906400 | W80: 1906400 | X80: 1906400 | Y80: 1906400 | Z80: 1906400 | AA80: 1906400 | AB80: 1906400 | AC80: 1906400 | AD80: 1906400 | AE80: 1906400 | AF80: 1906400 | AG80: 1906400 | AH80: 1906400 | AI80: 1906400 | AJ80: 1906400 | AK80: 1906400 | AL80: 1906400 | AM80: 1906400 | AN80: 1906400 | AO80: 1906400 | AP80: 1906400 | AQ80: 1906400 | AR80: 1906400
A81: Contract I&C (Contract) | B81: P5 | E81: 23022387.33 | F81: 30696500 | G81: 30696500 | H81: 30696500 | I81: 30696500 | J81: 30696500 | K81: 30696500 | L81: 30696500 | M81: 30696500 | N81: 30696500 | O81: 30696500 | P81: 30696500 | Q81: 30696500 | R81: 30696500 | S81: 30696500 | T81: 30696500 | U81: 30696500 | V81: 30696500 | W81: 16836500 | X81: 16836500 | Y81: 16836500 | Z81: 16836500 | AA81: 16836500 | AB81: 16836500 | AC81: 16836500 | AD81: 16836500 | AE81: 16836500 | AF81: 16836500 | AG81: 16836500 | AH81: 16836500 | AI81: 16836500 | AJ81: 16836500 | AK81: 16836500 | AL81: 16836500 | AM81: 16836500 | AN81: 16836500 | AO81: 16836500 | AP81: 16836500 | AQ81: 16836500 | AR81: 16836500
A82: Super Contract I&C (Contract) | B82: P6
A83: Total Volume (Therms) - UR Draft Det | E83: =SUM(E77:E82) -> 24873157.63 | F83: =SUM(F77:F82) -> 34264272.06 | G83: 34884607.9 | H83: 35520408.57 | I83: 36136602.01 | J83: 36699299.55 | K83: 37292900.6 | L83: 37893850.95 | M83: 38503057.8 | N83: 39121989.11 | O83: 39775365.72 | P83: 40388634.53 | Q83: 41001935.01 | R83: 41615267.94 | S83: 42228633.86 | T83: 42842033.32 | U83: 43455466.89 | V83: 44068935.12 | W83: 30820283.12 | X83: 31431631.13 | Y83: 31942051.13 | Z83: 32452471.13 | AA83: 32962891.13 | AB83: 33473311.13 | AC83: 33983731.14 | AD83: 34494151.14 | AE83: 35004571.14 | AF83: 35514991.14 | AG83: 36025411.14 | AH83: 36535831.15 | AI83: 36734901.27 | AJ83: 36892354.94 | AK83: 37044908.27 | AL83: 37197461.6 | AM83: 37350014.94 | AN83: 37502568.27 | AO83: 37655121.61 | AP83: 37655121.61 | AQ83: 37655121.61 | AR83: 37655121.61
A84: GD17 FD
A85: Domestic | B85: P1
A86: Small I&C (Tarriff) | B86: P2
A87: Medium I&C (Tarriff) | B87: P3
A88: Large I&C (Tarriff) | B88: P4
A89: Contract I&C (Contract) | B89: P5
A90: Super Contract I&C (Contract) | B90: P6
A91: Total Volume (Therms) - UR Final Det | E91: =SUM(E85:E90) -> 0 | F91: =SUM(F85:F90) -> 0 | G91: 0 | H91: 0 | I91: 0 | J91: 0 | K91: 0 | L91: 0 | M91: 0 | N91: 0 | O91: 0 | P91: 0 | Q91: 0 | R91: 0 | S91: 0 | T91: 0 | U91: 0 | V91: 0 | W91: 0 | X91: 0 | Y91: 0 | Z91: 0 | AA91: 0 | AB91: 0 | AC91: 0 | AD91: 0 | AE91: 0 | AF91: 0 | AG91: 0 | AH91: 0 | AI91: 0 | AJ91: 0 | AK91: 0 | AL91: 0 | AM91: 0 | AN91: 0 | AO91: 0 | AP91: 0 | AQ91: 0 | AR91: 0
A94: Opening Asset Value (£2014) | B94: Capex | C94: PI's model V7 | D94: 6828297.881
B95: Opex | C95: PI's model V7 | D95: 1389157.867
B96: Revenue | D96: 960907.8083
B97: Total OAV | D97: =D94+D95-D96 -> 7256547.94
A100: INPUTS BASIS
A101: SELECT BASIS OF MODELLING INPUTS | B101: UR Draft Det
B102: FE GD17 Submission
B103: UR Draft Det
B104: UR Final Det

Sheet DAV
A1: Condition 2.3.17 Calculation of DAV
D6: Av £2014 | E6: 2018 | F6: =E6+1 -> 2019 | G6: 2020 | H6: 2021 | I6: 2022 | J6: 2023 | K6: 2024 | L6: 2025 | M6: 2026 | N6: 2027 | O6: 2028 | P6: 2029 | Q6: 2030 | R6: 2031 | S6: 2032 | T6: 2033 | U6: 2034 | V6: 2035 | W6: 2036 | X6: 2037 | Y6: 2038 | Z6: 2039 | AA6: 2040 | AB6: 2041 | AC6: 2042 | AD6: 2043 | AE6: 2044 | AF6: 2045 | AG6: =AF6+1 -> 2046 | AH6: =AG6+1 -> 2047 | AI6: =AH6+1 -> 2048 | AJ6: =AI6+1 -> 2049 | AK6: =AJ6+1 -> 2050 | AL6: =AK6+1 -> 2051 | AM6: =AL6+1 -> 2052 | AN6: =AM6+1 -> 2053 | AO6: =AN6+1 -> 2054 | AP6: =AO6+1 -> 2055 | AQ6: =AP6+1 -> 2056 | AR6: =AQ6+1 -> 2057
A8: Annual Capex
A9: Mains | E9: =IF(Inputs!$B$101=Inputs!$B$102,SUM(Inputs!E8:E9,Inputs!E16),IF(Inputs!$B$101=Inputs!$B$103,SUM(Inputs!E33:E34,Inputs!E41),IF(Inputs!$B$101=Inputs!$B$104,SUM(Inputs!E45:E46,Inputs!E53),0))) -> 8063530.447 | F9: =IF(Inputs!$B$101=Inputs!$B$102,SUM(Inputs!F8:F9,Inputs!F16),IF(Inputs!$B$101=Inputs!$B$103,SUM(Inputs!F33:F34,Inputs!F41),IF(Inputs!$B$101=Inputs!$B$104,SUM(Inputs!F45:F46,Inputs!F53),0))) -> 6779095.102 | G9: =IF(Inputs!$B$101=Inputs!$B$102,SUM(Inputs!G8:G9,Inputs!G16),IF(Inputs!$B$101=Inputs!$B$103,SUM(Inputs!G33:G34,Inputs!G41),IF(Inputs!$B$101=Inputs!$B$104,SUM(Inputs!G45:G46,Inputs!G53),0))) -> 3876092.42 | H9: =IF(Inputs!$B$101=Inputs!$B$102,SUM(Inputs!H8:H9,Inputs!H16),IF(Inputs!$B$101=Inputs!$B$103,SUM(Inputs!H33:H34,Inputs!H41),IF(Inputs!$B$101=Inputs!$B$104,SUM(Inputs!H45:H46,Inputs!H53),0))) -> 3882193.05 | I9: =IF(Inputs!$B$101=Inputs!$B$102,SUM(Inputs!I8:I9,Inputs!I16),IF(Inputs!$B$101=Inputs!$B$103,SUM(Inputs!I33:I34,Inputs!I41),IF(Inputs!$B$101=Inputs!$B$104,SUM(Inputs!I45:I46,Inputs!I53),0))) -> 3848429.648 | J9: =IF(Inputs!$B$101=Inputs!$B$102,SUM(Inputs!J8:J9,Inputs!J16),IF(Inputs!$B$101=Inputs!$B$103,SUM(Inputs!J33:J34,Inputs!J41),IF(Inputs!$B$101=Inputs!$B$104,SUM(Inputs!J45:J46,Inputs!J53),0))) -> 2325685.058 | K9: =IF(Inputs!$B$101=Inputs!$B$102,SUM(Inputs!K8:K9,Inputs!K16),IF(Inputs!$B$101=Inputs!$B$103,SUM(Inputs!K33:K34,Inputs!K41),IF(Inputs!$B$101=Inputs!$B$104,SUM(Inputs!K45:K46,Inputs!K53),0))) -> 1721094.085 | L9: =IF(Inputs!$B$101=Inputs!$B$102,SUM(Inputs!L8:L9,Inputs!L16),IF(Inputs!$B$101=Inputs!$B$103,SUM(Inputs!L33:L34,Inputs!L41),IF(Inputs!$B$101=Inputs!$B$104,SUM(Inputs!L45:L46,Inputs!L53),0))) -> 1728175.223 | M9: =IF(Inputs!$B$101=Inputs!$B$102,SUM(Inputs!M8:M9,Inputs!M16),IF(Inputs!$B$101=Inputs!$B$103,SUM(Inputs!M33:M34,Inputs!M41),IF(Inputs!$B$101=Inputs!$B$104,SUM(Inputs!M45:M46,Inputs!M53),0))) -> 1354117.298 | N9: =IF(Inputs!$B$101=Inputs!$B$102,SUM(Inputs!N8:N9,Inputs!N16),IF(Inputs!$B$101=Inputs!$B$103,SUM(Inputs!N33:N34,Inputs!N41),IF(Inputs!$B$101=Inputs!$B$104,SUM(Inputs!N45:N46,Inputs!N53),0))) -> 1353009.941 | O9: =IF(Inputs!$B$101=Inputs!$B$102,SUM(Inputs!O8:O9,Inputs!O16),IF(Inputs!$B$101=Inputs!$B$103,SUM(Inputs!O33:O34,Inputs!O41),IF(Inputs!$B$101=Inputs!$B$104,SUM(Inputs!O45:O46,Inputs!O53),0))) -> 1362616.639 | P9: =IF(Inputs!$B$101=Inputs!$B$102,SUM(Inputs!P8:P9,Inputs!P16),IF(Inputs!$B$101=Inputs!$B$103,SUM(Inputs!P33:P34,Inputs!P41),IF(Inputs!$B$101=Inputs!$B$104,SUM(Inputs!P45:P46,Inputs!P53),0))) -> 439004.1408 | Q9: =IF(Inputs!$B$101=Inputs!$B$102,SUM(Inputs!Q8:Q9,Inputs!Q16),IF(Inputs!$B$101=Inputs!$B$103,SUM(Inputs!Q33:Q34,Inputs!Q41),IF(Inputs!$B$101=Inputs!$B$104,SUM(Inputs!Q45:Q46,Inputs!Q53),0))) -> 438242.0051 | R9: =IF(Inputs!$B$101=Inputs!$B$102,SUM(Inputs!R8:R9,Inputs!R16),IF(Inputs!$B$101=Inputs!$B$103,SUM(Inputs!R33:R34,Inputs!R41),IF(Inputs!$B$101=Inputs!$B$104,SUM(Inputs!R45:R46,Inputs!R53),0))) -> 438308.7805 | S9: =IF(Inputs!$B$101=Inputs!$B$102,SUM(Inputs!S8:S9,Inputs!S16),IF(Inputs!$B$101=Inputs!$B$103,SUM(Inputs!S33:S34,Inputs!S41),IF(Inputs!$B$101=Inputs!$B$104,SUM(Inputs!S45:S46,Inputs!S53),0))) -> 437546.6449 | T9: =IF(Inputs!$B$101=Inputs!$B$102,SUM(Inputs!T8:T9,Inputs!T16),IF(Inputs!$B$101=Inputs!$B$103,SUM(Inputs!T33:T34,Inputs!T41),IF(Inputs!$B$101=Inputs!$B$104,SUM(Inputs!T45:T46,Inputs!T53),0))) -> 437971.6162 | U9: =IF(Inputs!$B$101=Inputs!$B$102,SUM(Inputs!U8:U9,Inputs!U16),IF(Inputs!$B$101=Inputs!$B$103,SUM(Inputs!U33:U34,Inputs!U41),IF(Inputs!$B$101=Inputs!$B$104,SUM(Inputs!U45:U46,Inputs!U53),0))) -> 437177.0496 | V9: =IF(Inputs!$B$101=Inputs!$B$102,SUM(Inputs!V8:V9,Inputs!V16),IF(Inputs!$B$101=Inputs!$B$103,SUM(Inputs!V33:V34,Inputs!V41),IF(Inputs!$B$101=Inputs!$B$104,SUM(Inputs!V45:V46,Inputs!V53),0))) -> 436668.895 | W9: =IF(Inputs!$B$101=Inputs!$B$102,SUM(Inputs!W8:W9,Inputs!W16),IF(Inputs!$B$101=Inputs!$B$103,SUM(Inputs!W33:W34,Inputs!W41),IF(Inputs!$B$101=Inputs!$B$104,SUM(Inputs!W45:W46,Inputs!W53),0))) -> 436947.4419 | X9: =IF(Inputs!$B$101=Inputs!$B$102,SUM(Inputs!X8:X9,Inputs!X16),IF(Inputs!$B$101=Inputs!$B$103,SUM(Inputs!X33:X34,Inputs!X41),IF(Inputs!$B$101=Inputs!$B$104,SUM(Inputs!X45:X46,Inputs!X53),0))) -> 436440.908 | Y9: =IF(Inputs!$B$101=Inputs!$B$102,SUM(Inputs!Y8:Y9,Inputs!Y16),IF(Inputs!$B$101=Inputs!$B$103,SUM(Inputs!Y33:Y34,Inputs!Y41),IF(Inputs!$B$101=Inputs!$B$104,SUM(Inputs!Y45:Y46,Inputs!Y53),0))) -> 417038.0461 | Z9: =IF(Inputs!$B$101=Inputs!$B$102,SUM(Inputs!Z8:Z9,Inputs!Z16),IF(Inputs!$B$101=Inputs!$B$103,SUM(Inputs!Z33:Z34,Inputs!Z41),IF(Inputs!$B$101=Inputs!$B$104,SUM(Inputs!Z45:Z46,Inputs!Z53),0))) -> 416031.7079 | AA9: =IF(Inputs!$B$101=Inputs!$B$102,SUM(Inputs!AA8:AA9,Inputs!AA16),IF(Inputs!$B$101=Inputs!$B$103,SUM(Inputs!AA33:AA34,Inputs!AA41),IF(Inputs!$B$101=Inputs!$B$104,SUM(Inputs!AA45:AA46,Inputs!AA53),0))) -> 416274.2897 | AB9: =IF(Inputs!$B$101=Inputs!$B$102,SUM(Inputs!AB8:AB9,Inputs!AB16),IF(Inputs!$B$101=Inputs!$B$103,SUM(Inputs!AB33:AB34,Inputs!AB41),IF(Inputs!$B$101=Inputs!$B$104,SUM(Inputs!AB45:AB46,Inputs!AB53),0))) -> 415267.9516 | AC9: =IF(Inputs!$B$101=Inputs!$B$102,SUM(Inputs!AC8:AC9,Inputs!AC16),IF(Inputs!$B$101=Inputs!$B$103,SUM(Inputs!AC33:AC34,Inputs!AC41),IF(Inputs!$B$101=Inputs!$B$104,SUM(Inputs!AC45:AC46,Inputs!AC53),0))) -> 415692.9229 | AD9: =IF(Inputs!$B$101=Inputs!$B$102,SUM(Inputs!AD8:AD9,Inputs!AD16),IF(Inputs!$B$101=Inputs!$B$103,SUM(Inputs!AD33:AD34,Inputs!AD41),IF(Inputs!$B$101=Inputs!$B$104,SUM(Inputs!AD45:AD46,Inputs!AD53),0))) -> 415039.9646 | AE9: =IF(Inputs!$B$101=Inputs!$B$102,SUM(Inputs!AE8:AE9,Inputs!AE16),IF(Inputs!$B$101=Inputs!$B$103,SUM(Inputs!AE33:AE34,Inputs!AE41),IF(Inputs!$B$101=Inputs!$B$104,SUM(Inputs!AE45:AE46,Inputs!AE53),0))) -> 415391.7237 | AF9: =IF(Inputs!$B$101=Inputs!$B$102,SUM(Inputs!AF8:AF9,Inputs!AF16),IF(Inputs!$B$101=Inputs!$B$103,SUM(Inputs!AF33:AF34,Inputs!AF41),IF(Inputs!$B$101=Inputs!$B$104,SUM(Inputs!AF45:AF46,Inputs!AF53),0))) -> 414743.5815 | AG9: =IF(Inputs!$B$101=Inputs!$B$102,SUM(Inputs!AG8:AG9,Inputs!AG16),IF(Inputs!$B$101=Inputs!$B$103,SUM(Inputs!AG33:AG34,Inputs!AG41),IF(Inputs!$B$101=Inputs!$B$104,SUM(Inputs!AG45:AG46,Inputs!AG53),0))) -> 414743.5815 | AH9: =IF(Inputs!$B$101=Inputs!$B$102,SUM(Inputs!AH8:AH9,Inputs!AH16),IF(Inputs!$B$101=Inputs!$B$103,SUM(Inputs!AH33:AH34,Inputs!AH41),IF(Inputs!$B$101=Inputs!$B$104,SUM(Inputs!AH45:AH46,Inputs!AH53),0))) -> 414743.5815 | AI9: =IF(Inputs!$B$101=Inputs!$B$102,SUM(Inputs!AI8:AI9,Inputs!AI16),IF(Inputs!$B$101=Inputs!$B$103,SUM(Inputs!AI33:AI34,Inputs!AI41),IF(Inputs!$B$101=Inputs!$B$104,SUM(Inputs!AI45:AI46,Inputs!AI53),0))) -> 414743.5815 | AJ9: =IF(Inputs!$B$101=Inputs!$B$102,SUM(Inputs!AJ8:AJ9,Inputs!AJ16),IF(Inputs!$B$101=Inputs!$B$103,SUM(Inputs!AJ33:AJ34,Inputs!AJ41),IF(Inputs!$B$101=Inputs!$B$104,SUM(Inputs!AJ45:AJ46,Inputs!AJ53),0))) -> 414743.5815 | AK9: =IF(Inputs!$B$101=Inputs!$B$102,SUM(Inputs!AK8:AK9,Inputs!AK16),IF(Inputs!$B$101=Inputs!$B$103,SUM(Inputs!AK33:AK34,Inputs!AK41),IF(Inputs!$B$101=Inputs!$B$104,SUM(Inputs!AK45:AK46,Inputs!AK53),0))) -> 414743.5815 | AL9: =IF(Inputs!$B$101=Inputs!$B$102,SUM(Inputs!AL8:AL9,Inputs!AL16),IF(Inputs!$B$101=Inputs!$B$103,SUM(Inputs!AL33:AL34,Inputs!AL41),IF(Inputs!$B$101=Inputs!$B$104,SUM(Inputs!AL45:AL46,Inputs!AL53),0))) -> 414743.5815 | AM9: =IF(Inputs!$B$101=Inputs!$B$102,SUM(Inputs!AM8:AM9,Inputs!AM16),IF(Inputs!$B$101=Inputs!$B$103,SUM(Inputs!AM33:AM34,Inputs!AM41),IF(Inputs!$B$101=Inputs!$B$104,SUM(Inputs!AM45:AM46,Inputs!AM53),0))) -> 414743.5815 | AN9: =IF(Inputs!$B$101=Inputs!$B$102,SUM(Inputs!AN8:AN9,Inputs!AN16),IF(Inputs!$B$101=Inputs!$B$103,SUM(Inputs!AN33:AN34,Inputs!AN41),IF(Inputs!$B$101=Inputs!$B$104,SUM(Inputs!AN45:AN46,Inputs!AN53),0))) -> 414743.5815 | AO9: =IF(Inputs!$B$101=Inputs!$B$102,SUM(Inputs!AO8:AO9,Inputs!AO16),IF(Inputs!$B$101=Inputs!$B$103,SUM(Inputs!AO33:AO34,Inputs!AO41),IF(Inputs!$B$101=Inputs!$B$104,SUM(Inputs!AO45:AO46,Inputs!AO53),0))) -> 414743.5815 | AP9: =IF(Inputs!$B$101=Inputs!$B$102,SUM(Inputs!AP8:AP9,Inputs!AP16),IF(Inputs!$B$101=Inputs!$B$103,SUM(Inputs!AP33:AP34,Inputs!AP41),IF(Inputs!$B$101=Inputs!$B$104,SUM(Inputs!AP45:AP46,Inputs!AP53),0))) -> 414743.5815 | AQ9: =IF(Inputs!$B$101=Inputs!$B$102,SUM(Inputs!AQ8:AQ9,Inputs!AQ16),IF(Inputs!$B$101=Inputs!$B$103,SUM(Inputs!AQ33:AQ34,Inputs!AQ41),IF(Inputs!$B$101=Inputs!$B$104,SUM(Inputs!AQ45:AQ46,Inputs!AQ53),0))) -> 414743.5815 | AR9: =IF(Inputs!$B$101=Inputs!$B$102,SUM(Inputs!AR8:AR9,Inputs!AR16),IF(Inputs!$B$101=Inputs!$B$103,SUM(Inputs!AR33:AR34,Inputs!AR41),IF(Inputs!$B$101=Inputs!$B$104,SUM(Inputs!AR45:AR46,Inputs!AR53),0))) -> 414743.5815
A10: Services | E10: =IF(Inputs!$B$101=Inputs!$B$102,SUM(Inputs!E11,Inputs!E13),IF(Inputs!$B$101=Inputs!$B$103,SUM(Inputs!E36,Inputs!E38),IF(Inputs!$B$101=Inputs!$B$104,SUM(Inputs!E48,Inputs!E50),0))) -> 1929860.881 | F10: =IF(Inputs!$B$101=Inputs!$B$102,SUM(Inputs!F11,Inputs!F13),IF(Inputs!$B$101=Inputs!$B$103,SUM(Inputs!F36,Inputs!F38),IF(Inputs!$B$101=Inputs!$B$104,SUM(Inputs!F48,Inputs!F50),0))) -> 1550213.361 | G10: =IF(Inputs!$B$101=Inputs!$B$102,SUM(Inputs!G11,Inputs!G13),IF(Inputs!$B$101=Inputs!$B$103,SUM(Inputs!G36,Inputs!G38),IF(Inputs!$B$101=Inputs!$B$104,SUM(Inputs!G48,Inputs!G50),0))) -> 1086987.81 | H10: =IF(Inputs!$B$101=Inputs!$B$102,SUM(Inputs!H11,Inputs!H13),IF(Inputs!$B$101=Inputs!$B$103,SUM(Inputs!H36,Inputs!H38),IF(Inputs!$B$101=Inputs!$B$104,SUM(Inputs!H48,Inputs!H50),0))) -> 1066220.181 | I10: =IF(Inputs!$B$101=Inputs!$B$102,SUM(Inputs!I11,Inputs!I13),IF(Inputs!$B$101=Inputs!$B$103,SUM(Inputs!I36,Inputs!I38),IF(Inputs!$B$101=Inputs!$B$104,SUM(Inputs!I48,Inputs!I50),0))) -> 1074389.108 | J10: =IF(Inputs!$B$101=Inputs!$B$102,SUM(Inputs!J11,Inputs!J13),IF(Inputs!$B$101=Inputs!$B$103,SUM(Inputs!J36,Inputs!J38),IF(Inputs!$B$101=Inputs!$B$104,SUM(Inputs!J48,Inputs!J50),0))) -> 1029704.148 | K10: =IF(Inputs!$B$101=Inputs!$B$102,SUM(Inputs!K11,Inputs!K13),IF(Inputs!$B$101=Inputs!$B$103,SUM(Inputs!K36,Inputs!K38),IF(Inputs!$B$101=Inputs!$B$104,SUM(Inputs!K48,Inputs!K50),0))) -> 988225.5209 | L10: =IF(Inputs!$B$101=Inputs!$B$102,SUM(Inputs!L11,Inputs!L13),IF(Inputs!$B$101=Inputs!$B$103,SUM(Inputs!L36,Inputs!L38),IF(Inputs!$B$101=Inputs!$B$104,SUM(Inputs!L48,Inputs!L50),0))) -> 973028.0193 | M10: =IF(Inputs!$B$101=Inputs!$B$102,SUM(Inputs!M11,Inputs!M13),IF(Inputs!$B$101=Inputs!$B$103,SUM(Inputs!M36,Inputs!M38),IF(Inputs!$B$101=Inputs!$B$104,SUM(Inputs!M48,Inputs!M50),0))) -> 941643.3266 | N10: =IF(Inputs!$B$101=Inputs!$B$102,SUM(Inputs!N11,Inputs!N13),IF(Inputs!$B$101=Inputs!$B$103,SUM(Inputs!N36,Inputs!N38),IF(Inputs!$B$101=Inputs!$B$104,SUM(Inputs!N48,Inputs!N50),0))) -> 925510.4057 | O10: =IF(Inputs!$B$101=Inputs!$B$102,SUM(Inputs!O11,Inputs!O13),IF(Inputs!$B$101=Inputs!$B$103,SUM(Inputs!O36,Inputs!O38),IF(Inputs!$B$101=Inputs!$B$104,SUM(Inputs!O48,Inputs!O50),0))) -> 1026636.733 | P10: =IF(Inputs!$B$101=Inputs!$B$102,SUM(Inputs!P11,Inputs!P13),IF(Inputs!$B$101=Inputs!$B$103,SUM(Inputs!P36,Inputs!P38),IF(Inputs!$B$101=Inputs!$B$104,SUM(Inputs!P48,Inputs!P50),0))) -> 1021105.206 | Q10: =IF(Inputs!$B$101=Inputs!$B$102,SUM(Inputs!Q11,Inputs!Q13),IF(Inputs!$B$101=Inputs!$B$103,SUM(Inputs!Q36,Inputs!Q38),IF(Inputs!$B$101=Inputs!$B$104,SUM(Inputs!Q48,Inputs!Q50),0))) -> 1018543.195 | R10: =IF(Inputs!$B$101=Inputs!$B$102,SUM(Inputs!R11,Inputs!R13),IF(Inputs!$B$101=Inputs!$B$103,SUM(Inputs!R36,Inputs!R38),IF(Inputs!$B$101=Inputs!$B$104,SUM(Inputs!R48,Inputs!R50),0))) -> 1014151.604 | S10: =IF(Inputs!$B$101=Inputs!$B$102,SUM(Inputs!S11,Inputs!S13),IF(Inputs!$B$101=Inputs!$B$103,SUM(Inputs!S36,Inputs!S38),IF(Inputs!$B$101=Inputs!$B$104,SUM(Inputs!S48,Inputs!S50),0))) -> 1011589.593 | T10: =IF(Inputs!$B$101=Inputs!$B$102,SUM(Inputs!T11,Inputs!T13),IF(Inputs!$B$101=Inputs!$B$103,SUM(Inputs!T36,Inputs!T38),IF(Inputs!$B$101=Inputs!$B$104,SUM(Inputs!T48,Inputs!T50),0))) -> 1010779.96 | U10: =IF(Inputs!$B$101=Inputs!$B$102,SUM(Inputs!U11,Inputs!U13),IF(Inputs!$B$101=Inputs!$B$103,SUM(Inputs!U36,Inputs!U38),IF(Inputs!$B$101=Inputs!$B$104,SUM(Inputs!U48,Inputs!U50),0))) -> 1007893.64 | V10: =IF(Inputs!$B$101=Inputs!$B$102,SUM(Inputs!V11,Inputs!V13),IF(Inputs!$B$101=Inputs!$B$103,SUM(Inputs!V36,Inputs!V38),IF(Inputs!$B$101=Inputs!$B$104,SUM(Inputs!V48,Inputs!V50),0))) -> 1002812.094 | W10: =IF(Inputs!$B$101=Inputs!$B$102,SUM(Inputs!W11,Inputs!W13),IF(Inputs!$B$101=Inputs!$B$103,SUM(Inputs!W36,Inputs!W38),IF(Inputs!$B$101=Inputs!$B$104,SUM(Inputs!W48,Inputs!W50),0))) -> 1000538.217 | X10: =IF(Inputs!$B$101=Inputs!$B$102,SUM(Inputs!X11,Inputs!X13),IF(Inputs!$B$101=Inputs!$B$103,SUM(Inputs!X36,Inputs!X38),IF(Inputs!$B$101=Inputs!$B$104,SUM(Inputs!X48,Inputs!X50),0))) -> 1000532.224 | Y10: =IF(Inputs!$B$101=Inputs!$B$102,SUM(Inputs!Y11,Inputs!Y13),IF(Inputs!$B$101=Inputs!$B$103,SUM(Inputs!Y36,Inputs!Y38),IF(Inputs!$B$101=Inputs!$B$104,SUM(Inputs!Y48,Inputs!Y50),0))) -> 801444.259 | Z10: =IF(Inputs!$B$101=Inputs!$B$102,SUM(Inputs!Z11,Inputs!Z13),IF(Inputs!$B$101=Inputs!$B$103,SUM(Inputs!Z36,Inputs!Z38),IF(Inputs!$B$101=Inputs!$B$104,SUM(Inputs!Z48,Inputs!Z50),0))) -> 796440.2234 | AA10: =IF(Inputs!$B$101=Inputs!$B$102,SUM(Inputs!AA11,Inputs!AA13),IF(Inputs!$B$101=Inputs!$B$103,SUM(Inputs!AA36,Inputs!AA38),IF(Inputs!$B$101=Inputs!$B$104,SUM(Inputs!AA48,Inputs!AA50),0))) -> 793806.6954 | AB10: =IF(Inputs!$B$101=Inputs!$B$102,SUM(Inputs!AB11,Inputs!AB13),IF(Inputs!$B$101=Inputs!$B$103,SUM(Inputs!AB36,Inputs!AB38),IF(Inputs!$B$101=Inputs!$B$104,SUM(Inputs!AB48,Inputs!AB50),0))) -> 788802.6597 | AC10: =IF(Inputs!$B$101=Inputs!$B$102,SUM(Inputs!AC11,Inputs!AC13),IF(Inputs!$B$101=Inputs!$B$103,SUM(Inputs!AC36,Inputs!AC38),IF(Inputs!$B$101=Inputs!$B$104,SUM(Inputs!AC48,Inputs!AC50),0))) -> 787993.0275 | AD10: =IF(Inputs!$B$101=Inputs!$B$102,SUM(Inputs!AD11,Inputs!AD13),IF(Inputs!$B$101=Inputs!$B$103,SUM(Inputs!AD36,Inputs!AD38),IF(Inputs!$B$101=Inputs!$B$104,SUM(Inputs!AD48,Inputs!AD50),0))) -> 786522.79 | AE10: =IF(Inputs!$B$101=Inputs!$B$102,SUM(Inputs!AE11,Inputs!AE13),IF(Inputs!$B$101=Inputs!$B$103,SUM(Inputs!AE36,Inputs!AE38),IF(Inputs!$B$101=Inputs!$B$104,SUM(Inputs!AE48,Inputs!AE50),0))) -> 784981.0354 | AF10: =IF(Inputs!$B$101=Inputs!$B$102,SUM(Inputs!AF11,Inputs!AF13),IF(Inputs!$B$101=Inputs!$B$103,SUM(Inputs!AF36,Inputs!AF38),IF(Inputs!$B$101=Inputs!$B$104,SUM(Inputs!AF48,Inputs!AF50),0))) -> 783558.9593 | AG10: =IF(Inputs!$B$101=Inputs!$B$102,SUM(Inputs!AG11,Inputs!AG13),IF(Inputs!$B$101=Inputs!$B$103,SUM(Inputs!AG36,Inputs!AG38),IF(Inputs!$B$101=Inputs!$B$104,SUM(Inputs!AG48,Inputs!AG50),0))) -> 783558.9593 | AH10: =IF(Inputs!$B$101=Inputs!$B$102,SUM(Inputs!AH11,Inputs!AH13),IF(Inputs!$B$101=Inputs!$B$103,SUM(Inputs!AH36,Inputs!AH38),IF(Inputs!$B$101=Inputs!$B$104,SUM(Inputs!AH48,Inputs!AH50),0))) -> 783558.9593 | AI10: =IF(Inputs!$B$101=Inputs!$B$102,SUM(Inputs!AI11,Inputs!AI13),IF(Inputs!$B$101=Inputs!$B$103,SUM(Inputs!AI36,Inputs!AI38),IF(Inputs!$B$101=Inputs!$B$104,SUM(Inputs!AI48,Inputs!AI50),0))) -> 783558.9593 | AJ10: =IF(Inputs!$B$101=Inputs!$B$102,SUM(Inputs!AJ11,Inputs!AJ13),IF(Inputs!$B$101=Inputs!$B$103,SUM(Inputs!AJ36,Inputs!AJ38),IF(Inputs!$B$101=Inputs!$B$104,SUM(Inputs!AJ48,Inputs!AJ50),0))) -> 783558.9593 | AK10: =IF(Inputs!$B$101=Inputs!$B$102,SUM(Inputs!AK11,Inputs!AK13),IF(Inputs!$B$101=Inputs!$B$103,SUM(Inputs!AK36,Inputs!AK38),IF(Inputs!$B$101=Inputs!$B$104,SUM(Inputs!AK48,Inputs!AK50),0))) -> 783558.9593 | AL10: =IF(Inputs!$B$101=Inputs!$B$102,SUM(Inputs!AL11,Inputs!AL13),IF(Inputs!$B$101=Inputs!$B$103,SUM(Inputs!AL36,Inputs!AL38),IF(Inputs!$B$101=Inputs!$B$104,SUM(Inputs!AL48,Inputs!AL50),0))) -> 783558.9593 | AM10: =IF(Inputs!$B$101=Inputs!$B$102,SUM(Inputs!AM11,Inputs!AM13),IF(Inputs!$B$101=Inputs!$B$103,SUM(Inputs!AM36,Inputs!AM38),IF(Inputs!$B$101=Inputs!$B$104,SUM(Inputs!AM48,Inputs!AM50),0))) -> 783558.9593 | AN10: =IF(Inputs!$B$101=Inputs!$B$102,SUM(Inputs!AN11,Inputs!AN13),IF(Inputs!$B$101=Inputs!$B$103,SUM(Inputs!AN36,Inputs!AN38),IF(Inputs!$B$101=Inputs!$B$104,SUM(Inputs!AN48,Inputs!AN50),0))) -> 783558.9593 | AO10: =IF(Inputs!$B$101=Inputs!$B$102,SUM(Inputs!AO11,Inputs!AO13),IF(Inputs!$B$101=Inputs!$B$103,SUM(Inputs!AO36,Inputs!AO38),IF(Inputs!$B$101=Inputs!$B$104,SUM(Inputs!AO48,Inputs!AO50),0))) -> 783558.9593 | AP10: =IF(Inputs!$B$101=Inputs!$B$102,SUM(Inputs!AP11,Inputs!AP13),IF(Inputs!$B$101=Inputs!$B$103,SUM(Inputs!AP36,Inputs!AP38),IF(Inputs!$B$101=Inputs!$B$104,SUM(Inputs!AP48,Inputs!AP50),0))) -> 783558.9593 | AQ10: =IF(Inputs!$B$101=Inputs!$B$102,SUM(Inputs!AQ11,Inputs!AQ13),IF(Inputs!$B$101=Inputs!$B$103,SUM(Inputs!AQ36,Inputs!AQ38),IF(Inputs!$B$101=Inputs!$B$104,SUM(Inputs!AQ48,Inputs!AQ50),0))) -> 783558.9593 | AR10: =IF(Inputs!$B$101=Inputs!$B$102,SUM(Inputs!AR11,Inputs!AR13),IF(Inputs!$B$101=Inputs!$B$103,SUM(Inputs!AR36,Inputs!AR38),IF(Inputs!$B$101=Inputs!$B$104,SUM(Inputs!AR48,Inputs!AR50),0))) -> 783558.9593
A11: Meters, PRS, Telemetry | E11: =IF(Inputs!$B$101=Inputs!$B$102,SUM(Inputs!E10,Inputs!E12,Inputs!E14),IF(Inputs!$B$101=Inputs!$B$103,SUM(Inputs!E35,Inputs!E37,Inputs!E39),IF(Inputs!$B$101=Inputs!$B$104,SUM(Inputs!E47,Inputs!E49,Inputs!E51),0))) -> 1024929.156 | F11: =IF(Inputs!$B$101=Inputs!$B$102,SUM(Inputs!F10,Inputs!F12,Inputs!F14),IF(Inputs!$B$101=Inputs!$B$103,SUM(Inputs!F35,Inputs!F37,Inputs!F39),IF(Inputs!$B$101=Inputs!$B$104,SUM(Inputs!F47,Inputs!F49,Inputs!F51),0))) -> 920054.0093 | G11: =IF(Inputs!$B$101=Inputs!$B$102,SUM(Inputs!G10,Inputs!G12,Inputs!G14),IF(Inputs!$B$101=Inputs!$B$103,SUM(Inputs!G35,Inputs!G37,Inputs!G39),IF(Inputs!$B$101=Inputs!$B$104,SUM(Inputs!G47,Inputs!G49,Inputs!G51),0))) -> 571826.9086 | H11: =IF(Inputs!$B$101=Inputs!$B$102,SUM(Inputs!H10,Inputs!H12,Inputs!H14),IF(Inputs!$B$101=Inputs!$B$103,SUM(Inputs!H35,Inputs!H37,Inputs!H39),IF(Inputs!$B$101=Inputs!$B$104,SUM(Inputs!H47,Inputs!H49,Inputs!H51),0))) -> 533667.4523 | I11: =IF(Inputs!$B$101=Inputs!$B$102,SUM(Inputs!I10,Inputs!I12,Inputs!I14),IF(Inputs!$B$101=Inputs!$B$103,SUM(Inputs!I35,Inputs!I37,Inputs!I39),IF(Inputs!$B$101=Inputs!$B$104,SUM(Inputs!I47,Inputs!I49,Inputs!I51),0))) -> 542296.2599 | J11: =IF(Inputs!$B$101=Inputs!$B$102,SUM(Inputs!J10,Inputs!J12,Inputs!J14),IF(Inputs!$B$101=Inputs!$B$103,SUM(Inputs!J35,Inputs!J37,Inputs!J39),IF(Inputs!$B$101=Inputs!$B$104,SUM(Inputs!J47,Inputs!J49,Inputs!J51),0))) -> 707461.8864 | K11: =IF(Inputs!$B$101=Inputs!$B$102,SUM(Inputs!K10,Inputs!K12,Inputs!K14),IF(Inputs!$B$101=Inputs!$B$103,SUM(Inputs!K35,Inputs!K37,Inputs!K39),IF(Inputs!$B$101=Inputs!$B$104,SUM(Inputs!K47,Inputs!K49,Inputs!K51),0))) -> 459435.9196 | L11: =IF(Inputs!$B$101=Inputs!$B$102,SUM(Inputs!L10,Inputs!L12,Inputs!L14),IF(Inputs!$B$101=Inputs!$B$103,SUM(Inputs!L35,Inputs!L37,Inputs!L39),IF(Inputs!$B$101=Inputs!$B$104,SUM(Inputs!L47,Inputs!L49,Inputs!L51),0))) -> 441366.4065 | M11: =IF(Inputs!$B$101=Inputs!$B$102,SUM(Inputs!M10,Inputs!M12,Inputs!M14),IF(Inputs!$B$101=Inputs!$B$103,SUM(Inputs!M35,Inputs!M37,Inputs!M39),IF(Inputs!$B$101=Inputs!$B$104,SUM(Inputs!M47,Inputs!M49,Inputs!M51),0))) -> 411123.0768 | N11: =IF(Inputs!$B$101=Inputs!$B$102,SUM(Inputs!N10,Inputs!N12,Inputs!N14),IF(Inputs!$B$101=Inputs!$B$103,SUM(Inputs!N35,Inputs!N37,Inputs!N39),IF(Inputs!$B$101=Inputs!$B$104,SUM(Inputs!N47,Inputs!N49,Inputs!N51),0))) -> 397146.5448 | O11: =IF(Inputs!$B$101=Inputs!$B$102,SUM(Inputs!O10,Inputs!O12,Inputs!O14),IF(Inputs!$B$101=Inputs!$B$103,SUM(Inputs!O35,Inputs!O37,Inputs!O39),IF(Inputs!$B$101=Inputs!$B$104,SUM(Inputs!O47,Inputs!O49,Inputs!O51),0))) -> 410532.3034 | P11: =IF(Inputs!$B$101=Inputs!$B$102,SUM(Inputs!P10,Inputs!P12,Inputs!P14),IF(Inputs!$B$101=Inputs!$B$103,SUM(Inputs!P35,Inputs!P37,Inputs!P39),IF(Inputs!$B$101=Inputs!$B$104,SUM(Inputs!P47,Inputs!P49,Inputs!P51),0))) -> 393045.1069 | Q11: =IF(Inputs!$B$101=Inputs!$B$102,SUM(Inputs!Q10,Inputs!Q12,Inputs!Q14),IF(Inputs!$B$101=Inputs!$B$103,SUM(Inputs!Q35,Inputs!Q37,Inputs!Q39),IF(Inputs!$B$101=Inputs!$B$104,SUM(Inputs!Q47,Inputs!Q49,Inputs!Q51),0))) -> 391629.7014 | R11: =IF(Inputs!$B$101=Inputs!$B$102,SUM(Inputs!R10,Inputs!R12,Inputs!R14),IF(Inputs!$B$101=Inputs!$B$103,SUM(Inputs!R35,Inputs!R37,Inputs!R39),IF(Inputs!$B$101=Inputs!$B$104,SUM(Inputs!R47,Inputs!R49,Inputs!R51),0))) -> 387430.3717 | S11: =IF(Inputs!$B$101=Inputs!$B$102,SUM(Inputs!S10,Inputs!S12,Inputs!S14),IF(Inputs!$B$101=Inputs!$B$103,SUM(Inputs!S35,Inputs!S37,Inputs!S39),IF(Inputs!$B$101=Inputs!$B$104,SUM(Inputs!S47,Inputs!S49,Inputs!S51),0))) -> 386014.9662 | T11: =IF(Inputs!$B$101=Inputs!$B$102,SUM(Inputs!T10,Inputs!T12,Inputs!T14),IF(Inputs!$B$101=Inputs!$B$103,SUM(Inputs!T35,Inputs!T37,Inputs!T39),IF(Inputs!$B$101=Inputs!$B$104,SUM(Inputs!T47,Inputs!T49,Inputs!T51),0))) -> 386014.9662 | U11: =IF(Inputs!$B$101=Inputs!$B$102,SUM(Inputs!U10,Inputs!U12,Inputs!U14),IF(Inputs!$B$101=Inputs!$B$103,SUM(Inputs!U35,Inputs!U37,Inputs!U39),IF(Inputs!$B$101=Inputs!$B$104,SUM(Inputs!U47,Inputs!U49,Inputs!U51),0))) -> 384111.5072 | V11: =IF(Inputs!$B$101=Inputs!$B$102,SUM(Inputs!V10,Inputs!V12,Inputs!V14),IF(Inputs!$B$101=Inputs!$B$103,SUM(Inputs!V35,Inputs!V37,Inputs!V39),IF(Inputs!$B$101=Inputs!$B$104,SUM(Inputs!V47,Inputs!V49,Inputs!V51),0))) -> 378877.974 | W11: =IF(Inputs!$B$101=Inputs!$B$102,SUM(Inputs!W10,Inputs!W12,Inputs!W14),IF(Inputs!$B$101=Inputs!$B$103,SUM(Inputs!W35,Inputs!W37,Inputs!W39),IF(Inputs!$B$101=Inputs!$B$104,SUM(Inputs!W47,Inputs!W49,Inputs!W51),0))) -> 378496.772 | X11: =IF(Inputs!$B$101=Inputs!$B$102,SUM(Inputs!X10,Inputs!X12,Inputs!X14),IF(Inputs!$B$101=Inputs!$B$103,SUM(Inputs!X35,Inputs!X37,Inputs!X39),IF(Inputs!$B$101=Inputs!$B$104,SUM(Inputs!X47,Inputs!X49,Inputs!X51),0))) -> 710477.0956 | Y11: =IF(Inputs!$B$101=Inputs!$B$102,SUM(Inputs!Y10,Inputs!Y12,Inputs!Y14),IF(Inputs!$B$101=Inputs!$B$103,SUM(Inputs!Y35,Inputs!Y37,Inputs!Y39),IF(Inputs!$B$101=Inputs!$B$104,SUM(Inputs!Y47,Inputs!Y49,Inputs!Y51),0))) -> 1356675.071 | Z11: =IF(Inputs!$B$101=Inputs!$B$102,SUM(Inputs!Z10,Inputs!Z12,Inputs!Z14),IF(Inputs!$B$101=Inputs!$B$103,SUM(Inputs!Z35,Inputs!Z37,Inputs!Z39),IF(Inputs!$B$101=Inputs!$B$104,SUM(Inputs!Z47,Inputs!Z49,Inputs!Z51),0))) -> 1248449.078 | AA11: =IF(Inputs!$B$101=Inputs!$B$102,SUM(Inputs!AA10,Inputs!AA12,Inputs!AA14),IF(Inputs!$B$101=Inputs!$B$103,SUM(Inputs!AA35,Inputs!AA37,Inputs!AA39),IF(Inputs!$B$101=Inputs!$B$104,SUM(Inputs!AA47,Inputs!AA49,Inputs!AA51),0))) -> 891876.2616 | AB11: =IF(Inputs!$B$101=Inputs!$B$102,SUM(Inputs!AB10,Inputs!AB12,Inputs!AB14),IF(Inputs!$B$101=Inputs!$B$103,SUM(Inputs!AB35,Inputs!AB37,Inputs!AB39),IF(Inputs!$B$101=Inputs!$B$104,SUM(Inputs!AB47,Inputs!AB49,Inputs!AB51),0))) -> 847836.1128 | AC11: =IF(Inputs!$B$101=Inputs!$B$102,SUM(Inputs!AC10,Inputs!AC12,Inputs!AC14),IF(Inputs!$B$101=Inputs!$B$103,SUM(Inputs!AC35,Inputs!AC37,Inputs!AC39),IF(Inputs!$B$101=Inputs!$B$104,SUM(Inputs!AC47,Inputs!AC49,Inputs!AC51),0))) -> 858681.8814 | AD11: =IF(Inputs!$B$101=Inputs!$B$102,SUM(Inputs!AD10,Inputs!AD12,Inputs!AD14),IF(Inputs!$B$101=Inputs!$B$103,SUM(Inputs!AD35,Inputs!AD37,Inputs!AD39),IF(Inputs!$B$101=Inputs!$B$104,SUM(Inputs!AD47,Inputs!AD49,Inputs!AD51),0))) -> 1012914.861 | AE11: =IF(Inputs!$B$101=Inputs!$B$102,SUM(Inputs!AE10,Inputs!AE12,Inputs!AE14),IF(Inputs!$B$101=Inputs!$B$103,SUM(Inputs!AE35,Inputs!AE37,Inputs!AE39),IF(Inputs!$B$101=Inputs!$B$104,SUM(Inputs!AE47,Inputs!AE49,Inputs!AE51),0))) -> 764698.293 | AF11: =IF(Inputs!$B$101=Inputs!$B$102,SUM(Inputs!AF10,Inputs!AF12,Inputs!AF14),IF(Inputs!$B$101=Inputs!$B$103,SUM(Inputs!AF35,Inputs!AF37,Inputs!AF39),IF(Inputs!$B$101=Inputs!$B$104,SUM(Inputs!AF47,Inputs!AF49,Inputs!AF51),0))) -> 745403.9753 | AG11: =IF(Inputs!$B$101=Inputs!$B$102,SUM(Inputs!AG10,Inputs!AG12,Inputs!AG14),IF(Inputs!$B$101=Inputs!$B$103,SUM(Inputs!AG35,Inputs!AG37,Inputs!AG39),IF(Inputs!$B$101=Inputs!$B$104,SUM(Inputs!AG47,Inputs!AG49,Inputs!AG51),0))) -> 745403.9753 | AH11: =IF(Inputs!$B$101=Inputs!$B$102,SUM(Inputs!AH10,Inputs!AH12,Inputs!AH14),IF(Inputs!$B$101=Inputs!$B$103,SUM(Inputs!AH35,Inputs!AH37,Inputs!AH39),IF(Inputs!$B$101=Inputs!$B$104,SUM(Inputs!AH47,Inputs!AH49,Inputs!AH51),0))) -> 745403.9753 | AI11: =IF(Inputs!$B$101=Inputs!$B$102,SUM(Inputs!AI10,Inputs!AI12,Inputs!AI14),IF(Inputs!$B$101=Inputs!$B$103,SUM(Inputs!AI35,Inputs!AI37,Inputs!AI39),IF(Inputs!$B$101=Inputs!$B$104,SUM(Inputs!AI47,Inputs!AI49,Inputs!AI51),0))) -> 745403.9753 | AJ11: =IF(Inputs!$B$101=Inputs!$B$102,SUM(Inputs!AJ10,Inputs!AJ12,Inputs!AJ14),IF(Inputs!$B$101=Inputs!$B$103,SUM(Inputs!AJ35,Inputs!AJ37,Inputs!AJ39),IF(Inputs!$B$101=Inputs!$B$104,SUM(Inputs!AJ47,Inputs!AJ49,Inputs!AJ51),0))) -> 745403.9753 | AK11: =IF(Inputs!$B$101=Inputs!$B$102,SUM(Inputs!AK10,Inputs!AK12,Inputs!AK14),IF(Inputs!$B$101=Inputs!$B$103,SUM(Inputs!AK35,Inputs!AK37,Inputs!AK39),IF(Inputs!$B$101=Inputs!$B$104,SUM(Inputs!AK47,Inputs!AK49,Inputs!AK51),0))) -> 745403.9753 | AL11: =IF(Inputs!$B$101=Inputs!$B$102,SUM(Inputs!AL10,Inputs!AL12,Inputs!AL14),IF(Inputs!$B$101=Inputs!$B$103,SUM(Inputs!AL35,Inputs!AL37,Inputs!AL39),IF(Inputs!$B$101=Inputs!$B$104,SUM(Inputs!AL47,Inputs!AL49,Inputs!AL51),0))) -> 745403.9753 | AM11: =IF(Inputs!$B$101=Inputs!$B$102,SUM(Inputs!AM10,Inputs!AM12,Inputs!AM14),IF(Inputs!$B$101=Inputs!$B$103,SUM(Inputs!AM35,Inputs!AM37,Inputs!AM39),IF(Inputs!$B$101=Inputs!$B$104,SUM(Inputs!AM47,Inputs!AM49,Inputs!AM51),0))) -> 745403.9753 | AN11: =IF(Inputs!$B$101=Inputs!$B$102,SUM(Inputs!AN10,Inputs!AN12,Inputs!AN14),IF(Inputs!$B$101=Inputs!$B$103,SUM(Inputs!AN35,Inputs!AN37,Inputs!AN39),IF(Inputs!$B$101=Inputs!$B$104,SUM(Inputs!AN47,Inputs!AN49,Inputs!AN51),0))) -> 745403.9753 | AO11: =IF(Inputs!$B$101=Inputs!$B$102,SUM(Inputs!AO10,Inputs!AO12,Inputs!AO14),IF(Inputs!$B$101=Inputs!$B$103,SUM(Inputs!AO35,Inputs!AO37,Inputs!AO39),IF(Inputs!$B$101=Inputs!$B$104,SUM(Inputs!AO47,Inputs!AO49,Inputs!AO51),0))) -> 745403.9753 | AP11: =IF(Inputs!$B$101=Inputs!$B$102,SUM(Inputs!AP10,Inputs!AP12,Inputs!AP14),IF(Inputs!$B$101=Inputs!$B$103,SUM(Inputs!AP35,Inputs!AP37,Inputs!AP39),IF(Inputs!$B$101=Inputs!$B$104,SUM(Inputs!AP47,Inputs!AP49,Inputs!AP51),0))) -> 745403.9753 | AQ11: =IF(Inputs!$B$101=Inputs!$B$102,SUM(Inputs!AQ10,Inputs!AQ12,Inputs!AQ14),IF(Inputs!$B$101=Inputs!$B$103,SUM(Inputs!AQ35,Inputs!AQ37,Inputs!AQ39),IF(Inputs!$B$101=Inputs!$B$104,SUM(Inputs!AQ47,Inputs!AQ49,Inputs!AQ51),0))) -> 745403.9753 | AR11: =IF(Inputs!$B$101=Inputs!$B$102,SUM(Inputs!AR10,Inputs!AR12,Inputs!AR14),IF(Inputs!$B$101=Inputs!$B$103,SUM(Inputs!AR35,Inputs!AR37,Inputs!AR39),IF(Inputs!$B$101=Inputs!$B$104,SUM(Inputs!AR47,Inputs!AR49,Inputs!AR51),0))) -> 745403.9753
A12: Other Capex | E12: =IF(Inputs!$B$101=Inputs!$B$102,Inputs!E15,IF(Inputs!$B$101=Inputs!$B$103,Inputs!E40,IF(Inputs!$B$101=Inputs!$B$104,Inputs!E52,0))) -> 383397.9576 | F12: =IF(Inputs!$B$101=Inputs!$B$102,Inputs!F15,IF(Inputs!$B$101=Inputs!$B$103,Inputs!F40,IF(Inputs!$B$101=Inputs!$B$104,Inputs!F52,0))) -> 380321.6348 | G12: =IF(Inputs!$B$101=Inputs!$B$102,Inputs!G15,IF(Inputs!$B$101=Inputs!$B$103,Inputs!G40,IF(Inputs!$B$101=Inputs!$B$104,Inputs!G52,0))) -> 378025.2218 | H12: =IF(Inputs!$B$101=Inputs!$B$102,Inputs!H15,IF(Inputs!$B$101=Inputs!$B$103,Inputs!H40,IF(Inputs!$B$101=Inputs!$B$104,Inputs!H52,0))) -> 375742.6747 | I12: =IF(Inputs!$B$101=Inputs!$B$102,Inputs!I15,IF(Inputs!$B$101=Inputs!$B$103,Inputs!I40,IF(Inputs!$B$101=Inputs!$B$104,Inputs!I52,0))) -> 373473.9099 | J12: =IF(Inputs!$B$101=Inputs!$B$102,Inputs!J15,IF(Inputs!$B$101=Inputs!$B$103,Inputs!J40,IF(Inputs!$B$101=Inputs!$B$104,Inputs!J52,0))) -> 74722.23535 | K12: =IF(Inputs!$B$101=Inputs!$B$102,Inputs!K15,IF(Inputs!$B$101=Inputs!$B$103,Inputs!K40,IF(Inputs!$B$101=Inputs!$B$104,Inputs!K52,0))) -> 74722.23535 | L12: =IF(Inputs!$B$101=Inputs!$B$102,Inputs!L15,IF(Inputs!$B$101=Inputs!$B$103,Inputs!L40,IF(Inputs!$B$101=Inputs!$B$104,Inputs!L52,0))) -> 74722.23535 | M12: =IF(Inputs!$B$101=Inputs!$B$102,Inputs!M15,IF(Inputs!$B$101=Inputs!$B$103,Inputs!M40,IF(Inputs!$B$101=Inputs!$B$104,Inputs!M52,0))) -> 74722.23535 | N12: =IF(Inputs!$B$101=Inputs!$B$102,Inputs!N15,IF(Inputs!$B$101=Inputs!$B$103,Inputs!N40,IF(Inputs!$B$101=Inputs!$B$104,Inputs!N52,0))) -> 74722.23535 | O12: =IF(Inputs!$B$101=Inputs!$B$102,Inputs!O15,IF(Inputs!$B$101=Inputs!$B$103,Inputs!O40,IF(Inputs!$B$101=Inputs!$B$104,Inputs!O52,0))) -> 74722.23535 | P12: =IF(Inputs!$B$101=Inputs!$B$102,Inputs!P15,IF(Inputs!$B$101=Inputs!$B$103,Inputs!P40,IF(Inputs!$B$101=Inputs!$B$104,Inputs!P52,0))) -> 74722.23535 | Q12: =IF(Inputs!$B$101=Inputs!$B$102,Inputs!Q15,IF(Inputs!$B$101=Inputs!$B$103,Inputs!Q40,IF(Inputs!$B$101=Inputs!$B$104,Inputs!Q52,0))) -> 74722.23535 | R12: =IF(Inputs!$B$101=Inputs!$B$102,Inputs!R15,IF(Inputs!$B$101=Inputs!$B$103,Inputs!R40,IF(Inputs!$B$101=Inputs!$B$104,Inputs!R52,0))) -> 74722.23535 | S12: =IF(Inputs!$B$101=Inputs!$B$102,Inputs!S15,IF(Inputs!$B$101=Inputs!$B$103,Inputs!S40,IF(Inputs!$B$101=Inputs!$B$104,Inputs!S52,0))) -> 74722.23535 | T12: =IF(Inputs!$B$101=Inputs!$B$102,Inputs!T15,IF(Inputs!$B$101=Inputs!$B$103,Inputs!T40,IF(Inputs!$B$101=Inputs!$B$104,Inputs!T52,0))) -> 74722.23535 | U12: =IF(Inputs!$B$101=Inputs!$B$102,Inputs!U15,IF(Inputs!$B$101=Inputs!$B$103,Inputs!U40,IF(Inputs!$B$101=Inputs!$B$104,Inputs!U52,0))) -> 74722.23535 | V12: =IF(Inputs!$B$101=Inputs!$B$102,Inputs!V15,IF(Inputs!$B$101=Inputs!$B$103,Inputs!V40,IF(Inputs!$B$101=Inputs!$B$104,Inputs!V52,0))) -> 74722.23535 | W12: =IF(Inputs!$B$101=Inputs!$B$102,Inputs!W15,IF(Inputs!$B$101=Inputs!$B$103,Inputs!W40,IF(Inputs!$B$101=Inputs!$B$104,Inputs!W52,0))) -> 74722.23535 | X12: =IF(Inputs!$B$101=Inputs!$B$102,Inputs!X15,IF(Inputs!$B$101=Inputs!$B$103,Inputs!X40,IF(Inputs!$B$101=Inputs!$B$104,Inputs!X52,0))) -> 74722.23535 | Y12: =IF(Inputs!$B$101=Inputs!$B$102,Inputs!Y15,IF(Inputs!$B$101=Inputs!$B$103,Inputs!Y40,IF(Inputs!$B$101=Inputs!$B$104,Inputs!Y52,0))) -> 74722.23535 | Z12: =IF(Inputs!$B$101=Inputs!$B$102,Inputs!Z15,IF(Inputs!$B$101=Inputs!$B$103,Inputs!Z40,IF(Inputs!$B$101=Inputs!$B$104,Inputs!Z52,0))) -> 74722.23535 | AA12: =IF(Inputs!$B$101=Inputs!$B$102,Inputs!AA15,IF(Inputs!$B$101=Inputs!$B$103,Inputs!AA40,IF(Inputs!$B$101=Inputs!$B$104,Inputs!AA52,0))) -> 74722.23535 | AB12: =IF(Inputs!$B$101=Inputs!$B$102,Inputs!AB15,IF(Inputs!$B$101=Inputs!$B$103,Inputs!AB40,IF(Inputs!$B$101=Inputs!$B$104,Inputs!AB52,0))) -> 74722.23535 | AC12: =IF(Inputs!$B$101=Inputs!$B$102,Inputs!AC15,IF(Inputs!$B$101=Inputs!$B$103,Inputs!AC40,IF(Inputs!$B$101=Inputs!$B$104,Inputs!AC52,0))) -> 74722.23535 | AD12: =IF(Inputs!$B$101=Inputs!$B$102,Inputs!AD15,IF(Inputs!$B$101=Inputs!$B$103,Inputs!AD40,IF(Inputs!$B$101=Inputs!$B$104,Inputs!AD52,0))) -> 74722.23535 | AE12: =IF(Inputs!$B$101=Inputs!$B$102,Inputs!AE15,IF(Inputs!$B$101=Inputs!$B$103,Inputs!AE40,IF(Inputs!$B$101=Inputs!$B$104,Inputs!AE52,0))) -> 74722.23535 | AF12: =IF(Inputs!$B$101=Inputs!$B$102,Inputs!AF15,IF(Inputs!$B$101=Inputs!$B$103,Inputs!AF40,IF(Inputs!$B$101=Inputs!$B$104,Inputs!AF52,0))) -> 74722.23535 | AG12: =IF(Inputs!$B$101=Inputs!$B$102,Inputs!AG15,IF(Inputs!$B$101=Inputs!$B$103,Inputs!AG40,IF(Inputs!$B$101=Inputs!$B$104,Inputs!AG52,0))) -> 74722.23535 | AH12: =IF(Inputs!$B$101=Inputs!$B$102,Inputs!AH15,IF(Inputs!$B$101=Inputs!$B$103,Inputs!AH40,IF(Inputs!$B$101=Inputs!$B$104,Inputs!AH52,0))) -> 74722.23535 | AI12: =IF(Inputs!$B$101=Inputs!$B$102,Inputs!AI15,IF(Inputs!$B$101=Inputs!$B$103,Inputs!AI40,IF(Inputs!$B$101=Inputs!$B$104,Inputs!AI52,0))) -> 74722.23535 | AJ12: =IF(Inputs!$B$101=Inputs!$B$102,Inputs!AJ15,IF(Inputs!$B$101=Inputs!$B$103,Inputs!AJ40,IF(Inputs!$B$101=Inputs!$B$104,Inputs!AJ52,0))) -> 74722.23535 | AK12: =IF(Inputs!$B$101=Inputs!$B$102,Inputs!AK15,IF(Inputs!$B$101=Inputs!$B$103,Inputs!AK40,IF(Inputs!$B$101=Inputs!$B$104,Inputs!AK52,0))) -> 74722.23535 | AL12: =IF(Inputs!$B$101=Inputs!$B$102,Inputs!AL15,IF(Inputs!$B$101=Inputs!$B$103,Inputs!AL40,IF(Inputs!$B$101=Inputs!$B$104,Inputs!AL52,0))) -> 74722.23535 | AM12: =IF(Inputs!$B$101=Inputs!$B$102,Inputs!AM15,IF(Inputs!$B$101=Inputs!$B$103,Inputs!AM40,IF(Inputs!$B$101=Inputs!$B$104,Inputs!AM52,0))) -> 74722.23535 | AN12: =IF(Inputs!$B$101=Inputs!$B$102,Inputs!AN15,IF(Inputs!$B$101=Inputs!$B$103,Inputs!AN40,IF(Inputs!$B$101=Inputs!$B$104,Inputs!AN52,0))) -> 74722.23535 | AO12: =IF(Inputs!$B$101=Inputs!$B$102,Inputs!AO15,IF(Inputs!$B$101=Inputs!$B$103,Inputs!AO40,IF(Inputs!$B$101=Inputs!$B$104,Inputs!AO52,0))) -> 74722.23535 | AP12: =IF(Inputs!$B$101=Inputs!$B$102,Inputs!AP15,IF(Inputs!$B$101=Inputs!$B$103,Inputs!AP40,IF(Inputs!$B$101=Inputs!$B$104,Inputs!AP52,0))) -> 74722.23535 | AQ12: =IF(Inputs!$B$101=Inputs!$B$102,Inputs!AQ15,IF(Inputs!$B$101=Inputs!$B$103,Inputs!AQ40,IF(Inputs!$B$101=Inputs!$B$104,Inputs!AQ52,0))) -> 74722.23535 | AR12: =IF(Inputs!$B$101=Inputs!$B$102,Inputs!AR15,IF(Inputs!$B$101=Inputs!$B$103,Inputs!AR40,IF(Inputs!$B$101=Inputs!$B$104,Inputs!AR52,0))) -> 74722.23535
A13: Total capex | E13: =SUM(E9:E12) -> 11401718.44 | F13: =SUM(F9:F12) -> 9629684.107 | G13: 5912932.36 | H13: 5857823.358 | I13: 5838588.926 | J13: 4137573.328 | K13: 3243477.761 | L13: 3217291.884 | M13: 2781605.937 | N13: 2750389.127 | O13: 2874507.911 | P13: 1927876.689 | Q13: 1923137.137 | R13: 1914612.991 | S13: 1909873.439 | T13: 1909488.778 | U13: 1903904.432 | V13: 1893081.198 | W13: 1890704.666 | X13: 2222172.463 | Y13: 2649879.611 | Z13: 2535643.244 | AA13: 2176679.482 | AB13: 2126628.959 | AC13: 2137090.067 | AD13: 2289199.851 | AE13: 2039793.287 | AF13: 2018428.751 | AG13: 2018428.751 | AH13: 2018428.751 | AI13: 2018428.751 | AJ13: 2018428.751 | AK13: 2018428.751 | AL13: 2018428.751 | AM13: 2018428.751 | AN13: 2018428.751 | AO13: 2018428.751 | AP13: 2018428.751 | AQ13: 2018428.751 | AR13: 2018428.751
A17: Opening DAV (Capex Only) | C17: Capex | D17: =Inputs!D94 -> 6828297.881
D18: =SUM(D16:D17) -> 6828297.881
A20: Basis of Depreciation | C20: FE
A22: Depreciation | C22: Useful Life
A23: Opening DAV | C23: =IF($C$20=$B$20,35,40) -> 40 | E23: =IF($C$20=$B$20,$D$18/$C$23,$D$18/$C$23) -> 170707.447 | F23: =IF($C$20=$B$20,$D$18/$C$23,$D$18/$C$23) -> 170707.447 | G23: 170707.447 | H23: 170707.447 | I23: 170707.447 | J23: 170707.447 | K23: 170707.447 | L23: 170707.447 | M23: 170707.447 | N23: 170707.447 | O23: 170707.447 | P23: 170707.447 | Q23: 170707.447 | R23: 170707.447 | S23: 170707.447 | T23: 170707.447 | U23: 170707.447 | V23: 170707.447 | W23: 170707.447 | X23: 170707.447 | Y23: 170707.447 | Z23: 170707.447 | AA23: 170707.447 | AB23: 170707.447 | AC23: 170707.447 | AD23: 170707.447 | AE23: 170707.447 | AF23: 170707.447 | AG23: 170707.447 | AH23: 170707.447 | AI23: 170707.447 | AJ23: 170707.447 | AK23: 170707.447 | AL23: 170707.447 | AM23: 170707.447 | AN23: =IF($C$20=$B$20,0,$D$18/$C$23) -> 170707.447 | AO23: =IF($C$20=$B$20,0,$D$18/$C$23) -> 170707.447 | AP23: 170707.447 | AQ23: 170707.447 | AR23: 170707.447
A24: Mains | C24: =IF($C$20=$B$20,35,40) -> 40 | E24: =IF($C$20=$B$20,SUM($E$9:E9)/$C$24,SUM($E$9:E9)/$C$24) -> 201588.2612 | F24: =IF($C$20=$B$20,SUM($E$9:F9)/$C$24,SUM($E$9:F9)/$C$24) -> 371065.6387 | G24: =IF($C$20=$B$20,SUM($E$9:G9)/$C$24,SUM($E$9:G9)/$C$24) -> 467967.9492 | H24: =IF($C$20=$B$20,SUM($E$9:H9)/$C$24,SUM($E$9:H9)/$C$24) -> 565022.7755 | I24: =IF($C$20=$B$20,SUM($E$9:I9)/$C$24,SUM($E$9:I9)/$C$24) -> 661233.5167 | J24: =IF($C$20=$B$20,SUM($E$9:J9)/$C$24,SUM($E$9:J9)/$C$24) -> 719375.6431 | K24: =IF($C$20=$B$20,SUM($E$9:K9)/$C$24,SUM($E$9:K9)/$C$24) -> 762402.9952 | L24: =IF($C$20=$B$20,SUM($E$9:L9)/$C$24,SUM($E$9:L9)/$C$24) -> 805607.3758 | M24: =IF($C$20=$B$20,SUM($E$9:M9)/$C$24,SUM($E$9:M9)/$C$24) -> 839460.3083 | N24: =IF($C$20=$B$20,SUM($E$9:N9)/$C$24,SUM($E$9:N9)/$C$24) -> 873285.5568 | O24: =IF($C$20=$B$20,SUM($E$9:O9)/$C$24,SUM($E$9:O9)/$C$24) -> 907350.9728 | P24: =IF($C$20=$B$20,SUM($E$9:P9)/$C$24,SUM($E$9:P9)/$C$24) -> 918326.0763 | Q24: =IF($C$20=$B$20,SUM($E$9:Q9)/$C$24,SUM($E$9:Q9)/$C$24) -> 929282.1264 | R24: =IF($C$20=$B$20,SUM($E$9:R9)/$C$24,SUM($E$9:R9)/$C$24) -> 940239.8459 | S24: =IF($C$20=$B$20,SUM($E$9:S9)/$C$24,SUM($E$9:S9)/$C$24) -> 951178.512 | T24: =IF($C$20=$B$20,SUM($E$9:T9)/$C$24,SUM($E$9:T9)/$C$24) -> 962127.8024 | U24: =IF($C$20=$B$20,SUM($E$9:U9)/$C$24,SUM($E$9:U9)/$C$24) -> 973057.2287 | V24: =IF($C$20=$B$20,SUM($E$9:V9)/$C$24,SUM($E$9:V9)/$C$24) -> 983973.9511 | W24: =IF($C$20=$B$20,SUM($E$9:W9)/$C$24,SUM($E$9:W9)/$C$24) -> 994897.6371 | X24: =IF($C$20=$B$20,SUM($E$9:X9)/$C$24,SUM($E$9:X9)/$C$24) -> 1005808.66 | Y24: =IF($C$20=$B$20,SUM($E$9:Y9)/$C$24,SUM($E$9:Y9)/$C$24) -> 1016234.611 | Z24: =IF($C$20=$B$20,SUM($E$9:Z9)/$C$24,SUM($E$9:Z9)/$C$24) -> 1026635.404 | AA24: =IF($C$20=$B$20,SUM($E$9:AA9)/$C$24,SUM($E$9:AA9)/$C$24) -> 1037042.261 | AB24: =IF($C$20=$B$20,SUM($E$9:AB9)/$C$24,SUM($E$9:AB9)/$C$24) -> 1047423.96 | AC24: =IF($C$20=$B$20,SUM($E$9:AC9)/$C$24,SUM($E$9:AC9)/$C$24) -> 1057816.283 | AD24: =IF($C$20=$B$20,SUM($E$9:AD9)/$C$24,SUM($E$9:AD9)/$C$24) -> 1068192.282 | AE24: =IF($C$20=$B$20,SUM($E$9:AE9)/$C$24,SUM($E$9:AE9)/$C$24) -> 1078577.075 | AF24: =IF($C$20=$B$20,SUM($E$9:AF9)/$C$24,SUM($E$9:AF9)/$C$24) -> 1088945.665 | AG24: =IF($C$20=$B$20,SUM($E$9:AG9)/$C$24,SUM($E$9:AG9)/$C$24) -> 1099314.254 | AH24: =IF($C$20=$B$20,SUM($E$9:AH9)/$C$24,SUM($E$9:AH9)/$C$24) -> 1109682.844 | AI24: =IF($C$20=$B$20,SUM($E$9:AI9)/$C$24,SUM($E$9:AI9)/$C$24) -> 1120051.433 | AJ24: =IF($C$20=$B$20,SUM($E$9:AJ9)/$C$24,SUM($E$9:AJ9)/$C$24) -> 1130420.023 | AK24: =IF($C$20=$B$20,SUM($E$9:AK9)/$C$24,SUM($E$9:AK9)/$C$24) -> 1140788.612 | AL24: =IF($C$20=$B$20,SUM($E$9:AL9)/$C$24,SUM($E$9:AL9)/$C$24) -> 1151157.202 | AM24: =IF($C$20=$B$20,SUM(E9:AM9)/$C$24,SUM($E$9:AM9)/$C$24) -> 1161525.791 | AN24: =IF($C$20=$B$20,SUM(F9:AN9)/$C$24,SUM($E$9:AN9)/$C$24) -> 1171894.381 | AO24: =IF($C$20=$B$20,SUM(G9:AO9)/$C$24,SUM($E$9:AO9)/$C$24) -> 1182262.97 | AP24: =IF($C$20=$B$20,SUM(H9:AP9)/$C$24,SUM($E$9:AP9)/$C$24) -> 1192631.56 | AQ24: =IF($C$20=$B$20,SUM(I9:AQ9)/$C$24,SUM($E$9:AQ9)/$C$24) -> 1203000.149 | AR24: =IF($C$20=$B$20,SUM(J9:AR9)/$C$24,SUM($E$9:AR9)/$C$24) -> 1213368.739
A25: Services | C25: 40 | E25: =IF($C$20=$B$20,SUM($E$10:E10)/$C$25,SUM($E$10:E10)/$C$25) -> 48246.52202 | F25: =IF($C$20=$B$20,SUM($E$10:F10)/$C$25,SUM($E$10:F10)/$C$25) -> 87001.85603 | G25: =IF($C$20=$B$20,SUM($E$10:G10)/$C$25,SUM($E$10:G10)/$C$25) -> 114176.5513 | H25: =IF($C$20=$B$20,SUM($E$10:H10)/$C$25,SUM($E$10:H10)/$C$25) -> 140832.0558 | I25: =IF($C$20=$B$20,SUM($E$10:I10)/$C$25,SUM($E$10:I10)/$C$25) -> 167691.7835 | J25: =IF($C$20=$B$20,SUM($E$10:J10)/$C$25,SUM($E$10:J10)/$C$25) -> 193434.3872 | K25: =IF($C$20=$B$20,SUM($E$10:K10)/$C$25,SUM($E$10:K10)/$C$25) -> 218140.0252 | L25: =IF($C$20=$B$20,SUM($E$10:L10)/$C$25,SUM($E$10:L10)/$C$25) -> 242465.7257 | M25: =IF($C$20=$B$20,SUM($E$10:M10)/$C$25,SUM($E$10:M10)/$C$25) -> 266006.8089 | N25: =IF($C$20=$B$20,SUM($E$10:N10)/$C$25,SUM($E$10:N10)/$C$25) -> 289144.569 | O25: =IF($C$20=$B$20,SUM($E$10:O10)/$C$25,SUM($E$10:O10)/$C$25) -> 314810.4874 | P25: =IF($C$20=$B$20,SUM($E$10:P10)/$C$25,SUM($E$10:P10)/$C$25) -> 340338.1175 | Q25: =IF($C$20=$B$20,SUM($E$10:Q10)/$C$25,SUM($E$10:Q10)/$C$25) -> 365801.6974 | R25: =IF($C$20=$B$20,SUM($E$10:R10)/$C$25,SUM($E$10:R10)/$C$25) -> 391155.4875 | S25: =IF($C$20=$B$20,SUM($E$10:S10)/$C$25,SUM($E$10:S10)/$C$25) -> 416445.2273 | T25: =IF($C$20=$B$20,SUM($E$10:T10)/$C$25,SUM($E$10:T10)/$C$25) -> 441714.7263 | U25: =IF($C$20=$B$20,SUM($E$10:U10)/$C$25,SUM($E$10:U10)/$C$25) -> 466912.0673 | V25: =IF($C$20=$B$20,SUM($E$10:V10)/$C$25,SUM($E$10:V10)/$C$25) -> 491982.3697 | W25: =IF($C$20=$B$20,SUM($E$10:W10)/$C$25,SUM($E$10:W10)/$C$25) -> 516995.8251 | X25: =IF($C$20=$B$20,SUM($E$10:X10)/$C$25,SUM($E$10:X10)/$C$25) -> 542009.1307 | Y25: =IF($C$20=$B$20,SUM($E$10:Y10)/$C$25,SUM($E$10:Y10)/$C$25) -> 562045.2372 | Z25: =IF($C$20=$B$20,SUM($E$10:Z10)/$C$25,SUM($E$10:Z10)/$C$25) -> 581956.2428 | AA25: =IF($C$20=$B$20,SUM($E$10:AA10)/$C$25,SUM($E$10:AA10)/$C$25) -> 601801.4101 | AB25: =IF($C$20=$B$20,SUM($E$10:AB10)/$C$25,SUM($E$10:AB10)/$C$25) -> 621521.4766 | AC25: =IF($C$20=$B$20,SUM($E$10:AC10)/$C$25,SUM($E$10:AC10)/$C$25) -> 641221.3023 | AD25: =IF($C$20=$B$20,SUM($E$10:AD10)/$C$25,SUM($E$10:AD10)/$C$25) -> 660884.3721 | AE25: =IF($C$20=$B$20,SUM($E$10:AE10)/$C$25,SUM($E$10:AE10)/$C$25) -> 680508.898 | AF25: =IF($C$20=$B$20,SUM($E$10:AF10)/$C$25,SUM($E$10:AF10)/$C$25) -> 700097.8719 | AG25: =IF($C$20=$B$20,SUM($E$10:AG10)/$C$25,SUM($E$10:AG10)/$C$25) -> 719686.8459 | AH25: =IF($C$20=$B$20,SUM($E$10:AH10)/$C$25,SUM($E$10:AH10)/$C$25) -> 739275.8199 | AI25: =IF($C$20=$B$20,SUM($E$10:AI10)/$C$25,SUM($E$10:AI10)/$C$25) -> 758864.7939 | AJ25: =IF($C$20=$B$20,SUM($E$10:AJ10)/$C$25,SUM($E$10:AJ10)/$C$25) -> 778453.7679 | AK25: =IF($C$20=$B$20,SUM($E$10:AK10)/$C$25,SUM($E$10:AK10)/$C$25) -> 798042.7418 | AL25: =IF($C$20=$B$20,SUM($E$10:AL10)/$C$25,SUM($E$10:AL10)/$C$25) -> 817631.7158 | AM25: =IF($C$20=$B$20,SUM(E10:AM10)/$C$25,SUM($E$10:AM10)/$C$25) -> 837220.6898 | AN25: =IF($C$20=$B$20,SUM(F10:AN10)/$C$25,SUM($E$10:AN10)/$C$25) -> 856809.6638 | AO25: =IF($C$20=$B$20,SUM(G10:AO10)/$C$25,SUM($E$10:AO10)/$C$25) -> 876398.6378 | AP25: =IF($C$20=$B$20,SUM(H10:AP10)/$C$25,SUM($E$10:AP10)/$C$25) -> 895987.6118 | AQ25: =IF($C$20=$B$20,SUM(I10:AQ10)/$C$25,SUM($E$10:AQ10)/$C$25) -> 915576.5857 | AR25: =IF($C$20=$B$20,SUM(J10:AR10)/$C$25,SUM($E$10:AR10)/$C$25) -> 935165.5597
A26: Meters, PRS, Telemetry | C26: =IF($C$20=$B$20,35,15) -> 15 | E26: =IF($C$20=$B$20,SUM($E$11:E11)/$C$26,SUM($E$11:E11)/$C$26) -> 68328.6104 | F26: =IF($C$20=$B$20,SUM($E$11:F11)/$C$26,SUM($E$11:F11)/$C$26) -> 129665.5444 | G26: =IF($C$20=$B$20,SUM($E$11:G11)/$C$26,SUM($E$11:G11)/$C$26) -> 167787.3383 | H26: =IF($C$20=$B$20,SUM($E$11:H11)/$C$26,SUM($E$11:H11)/$C$26) -> 203365.1684 | I26: =IF($C$20=$B$20,SUM($E$11:I11)/$C$26,SUM($E$11:I11)/$C$26) -> 239518.2524 | J26: =IF($C$20=$B$20,SUM($E$11:J11)/$C$26,SUM($E$11:J11)/$C$26) -> 286682.3782 | K26: =IF($C$20=$B$20,SUM($E$11:K11)/$C$26,SUM($E$11:K11)/$C$26) -> 317311.4395 | L26: =IF($C$20=$B$20,SUM($E$11:L11)/$C$26,SUM($E$11:L11)/$C$26) -> 346735.8666 | M26: =IF($C$20=$B$20,SUM($E$11:M11)/$C$26,SUM($E$11:M11)/$C$26) -> 374144.0717 | N26: =IF($C$20=$B$20,SUM($E$11:N11)/$C$26,SUM($E$11:N11)/$C$26) -> 400620.508 | O26: =IF($C$20=$B$20,SUM($E$11:O11)/$C$26,SUM($E$11:O11)/$C$26) -> 427989.3283 | P26: =IF($C$20=$B$20,SUM($E$11:P11)/$C$26,SUM($E$11:P11)/$C$26) -> 454192.3354 | Q26: =IF($C$20=$B$20,SUM($E$11:Q11)/$C$26,SUM($E$11:Q11)/$C$26) -> 480300.9821 | R26: =IF($C$20=$B$20,SUM($E$11:R11)/$C$26,SUM($E$11:R11)/$C$26) -> 506129.6736 | S26: =IF($C$20=$B$20,SUM($E$11:S11)/$C$26,SUM(E11:S11)/$C$26) -> 531864.0047 | T26: =IF($C$20=$B$20,SUM($E$11:T11)/$C$26,SUM(F11:T11)/$C$26) -> 489269.7253 | U26: =IF($C$20=$B$20,SUM($E$11:U11)/$C$26,SUM(G11:U11)/$C$26) -> 453540.2252 | V26: =IF($C$20=$B$20,SUM($E$11:V11)/$C$26,SUM(H11:V11)/$C$26) -> 440676.9629 | W26: =IF($C$20=$B$20,SUM($E$11:W11)/$C$26,SUM(I11:W11)/$C$26) -> 430332.2509 | X26: =IF($C$20=$B$20,SUM($E$11:X11)/$C$26,SUM(J11:X11)/$C$26) -> 441544.3066 | Y26: =IF($C$20=$B$20,SUM($E$11:Y11)/$C$26,SUM(K11:Y11)/$C$26) -> 484825.1856 | Z26: =IF($C$20=$B$20,SUM($E$11:Z11)/$C$26,SUM(L11:Z11)/$C$26) -> 537426.0628 | AA26: =IF($C$20=$B$20,SUM($E$11:AA11)/$C$26,SUM(M11:AA11)/$C$26) -> 567460.0531 | AB26: =IF($C$20=$B$20,SUM($E$11:AB11)/$C$26,SUM(N11:AB11)/$C$26) -> 596574.2555 | AC26: =IF($C$20=$B$20,SUM($E$11:AC11)/$C$26,SUM(O11:AC11)/$C$26) -> 627343.2779 | AD26: =IF($C$20=$B$20,SUM($E$11:AD11)/$C$26,SUM(P11:AD11)/$C$26) -> 667502.1151 | AE26: =IF($C$20=$B$20,SUM($E$11:AE11)/$C$26,SUM(Q11:AE11)/$C$26) -> 692278.9942 | AF26: =IF($C$20=$B$20,SUM($E$11:AF11)/$C$26,SUM(R11:AF11)/$C$26) -> 715863.9458 | AG26: =IF($C$20=$B$20,SUM($E$11:AG11)/$C$26,SUM(S11:AG11)/$C$26) -> 739728.8527 | AH26: =IF($C$20=$B$20,SUM($E$11:AH11)/$C$26,SUM(T11:AH11)/$C$26) -> 763688.1199 | AI26: =IF($C$20=$B$20,SUM($E$11:AI11)/$C$26,SUM(U11:AI11)/$C$26) -> 787647.3872 | AJ26: =IF($C$20=$B$20,SUM($E$11:AJ11)/$C$26,SUM(V11:AJ11)/$C$26) -> 811733.5518 | AK26: =IF($C$20=$B$20,SUM($E$11:AK11)/$C$26,SUM(W11:AK11)/$C$26) -> 836168.6185 | AL26: =IF($C$20=$B$20,SUM($E$11:AL11)/$C$26,SUM(X11:AL11)/$C$26) -> 860629.0987 | AM26: =IF($C$20=$B$20,SUM(E11:AM11)/$C$26,SUM(Y11:AM11)/$C$26) -> 862957.5574 | AN26: =IF($C$20=$B$20,SUM(F11:AN11)/$C$26,SUM(Z11:AN11)/$C$26) -> 822206.151 | AO26: 788669.8108 | AP26: 778904.9918 | AQ26: 772076.1826 | AR26: =IF($C$20=$B$20,SUM(J11:AR11)/$C$26,SUM(AD11:AR11)/$C$26) -> 764524.3222
A27: Other Capex | C27: =IF($C$20=$B$20,35,5) -> 5 | E27: =IF($C$20=$B$20,SUM($E$12:E12)/$C$27,SUM($E$12:E12)/$C$27) -> 76679.59152 | F27: =IF($C$20=$B$20,SUM($E$12:F12)/$C$27,SUM($E$12:F12)/$C$27) -> 152743.9185 | G27: =IF($C$20=$B$20,SUM($E$12:G12)/$C$27,SUM($E$12:G12)/$C$27) -> 228348.9628 | H27: =IF($C$20=$B$20,SUM($E$12:H12)/$C$27,SUM($E$12:H12)/$C$27) -> 303497.4978 | I27: =IF($C$20=$B$20,SUM($E$12:I12)/$C$27,SUM(E12:I12)/$C$27) -> 378192.2798 | J27: =IF($C$20=$B$20,SUM($E$12:J12)/$C$27,SUM(F12:J12)/$C$27) -> 316457.1353 | K27: =IF($C$20=$B$20,SUM($E$12:K12)/$C$27,SUM(G12:K12)/$C$27) -> 255337.2554 | L27: =IF($C$20=$B$20,SUM($E$12:L12)/$C$27,SUM(H12:L12)/$C$27) -> 194676.6581 | M27: =IF($C$20=$B$20,SUM($E$12:M12)/$C$27,SUM(I12:M12)/$C$27) -> 134472.5703 | N27: =IF($C$20=$B$20,SUM($E$12:N12)/$C$27,SUM(J12:N12)/$C$27) -> 74722.23535 | O27: =IF($C$20=$B$20,SUM($E$12:O12)/$C$27,SUM(K12:O12)/$C$27) -> 74722.23535 | P27: =IF($C$20=$B$20,SUM($E$12:P12)/$C$27,SUM(L12:P12)/$C$27) -> 74722.23535 | Q27: =IF($C$20=$B$20,SUM($E$12:Q12)/$C$27,SUM(M12:Q12)/$C$27) -> 74722.23535 | R27: =IF($C$20=$B$20,SUM($E$12:R12)/$C$27,SUM(N12:R12)/$C$27) -> 74722.23535 | S27: =IF($C$20=$B$20,SUM($E$12:S12)/$C$27,SUM(O12:S12)/$C$27) -> 74722.23535 | T27: =IF($C$20=$B$20,SUM($E$12:T12)/$C$27,SUM(P12:T12)/$C$27) -> 74722.23535 | U27: =IF($C$20=$B$20,SUM($E$12:U12)/$C$27,SUM(Q12:U12)/$C$27) -> 74722.23535 | V27: =IF($C$20=$B$20,SUM($E$12:V12)/$C$27,SUM(R12:V12)/$C$27) -> 74722.23535 | W27: =IF($C$20=$B$20,SUM($E$12:W12)/$C$27,SUM(S12:W12)/$C$27) -> 74722.23535 | X27: =IF($C$20=$B$20,SUM($E$12:X12)/$C$27,SUM(T12:X12)/$C$27) -> 74722.23535 | Y27: =IF($C$20=$B$20,SUM($E$12:Y12)/$C$27,SUM(U12:Y12)/$C$27) -> 74722.23535 | Z27: =IF($C$20=$B$20,SUM($E$12:Z12)/$C$27,SUM(V12:Z12)/$C$27) -> 74722.23535 | AA27: =IF($C$20=$B$20,SUM($E$12:AA12)/$C$27,SUM(W12:AA12)/$C$27) -> 74722.23535 | AB27: =IF($C$20=$B$20,SUM($E$12:AB12)/$C$27,SUM(X12:AB12)/$C$27) -> 74722.23535 | AC27: =IF($C$20=$B$20,SUM($E$12:AC12)/$C$27,SUM(Y12:AC12)/$C$27) -> 74722.23535 | AD27: =IF($C$20=$B$20,SUM($E$12:AD12)/$C$27,SUM(Z12:AD12)/$C$27) -> 74722.23535 | AE27: =IF($C$20=$B$20,SUM($E$12:AE12)/$C$27,SUM(AA12:AE12)/$C$27) -> 74722.23535 | AF27: =IF($C$20=$B$20,SUM($E$12:AF12)/$C$27,SUM(AB12:AF12)/$C$27) -> 74722.23535 | AG27: =IF($C$20=$B$20,SUM($E$12:AG12)/$C$27,SUM(AC12:AG12)/$C$27) -> 74722.23535 | AH27: =IF($C$20=$B$20,SUM($E$12:AH12)/$C$27,SUM(AD12:AH12)/$C$27) -> 74722.23535 | AI27: =IF($C$20=$B$20,SUM($E$12:AI12)/$C$27,SUM(AE12:AI12)/$C$27) -> 74722.23535 | AJ27: =IF($C$20=$B$20,SUM($E$12:AJ12)/$C$27,SUM(AF12:AJ12)/$C$27) -> 74722.23535 | AK27: =IF($C$20=$B$20,SUM($E$12:AK12)/$C$27,SUM(AG12:AK12)/$C$27) -> 74722.23535 | AL27: =IF($C$20=$B$20,SUM($E$12:AL12)/$C$27,SUM(AH12:AL12)/$C$27) -> 74722.23535 | AM27: =IF($C$20=$B$20,SUM(E12:AM12)/$C$27,SUM(AI12:AM12)/$C$27) -> 74722.23535 | AN27: =IF($C$20=$B$20,SUM(F12:AN12)/$C$27,SUM(AJ12:AN12)/$C$27) -> 74722.23535 | AO27: 74722.23535 | AP27: 74722.23535 | AQ27: 74722.23535 | AR27: =IF($C$20=$B$20,SUM(J12:AR12)/$C$27,SUM(AN12:AR12)/$C$27) -> 74722.23535
A28: Total depreciation | E28: =SUM(E23:E27) -> 565550.4322 | F28: =SUM(F23:F27) -> 911184.4046 | G28: 1148988.249 | H28: 1383424.945 | I28: 1617343.279 | J28: 1686656.991 | K28: 1723899.162 | L28: 1760193.073 | M28: 1784791.206 | N28: 1808480.316 | O28: 1895580.471 | P28: 1958286.212 | Q28: 2020814.488 | R28: 2082954.689 | S28: 2144917.426 | T28: 2138541.936 | U28: 2138939.204 | V28: 2162062.966 | W28: 2187655.395 | X28: 2234791.779 | Y28: 2308534.716 | Z28: 2391447.392 | AA28: 2451733.407 | AB28: 2510949.374 | AC28: 2571810.545 | AD28: 2642008.451 | AE28: 2696794.649 | AF28: 2750337.165 | AG28: 2804159.635 | AH28: 2858076.466 | AI28: 2911993.297 | AJ28: 2966037.025 | AK28: 3020429.655 | AL28: 3074847.699 | AM28: 3107133.721 | AN28: 3096339.878 | AO28: 3092761.101 | AP28: 3112953.846 | AQ28: 3136082.6 | AR28: 3158488.303
A30: DAV
A31: Opening balance | E31: =D34 -> 6828297.881 | F31: =E34 -> 17664465.89 | G31: 26382965.59 | H31: 31146909.7 | I31: 35621308.12 | J31: 39842553.76 | K31: 42293470.1 | L31: 43813048.7 | M31: 45270147.51 | N31: 46266962.24 | O31: 47208871.05 | P31: 48187798.49 | Q31: 48157388.97 | R31: 48059711.62 | S31: 47891369.92 | T31: 47656325.93 | U31: 47427272.77 | V31: 47192238 | W31: =V34 -> 46923256.24 | X31: =W34 -> 46626305.51 | Y31: =X34 -> 46613686.19 | Z31: =Y34 -> 46955031.09 | AA31: =Z34 -> 47099226.94 | AB31: =AA34 -> 46824173.01 | AC31: =AB34 -> 46439852.6 | AD31: =AC34 -> 46005132.12 | AE31: =AD34 -> 45652323.52 | AF31: =AE34 -> 44995322.16 | AG31: =AF34 -> 44263413.74 | AH31: 43477682.86 | AI31: 42638035.15 | AJ31: 41744470.6 | AK31: 40796862.33 | AL31: 39794861.43 | AM31: 38738442.48 | AN31: 37649737.51 | AO31: 36571826.38 | AP31: 35497494.03 | AQ31: 34402968.94 | AR31: 33285315.09
A32: Capex | E32: =E13 -> 11401718.44 | F32: =F13 -> 9629684.107 | G32: 5912932.36 | H32: 5857823.358 | I32: 5838588.926 | J32: 4137573.328 | K32: 3243477.761 | L32: 3217291.884 | M32: 2781605.937 | N32: 2750389.127 | O32: 2874507.911 | P32: 1927876.689 | Q32: 1923137.137 | R32: 1914612.991 | S32: 1909873.439 | T32: 1909488.778 | U32: 1903904.432 | V32: 1893081.198 | W32: 1890704.666 | X32: 2222172.463 | Y32: 2649879.611 | Z32: 2535643.244 | AA32: 2176679.482 | AB32: 2126628.959 | AC32: 2137090.067 | AD32: 2289199.851 | AE32: 2039793.287 | AF32: 2018428.751 | AG32: 2018428.751 | AH32: 2018428.751 | AI32: 2018428.751 | AJ32: 2018428.751 | AK32: 2018428.751 | AL32: 2018428.751 | AM32: 2018428.751 | AN32: 2018428.751 | AO32: 2018428.751 | AP32: 2018428.751 | AQ32: 2018428.751 | AR32: 2018428.751
A33: Depreciation | E33: =-E28 -> -565550.4322 | F33: =-F28 -> -911184.4046 | G33: -1148988.249 | H33: -1383424.945 | I33: -1617343.279 | J33: -1686656.991 | K33: -1723899.162 | L33: -1760193.073 | M33: -1784791.206 | N33: -1808480.316 | O33: -1895580.471 | P33: -1958286.212 | Q33: -2020814.488 | R33: -2082954.689 | S33: -2144917.426 | T33: -2138541.936 | U33: -2138939.204 | V33: -2162062.966 | W33: -2187655.395 | X33: -2234791.779 | Y33: -2308534.716 | Z33: -2391447.392 | AA33: -2451733.407 | AB33: -2510949.374 | AC33: -2571810.545 | AD33: -2642008.451 | AE33: -2696794.649 | AF33: -2750337.165 | AG33: -2804159.635 | AH33: -2858076.466 | AI33: -2911993.297 | AJ33: -2966037.025 | AK33: -3020429.655 | AL33: -3074847.699 | AM33: -3107133.721 | AN33: -3096339.878 | AO33: -3092761.101 | AP33: -3112953.846 | AQ33: -3136082.6 | AR33: -3158488.303
A34: Closing balance | D34: =D18 -> 6828297.881 | E34: =SUM(E31:E33) -> 17664465.89 | F34: =SUM(F31:F33) -> 26382965.59 | G34: 31146909.7 | H34: 35621308.12 | I34: 39842553.76 | J34: 42293470.1 | K34: 43813048.7 | L34: 45270147.51 | M34: 46266962.24 | N34: 47208871.05 | O34: 48187798.49 | P34: 48157388.97 | Q34: 48059711.62 | R34: 47891369.92 | S34: 47656325.93 | T34: 47427272.77 | U34: 47192238 | V34: 46923256.24 | W34: 46626305.51 | X34: 46613686.19 | Y34: 46955031.09 | Z34: 47099226.94 | AA34: 46824173.01 | AB34: 46439852.6 | AC34: 46005132.12 | AD34: 45652323.52 | AE34: 44995322.16 | AF34: 44263413.74 | AG34: 43477682.86 | AH34: 42638035.15 | AI34: 41744470.6 | AJ34: 40796862.33 | AK34: 39794861.43 | AL34: 38738442.48 | AM34: 37649737.51 | AN34: 36571826.38 | AO34: 35497494.03 | AP34: 34402968.94 | AQ34: 33285315.09 | AR34: 32145255.54

Sheet GD17 Pi's Calc - 40 yrs
A1: =242.7/193.4 -> 1.254912099
A2: SGN P Tariff Model - Calculation of Pi tariffs, Allowed Revenues, PA and TRV | D2: Return
D3: GD17 | E3: 0.062
B4: Av £2014 | D4: Post GD17 | E4: 0.055
B5: £'000
A6: Real Return pa | D6: =E3 -> 0.062 | E6: =D6 -> 0.062 | F6: =E6 -> 0.062 | G6: =F6 -> 0.062 | H6: =G6 -> 0.062 | I6: =E4 -> 0.055 | J6: =I6 -> 0.055 | K6: =J6 -> 0.055 | L6: 0.055 | M6: 0.055 | N6: 0.055 | O6: 0.055 | P6: 0.055 | Q6: 0.055 | R6: 0.055 | S6: 0.055 | T6: 0.055 | U6: 0.055 | V6: 0.055 | W6: 0.055 | X6: 0.055 | Y6: 0.055 | Z6: 0.055 | AA6: 0.055 | AB6: 0.055 | AC6: 0.055 | AD6: 0.055 | AE6: 0.055 | AF6: 0.055 | AG6: 0.055 | AH6: 0.055 | AI6: 0.055 | AJ6: 0.055 | AK6: 0.055 | AL6: 0.055 | AM6: 0.055 | AN6: 0.055 | AO6: 0.055 | AP6: 0.055 | AQ6: 0.055
A7: Discount Factor (Mid Yr) | B7: 0.5 | C7: 1 | D7: =D8*(1+D6*$B$7) -> 0.9708097928 | E7: =E8*(1+E6*$B$7) -> 0.9141335149 | F7: 0.8607660216 | G7: 0.8105141446 | H7: 0.763195993 | I7: 0.7209527242 | J7: 0.6833675111 | K7: =K8*(1+K6*$B$7) -> 0.6477417167 | L7: 0.6139731911 | M7: 0.5819651101 | N7: 0.5516256968 | O7: =O8*(1+O6*$B$7) -> 0.522867959 | P7: 0.4956094398 | Q7: 0.4697719809 | R7: 0.4452814985 | S7: 0.4220677711 | T7: 0.400064238 | U7: 0.3792078085 | V7: =V8*(1+V6*$B$7) -> 0.359438681 | W7: =W8*(1+W6*$B$7) -> 0.3407001716 | X7: 0.3229385513 | Y7: =Y8*(1+Y6*$B$7) -> 0.3061028922 | Z7: 0.2901449215 | AA7: 0.275018883 | AB7: 0.2606814057 | AC7: 0.2470913798 | AD7: 0.2342098386 | AE7: 0.2219998471 | AF7: =AF8*(1+AF6*$B$7) -> 0.2104263953 | AG7: =AG8*(1+AG6*$B$7) -> 0.1994562989 | AH7: 0.1890581032 | AI7: 0.1792019936 | AJ7: 0.1698597095 | AK7: 0.161004464 | AL7: 0.1526108664 | AM7: 0.1446548496 | AN7: 0.1371136015 | AO7: =AO8*(1+AO6*$B$7) -> 0.1299654991 | AP7: 0.1231900465 | AQ7: 0.1167678166
A8: Discount Factor (Yr End) | C8: 1 | D8: =C8/(1+D6) -> 0.9416195857 | E8: =D8/(1+E6) -> 0.8866474442 | F8: =E8/(1+F6) -> 0.834884599 | G8: 0.7861436902 | H8: 0.7402482959 | I8: 0.7016571525 | J8: 0.6650778697 | K8: 0.6304055637 | L8: 0.5975408186 | M8: 0.5663894015 | N8: 0.536861992 | O8: 0.5088739261 | P8: 0.4823449536 | Q8: 0.4571990082 | R8: 0.4333639888 | S8: 0.4107715533 | T8: 0.3893569226 | U8: 0.3690586944 | V8: 0.3498186677 | W8: 0.3315816755 | X8: 0.314295427 | Y8: 0.2979103574 | Z8: 0.2823794857 | AA8: 0.2676582803 | AB8: 0.2537045311 | AC8: 0.2404782285 | AD8: 0.2279414488 | AE8: 0.2160582453 | AF8: 0.2047945453 | AG8: =AF8/(1+AG6) -> 0.1941180524 | AH8: =AG8/(1+AH6) -> 0.183998154 | AI8: =AH8/(1+AI6) -> 0.1744058331 | AJ8: =AI8/(1+AJ6) -> 0.1653135859 | AK8: =AJ8/(1+AK6) -> 0.1566953421 | AL8: =AK8/(1+AL6) -> 0.1485263906 | AM8: =AL8/(1+AM6) -> 0.1407833086 | AN8: =AM8/(1+AN6) -> 0.1334438944 | AO8: =AN8/(1+AO6) -> 0.1264871037 | AP8: =AO8/(1+AP6) -> 0.1198929893 | AQ8: =AP8/(1+AQ6) -> 0.1136426439
C12: 2017 | D12: =C12+1 -> 2018 | E12: =D12+1 -> 2019 | F12: 2020 | G12: 2021 | H12: 2022 | I12: 2023 | J12: 2024 | K12: 2025 | L12: 2026 | M12: 2027 | N12: 2028 | O12: 2029 | P12: 2030 | Q12: 2031 | R12: 2032 | S12: 2033 | T12: 2034 | U12: 2035 | V12: 2036 | W12: 2037 | X12: 2038 | Y12: 2039 | Z12: 2040 | AA12: 2041 | AB12: 2042 | AC12: 2043 | AD12: 2044 | AE12: 2045 | AF12: 2046 | AG12: 2047 | AH12: 2048 | AI12: 2049 | AJ12: 2050 | AK12: 2051 | AL12: 2052 | AM12: 2053 | AN12: 2054 | AO12: 2055 | AP12: 2056 | AQ12: 2057
A14: Capex | D14: =IF(Inputs!$B$101=Inputs!$B$102,Inputs!E56/1000,IF(Inputs!$B$101=Inputs!$B$103,Inputs!E58/1000,IF(Inputs!$B$101=Inputs!$B$104,Inputs!E59/1000,0))) -> 11401.71844 | E14: =IF(Inputs!$B$101=Inputs!$B$102,Inputs!F56/1000,IF(Inputs!$B$101=Inputs!$B$103,Inputs!F58/1000,IF(Inputs!$B$101=Inputs!$B$104,Inputs!F59/1000,0))) -> 9629.684107 | F14: =IF(Inputs!$B$101=Inputs!$B$102,Inputs!G56/1000,IF(Inputs!$B$101=Inputs!$B$103,Inputs!G58/1000,IF(Inputs!$B$101=Inputs!$B$104,Inputs!G59/1000,0))) -> 5912.93236 | G14: =IF(Inputs!$B$101=Inputs!$B$102,Inputs!H56/1000,IF(Inputs!$B$101=Inputs!$B$103,Inputs!H58/1000,IF(Inputs!$B$101=Inputs!$B$104,Inputs!H59/1000,0))) -> 5857.823358 | H14: =IF(Inputs!$B$101=Inputs!$B$102,Inputs!I56/1000,IF(Inputs!$B$101=Inputs!$B$103,Inputs!I58/1000,IF(Inputs!$B$101=Inputs!$B$104,Inputs!I59/1000,0))) -> 5838.588926 | I14: =IF(Inputs!$B$101=Inputs!$B$102,Inputs!J56/1000,IF(Inputs!$B$101=Inputs!$B$103,Inputs!J58/1000,IF(Inputs!$B$101=Inputs!$B$104,Inputs!J59/1000,0))) -> 4137.573328 | J14: =IF(Inputs!$B$101=Inputs!$B$102,Inputs!K56/1000,IF(Inputs!$B$101=Inputs!$B$103,Inputs!K58/1000,IF(Inputs!$B$101=Inputs!$B$104,Inputs!K59/1000,0))) -> 3243.477761 | K14: =IF(Inputs!$B$101=Inputs!$B$102,Inputs!L56/1000,IF(Inputs!$B$101=Inputs!$B$103,Inputs!L58/1000,IF(Inputs!$B$101=Inputs!$B$104,Inputs!L59/1000,0))) -> 3217.291884 | L14: =IF(Inputs!$B$101=Inputs!$B$102,Inputs!M56/1000,IF(Inputs!$B$101=Inputs!$B$103,Inputs!M58/1000,IF(Inputs!$B$101=Inputs!$B$104,Inputs!M59/1000,0))) -> 2781.605937 | M14: =IF(Inputs!$B$101=Inputs!$B$102,Inputs!N56/1000,IF(Inputs!$B$101=Inputs!$B$103,Inputs!N58/1000,IF(Inputs!$B$101=Inputs!$B$104,Inputs!N59/1000,0))) -> 2750.389127 | N14: =IF(Inputs!$B$101=Inputs!$B$102,Inputs!O56/1000,IF(Inputs!$B$101=Inputs!$B$103,Inputs!O58/1000,IF(Inputs!$B$101=Inputs!$B$104,Inputs!O59/1000,0))) -> 2874.507911 | O14: =IF(Inputs!$B$101=Inputs!$B$102,Inputs!P56/1000,IF(Inputs!$B$101=Inputs!$B$103,Inputs!P58/1000,IF(Inputs!$B$101=Inputs!$B$104,Inputs!P59/1000,0))) -> 1927.876689 | P14: =IF(Inputs!$B$101=Inputs!$B$102,Inputs!Q56/1000,IF(Inputs!$B$101=Inputs!$B$103,Inputs!Q58/1000,IF(Inputs!$B$101=Inputs!$B$104,Inputs!Q59/1000,0))) -> 1923.137137 | Q14: =IF(Inputs!$B$101=Inputs!$B$102,Inputs!R56/1000,IF(Inputs!$B$101=Inputs!$B$103,Inputs!R58/1000,IF(Inputs!$B$101=Inputs!$B$104,Inputs!R59/1000,0))) -> 1914.612991 | R14: =IF(Inputs!$B$101=Inputs!$B$102,Inputs!S56/1000,IF(Inputs!$B$101=Inputs!$B$103,Inputs!S58/1000,IF(Inputs!$B$101=Inputs!$B$104,Inputs!S59/1000,0))) -> 1909.873439 | S14: =IF(Inputs!$B$101=Inputs!$B$102,Inputs!T56/1000,IF(Inputs!$B$101=Inputs!$B$103,Inputs!T58/1000,IF(Inputs!$B$101=Inputs!$B$104,Inputs!T59/1000,0))) -> 1909.488778 | T14: =IF(Inputs!$B$101=Inputs!$B$102,Inputs!U56/1000,IF(Inputs!$B$101=Inputs!$B$103,Inputs!U58/1000,IF(Inputs!$B$101=Inputs!$B$104,Inputs!U59/1000,0))) -> 1903.904432 | U14: =IF(Inputs!$B$101=Inputs!$B$102,Inputs!V56/1000,IF(Inputs!$B$101=Inputs!$B$103,Inputs!V58/1000,IF(Inputs!$B$101=Inputs!$B$104,Inputs!V59/1000,0))) -> 1893.081198 | V14: =IF(Inputs!$B$101=Inputs!$B$102,Inputs!W56/1000,IF(Inputs!$B$101=Inputs!$B$103,Inputs!W58/1000,IF(Inputs!$B$101=Inputs!$B$104,Inputs!W59/1000,0))) -> 1890.704666 | W14: =IF(Inputs!$B$101=Inputs!$B$102,Inputs!X56/1000,IF(Inputs!$B$101=Inputs!$B$103,Inputs!X58/1000,IF(Inputs!$B$101=Inputs!$B$104,Inputs!X59/1000,0))) -> 2222.172463 | X14: =IF(Inputs!$B$101=Inputs!$B$102,Inputs!Y56/1000,IF(Inputs!$B$101=Inputs!$B$103,Inputs!Y58/1000,IF(Inputs!$B$101=Inputs!$B$104,Inputs!Y59/1000,0))) -> 2649.879611 | Y14: =IF(Inputs!$B$101=Inputs!$B$102,Inputs!Z56/1000,IF(Inputs!$B$101=Inputs!$B$103,Inputs!Z58/1000,IF(Inputs!$B$101=Inputs!$B$104,Inputs!Z59/1000,0))) -> 2535.643244 | Z14: =IF(Inputs!$B$101=Inputs!$B$102,Inputs!AA56/1000,IF(Inputs!$B$101=Inputs!$B$103,Inputs!AA58/1000,IF(Inputs!$B$101=Inputs!$B$104,Inputs!AA59/1000,0))) -> 2176.679482 | AA14: =IF(Inputs!$B$101=Inputs!$B$102,Inputs!AB56/1000,IF(Inputs!$B$101=Inputs!$B$103,Inputs!AB58/1000,IF(Inputs!$B$101=Inputs!$B$104,Inputs!AB59/1000,0))) -> 2126.628959 | AB14: =IF(Inputs!$B$101=Inputs!$B$102,Inputs!AC56/1000,IF(Inputs!$B$101=Inputs!$B$103,Inputs!AC58/1000,IF(Inputs!$B$101=Inputs!$B$104,Inputs!AC59/1000,0))) -> 2137.090067 | AC14: =IF(Inputs!$B$101=Inputs!$B$102,Inputs!AD56/1000,IF(Inputs!$B$101=Inputs!$B$103,Inputs!AD58/1000,IF(Inputs!$B$101=Inputs!$B$104,Inputs!AD59/1000,0))) -> 2289.199851 | AD14: =IF(Inputs!$B$101=Inputs!$B$102,Inputs!AE56/1000,IF(Inputs!$B$101=Inputs!$B$103,Inputs!AE58/1000,IF(Inputs!$B$101=Inputs!$B$104,Inputs!AE59/1000,0))) -> 2039.793287 | AE14: =IF(Inputs!$B$101=Inputs!$B$102,Inputs!AF56/1000,IF(Inputs!$B$101=Inputs!$B$103,Inputs!AF58/1000,IF(Inputs!$B$101=Inputs!$B$104,Inputs!AF59/1000,0))) -> 2018.428751 | AF14: =IF(Inputs!$B$101=Inputs!$B$102,Inputs!AG56/1000,IF(Inputs!$B$101=Inputs!$B$103,Inputs!AG58/1000,IF(Inputs!$B$101=Inputs!$B$104,Inputs!AG59/1000,0))) -> 2018.428751 | AG14: =IF(Inputs!$B$101=Inputs!$B$102,Inputs!AH56/1000,IF(Inputs!$B$101=Inputs!$B$103,Inputs!AH58/1000,IF(Inputs!$B$101=Inputs!$B$104,Inputs!AH59/1000,0))) -> 2018.428751 | AH14: =IF(Inputs!$B$101=Inputs!$B$102,Inputs!AI56/1000,IF(Inputs!$B$101=Inputs!$B$103,Inputs!AI58/1000,IF(Inputs!$B$101=Inputs!$B$104,Inputs!AI59/1000,0))) -> 2018.428751 | AI14: =IF(Inputs!$B$101=Inputs!$B$102,Inputs!AJ56/1000,IF(Inputs!$B$101=Inputs!$B$103,Inputs!AJ58/1000,IF(Inputs!$B$101=Inputs!$B$104,Inputs!AJ59/1000,0))) -> 2018.428751 | AJ14: =IF(Inputs!$B$101=Inputs!$B$102,Inputs!AK56/1000,IF(Inputs!$B$101=Inputs!$B$103,Inputs!AK58/1000,IF(Inputs!$B$101=Inputs!$B$104,Inputs!AK59/1000,0))) -> 2018.428751 | AK14: =IF(Inputs!$B$101=Inputs!$B$102,Inputs!AL56/1000,IF(Inputs!$B$101=Inputs!$B$103,Inputs!AL58/1000,IF(Inputs!$B$101=Inputs!$B$104,Inputs!AL59/1000,0))) -> 2018.428751 | AL14: =IF(Inputs!$B$101=Inputs!$B$102,Inputs!AM56/1000,IF(Inputs!$B$101=Inputs!$B$103,Inputs!AM58/1000,IF(Inputs!$B$101=Inputs!$B$104,Inputs!AM59/1000,0))) -> 2018.428751 | AM14: =IF(Inputs!$B$101=Inputs!$B$102,Inputs!AN56/1000,IF(Inputs!$B$101=Inputs!$B$103,Inputs!AN58/1000,IF(Inputs!$B$101=Inputs!$B$104,Inputs!AN59/1000,0))) -> 2018.428751 | AN14: =IF(Inputs!$B$101=Inputs!$B$102,Inputs!AO56/1000,IF(Inputs!$B$101=Inputs!$B$103,Inputs!AO58/1000,IF(Inputs!$B$101=Inputs!$B$104,Inputs!AO59/1000,0))) -> 2018.428751 | AO14: =IF(Inputs!$B$101=Inputs!$B$102,Inputs!AP56/1000,IF(Inputs!$B$101=Inputs!$B$103,Inputs!AP58/1000,IF(Inputs!$B$101=Inputs!$B$104,Inputs!AP59/1000,0))) -> 2018.428751 | AP14: =IF(Inputs!$B$101=Inputs!$B$102,Inputs!AQ56/1000,IF(Inputs!$B$101=Inputs!$B$103,Inputs!AQ58/1000,IF(Inputs!$B$101=Inputs!$B$104,Inputs!AQ59/1000,0))) -> 2018.428751 | AQ14: =IF(Inputs!$B$101=Inputs!$B$102,Inputs!AR56/1000,IF(Inputs!$B$101=Inputs!$B$103,Inputs!AR58/1000,IF(Inputs!$B$101=Inputs!$B$104,Inputs!AR59/1000,0))) -> 2018.428751
A15: Opex | D15: =IF(Inputs!$B$101=Inputs!$B$102,Inputs!E62/1000,IF(Inputs!$B$101=Inputs!$B$103,Inputs!E64/1000,IF(Inputs!$B$101=Inputs!$B$104,Inputs!E65/1000,0))) -> 2129.200608 | E15: =IF(Inputs!$B$101=Inputs!$B$102,Inputs!F62/1000,IF(Inputs!$B$101=Inputs!$B$103,Inputs!F64/1000,IF(Inputs!$B$101=Inputs!$B$104,Inputs!F65/1000,0))) -> 1580.319757 | F15: =IF(Inputs!$B$101=Inputs!$B$102,Inputs!G62/1000,IF(Inputs!$B$101=Inputs!$B$103,Inputs!G64/1000,IF(Inputs!$B$101=Inputs!$B$104,Inputs!G65/1000,0))) -> 1387.190587 | G15: =IF(Inputs!$B$101=Inputs!$B$102,Inputs!H62/1000,IF(Inputs!$B$101=Inputs!$B$103,Inputs!H64/1000,IF(Inputs!$B$101=Inputs!$B$104,Inputs!H65/1000,0))) -> 1431.612075 | H15: =IF(Inputs!$B$101=Inputs!$B$102,Inputs!I62/1000,IF(Inputs!$B$101=Inputs!$B$103,Inputs!I64/1000,IF(Inputs!$B$101=Inputs!$B$104,Inputs!I65/1000,0))) -> 1494.512306 | I15: =IF(Inputs!$B$101=Inputs!$B$102,Inputs!J62/1000,IF(Inputs!$B$101=Inputs!$B$103,Inputs!J64/1000,IF(Inputs!$B$101=Inputs!$B$104,Inputs!J65/1000,0))) -> 1518.70591 | J15: =IF(Inputs!$B$101=Inputs!$B$102,Inputs!K62/1000,IF(Inputs!$B$101=Inputs!$B$103,Inputs!K64/1000,IF(Inputs!$B$101=Inputs!$B$104,Inputs!K65/1000,0))) -> 1544.593065 | K15: =IF(Inputs!$B$101=Inputs!$B$102,Inputs!L62/1000,IF(Inputs!$B$101=Inputs!$B$103,Inputs!L64/1000,IF(Inputs!$B$101=Inputs!$B$104,Inputs!L65/1000,0))) -> 1572.292322 | L15: =IF(Inputs!$B$101=Inputs!$B$102,Inputs!M62/1000,IF(Inputs!$B$101=Inputs!$B$103,Inputs!M64/1000,IF(Inputs!$B$101=Inputs!$B$104,Inputs!M65/1000,0))) -> 1601.930527 | M15: =IF(Inputs!$B$101=Inputs!$B$102,Inputs!N62/1000,IF(Inputs!$B$101=Inputs!$B$103,Inputs!N64/1000,IF(Inputs!$B$101=Inputs!$B$104,Inputs!N65/1000,0))) -> 1633.643406 | N15: =IF(Inputs!$B$101=Inputs!$B$102,Inputs!O62/1000,IF(Inputs!$B$101=Inputs!$B$103,Inputs!O64/1000,IF(Inputs!$B$101=Inputs!$B$104,Inputs!O65/1000,0))) -> 1667.576186 | O15: =IF(Inputs!$B$101=Inputs!$B$102,Inputs!P62/1000,IF(Inputs!$B$101=Inputs!$B$103,Inputs!P64/1000,IF(Inputs!$B$101=Inputs!$B$104,Inputs!P65/1000,0))) -> 1703.884262 | P15: =IF(Inputs!$B$101=Inputs!$B$102,Inputs!Q62/1000,IF(Inputs!$B$101=Inputs!$B$103,Inputs!Q64/1000,IF(Inputs!$B$101=Inputs!$B$104,Inputs!Q65/1000,0))) -> 1742.733902 | Q15: =IF(Inputs!$B$101=Inputs!$B$102,Inputs!R62/1000,IF(Inputs!$B$101=Inputs!$B$103,Inputs!R64/1000,IF(Inputs!$B$101=Inputs!$B$104,Inputs!R65/1000,0))) -> 1784.303017 | R15: =IF(Inputs!$B$101=Inputs!$B$102,Inputs!S62/1000,IF(Inputs!$B$101=Inputs!$B$103,Inputs!S64/1000,IF(Inputs!$B$101=Inputs!$B$104,Inputs!S65/1000,0))) -> 1828.781971 | S15: =IF(Inputs!$B$101=Inputs!$B$102,Inputs!T62/1000,IF(Inputs!$B$101=Inputs!$B$103,Inputs!T64/1000,IF(Inputs!$B$101=Inputs!$B$104,Inputs!T65/1000,0))) -> 1876.374451 | T15: =IF(Inputs!$B$101=Inputs!$B$102,Inputs!U62/1000,IF(Inputs!$B$101=Inputs!$B$103,Inputs!U64/1000,IF(Inputs!$B$101=Inputs!$B$104,Inputs!U65/1000,0))) -> 1927.298404 | U15: =IF(Inputs!$B$101=Inputs!$B$102,Inputs!V62/1000,IF(Inputs!$B$101=Inputs!$B$103,Inputs!V64/1000,IF(Inputs!$B$101=Inputs!$B$104,Inputs!V65/1000,0))) -> 1981.787035 | V15: =IF(Inputs!$B$101=Inputs!$B$102,Inputs!W62/1000,IF(Inputs!$B$101=Inputs!$B$103,Inputs!W64/1000,IF(Inputs!$B$101=Inputs!$B$104,Inputs!W65/1000,0))) -> 2040.089869 | W15: =IF(Inputs!$B$101=Inputs!$B$102,Inputs!X62/1000,IF(Inputs!$B$101=Inputs!$B$103,Inputs!X64/1000,IF(Inputs!$B$101=Inputs!$B$104,Inputs!X65/1000,0))) -> 2102.473902 | X15: =IF(Inputs!$B$101=Inputs!$B$102,Inputs!Y62/1000,IF(Inputs!$B$101=Inputs!$B$103,Inputs!Y64/1000,IF(Inputs!$B$101=Inputs!$B$104,Inputs!Y65/1000,0))) -> 2169.224818 | Y15: =IF(Inputs!$B$101=Inputs!$B$102,Inputs!Z62/1000,IF(Inputs!$B$101=Inputs!$B$103,Inputs!Z64/1000,IF(Inputs!$B$101=Inputs!$B$104,Inputs!Z65/1000,0))) -> 2240.648297 | Z15: =IF(Inputs!$B$101=Inputs!$B$102,Inputs!AA62/1000,IF(Inputs!$B$101=Inputs!$B$103,Inputs!AA64/1000,IF(Inputs!$B$101=Inputs!$B$104,Inputs!AA65/1000,0))) -> 2317.07142 | AA15: =IF(Inputs!$B$101=Inputs!$B$102,Inputs!AB62/1000,IF(Inputs!$B$101=Inputs!$B$103,Inputs!AB64/1000,IF(Inputs!$B$101=Inputs!$B$104,Inputs!AB65/1000,0))) -> 2398.844162 | AB15: =IF(Inputs!$B$101=Inputs!$B$102,Inputs!AC62/1000,IF(Inputs!$B$101=Inputs!$B$103,Inputs!AC64/1000,IF(Inputs!$B$101=Inputs!$B$104,Inputs!AC65/1000,0))) -> 2486.340995 | AC15: =IF(Inputs!$B$101=Inputs!$B$102,Inputs!AD62/1000,IF(Inputs!$B$101=Inputs!$B$103,Inputs!AD64/1000,IF(Inputs!$B$101=Inputs!$B$104,Inputs!AD65/1000,0))) -> 2579.962607 | AD15: =IF(Inputs!$B$101=Inputs!$B$102,Inputs!AE62/1000,IF(Inputs!$B$101=Inputs!$B$103,Inputs!AE64/1000,IF(Inputs!$B$101=Inputs!$B$104,Inputs!AE65/1000,0))) -> 2680.137732 | AE15: =IF(Inputs!$B$101=Inputs!$B$102,Inputs!AF62/1000,IF(Inputs!$B$101=Inputs!$B$103,Inputs!AF64/1000,IF(Inputs!$B$101=Inputs!$B$104,Inputs!AF65/1000,0))) -> 2787.325115 | AF15: =IF(Inputs!$B$101=Inputs!$B$102,Inputs!AG62/1000,IF(Inputs!$B$101=Inputs!$B$103,Inputs!AG64/1000,IF(Inputs!$B$101=Inputs!$B$104,Inputs!AG65/1000,0))) -> 2902.015615 | AG15: =IF(Inputs!$B$101=Inputs!$B$102,Inputs!AH62/1000,IF(Inputs!$B$101=Inputs!$B$103,Inputs!AH64/1000,IF(Inputs!$B$101=Inputs!$B$104,Inputs!AH65/1000,0))) -> 3024.73445 | AH15: =IF(Inputs!$B$101=Inputs!$B$102,Inputs!AI62/1000,IF(Inputs!$B$101=Inputs!$B$103,Inputs!AI64/1000,IF(Inputs!$B$101=Inputs!$B$104,Inputs!AI65/1000,0))) -> 3156.043604 | AI15: =IF(Inputs!$B$101=Inputs!$B$102,Inputs!AJ62/1000,IF(Inputs!$B$101=Inputs!$B$103,Inputs!AJ64/1000,IF(Inputs!$B$101=Inputs!$B$104,Inputs!AJ65/1000,0))) -> 3296.544398 | AJ15: =IF(Inputs!$B$101=Inputs!$B$102,Inputs!AK62/1000,IF(Inputs!$B$101=Inputs!$B$103,Inputs!AK64/1000,IF(Inputs!$B$101=Inputs!$B$104,Inputs!AK65/1000,0))) -> 3446.880248 | AK15: =IF(Inputs!$B$101=Inputs!$B$102,Inputs!AL62/1000,IF(Inputs!$B$101=Inputs!$B$103,Inputs!AL64/1000,IF(Inputs!$B$101=Inputs!$B$104,Inputs!AL65/1000,0))) -> 3607.739608 | AL15: =IF(Inputs!$B$101=Inputs!$B$102,Inputs!AM62/1000,IF(Inputs!$B$101=Inputs!$B$103,Inputs!AM64/1000,IF(Inputs!$B$101=Inputs!$B$104,Inputs!AM65/1000,0))) -> 3779.859123 | AM15: =IF(Inputs!$B$101=Inputs!$B$102,Inputs!AN62/1000,IF(Inputs!$B$101=Inputs!$B$103,Inputs!AN64/1000,IF(Inputs!$B$101=Inputs!$B$104,Inputs!AN65/1000,0))) -> 3964.027003 | AN15: =IF(Inputs!$B$101=Inputs!$B$102,Inputs!AO62/1000,IF(Inputs!$B$101=Inputs!$B$103,Inputs!AO64/1000,IF(Inputs!$B$101=Inputs!$B$104,Inputs!AO65/1000,0))) -> 4161.086636 | AO15: =IF(Inputs!$B$101=Inputs!$B$102,Inputs!AP62/1000,IF(Inputs!$B$101=Inputs!$B$103,Inputs!AP64/1000,IF(Inputs!$B$101=Inputs!$B$104,Inputs!AP65/1000,0))) -> 4371.940442 | AP15: =IF(Inputs!$B$101=Inputs!$B$102,Inputs!AQ62/1000,IF(Inputs!$B$101=Inputs!$B$103,Inputs!AQ64/1000,IF(Inputs!$B$101=Inputs!$B$104,Inputs!AQ65/1000,0))) -> 4597.554015 | AQ15: =IF(Inputs!$B$101=Inputs!$B$102,Inputs!AR62/1000,IF(Inputs!$B$101=Inputs!$B$103,Inputs!AR64/1000,IF(Inputs!$B$101=Inputs!$B$104,Inputs!AR65/1000,0))) -> 4838.960539
A16: Volumes (therms '000) | D16: =SUM(D17:D19) -> 24873.15763 | E16: 34264.27206 | F16: 34884.6079 | G16: 35520.40857 | H16: 36136.60201 | I16: 36699.29955 | J16: 37292.9006 | K16: 37893.85095 | L16: 38503.0578 | M16: 39121.98911 | N16: 39775.36572 | O16: 40388.63453 | P16: 41001.93501 | Q16: 41615.26794 | R16: 42228.63386 | S16: 42842.03332 | T16: 43455.46689 | U16: 44068.93512 | V16: 30820.28312 | W16: 31431.63113 | X16: 31942.05113 | Y16: 32452.47113 | Z16: 32962.89113 | AA16: 33473.31113 | AB16: 33983.73114 | AC16: 34494.15114 | AD16: 35004.57114 | AE16: 35514.99114 | AF16: 36025.41114 | AG16: 36535.83115 | AH16: 36734.90127 | AI16: 36892.35494 | AJ16: 37044.90827 | AK16: 37197.4616 | AL16: 37350.01494 | AM16: 37502.56827 | AN16: 37655.12161 | AO16: 37655.12161 | AP16: 37655.12161 | AQ16: 37655.12161
A17: V Domestic (P1) | D17: =IF(Inputs!$B$101=Inputs!$B$102,Inputs!E69/1000,IF(Inputs!$B$101=Inputs!$B$103,Inputs!E77/1000,IF(Inputs!$B$101=Inputs!$B$104,Inputs!E85/1000,0))) -> 895.5118974 | E17: =IF(Inputs!$B$101=Inputs!$B$102,Inputs!F69/1000,IF(Inputs!$B$101=Inputs!$B$103,Inputs!F77/1000,IF(Inputs!$B$101=Inputs!$B$104,Inputs!F85/1000,0))) -> 1622.04736 | F17: =IF(Inputs!$B$101=Inputs!$B$102,Inputs!G69/1000,IF(Inputs!$B$101=Inputs!$B$103,Inputs!G77/1000,IF(Inputs!$B$101=Inputs!$B$104,Inputs!G85/1000,0))) -> 2155.910317 | G17: =IF(Inputs!$B$101=Inputs!$B$102,Inputs!H69/1000,IF(Inputs!$B$101=Inputs!$B$103,Inputs!H77/1000,IF(Inputs!$B$101=Inputs!$B$104,Inputs!H85/1000,0))) -> 2713.072766 | H17: =IF(Inputs!$B$101=Inputs!$B$102,Inputs!I69/1000,IF(Inputs!$B$101=Inputs!$B$103,Inputs!I77/1000,IF(Inputs!$B$101=Inputs!$B$104,Inputs!I85/1000,0))) -> 3261.14273 | I17: =IF(Inputs!$B$101=Inputs!$B$102,Inputs!J69/1000,IF(Inputs!$B$101=Inputs!$B$103,Inputs!J77/1000,IF(Inputs!$B$101=Inputs!$B$104,Inputs!J85/1000,0))) -> 3744.677933 | J17: =IF(Inputs!$B$101=Inputs!$B$102,Inputs!K69/1000,IF(Inputs!$B$101=Inputs!$B$103,Inputs!K77/1000,IF(Inputs!$B$101=Inputs!$B$104,Inputs!K85/1000,0))) -> 4238.71884 | K17: =IF(Inputs!$B$101=Inputs!$B$102,Inputs!L69/1000,IF(Inputs!$B$101=Inputs!$B$103,Inputs!L77/1000,IF(Inputs!$B$101=Inputs!$B$104,Inputs!L85/1000,0))) -> 4739.018311 | L17: =IF(Inputs!$B$101=Inputs!$B$102,Inputs!M69/1000,IF(Inputs!$B$101=Inputs!$B$103,Inputs!M77/1000,IF(Inputs!$B$101=Inputs!$B$104,Inputs!M85/1000,0))) -> 5239.317781 | M17: =IF(Inputs!$B$101=Inputs!$B$102,Inputs!N69/1000,IF(Inputs!$B$101=Inputs!$B$103,Inputs!N77/1000,IF(Inputs!$B$101=Inputs!$B$104,Inputs!N85/1000,0))) -> 5739.617251 | N17: =IF(Inputs!$B$101=Inputs!$B$102,Inputs!O69/1000,IF(Inputs!$B$101=Inputs!$B$103,Inputs!O77/1000,IF(Inputs!$B$101=Inputs!$B$104,Inputs!O85/1000,0))) -> 6300.473522 | O17: =IF(Inputs!$B$101=Inputs!$B$102,Inputs!P69/1000,IF(Inputs!$B$101=Inputs!$B$103,Inputs!P77/1000,IF(Inputs!$B$101=Inputs!$B$104,Inputs!P85/1000,0))) -> 6861.329792 | P17: =IF(Inputs!$B$101=Inputs!$B$102,Inputs!Q69/1000,IF(Inputs!$B$101=Inputs!$B$103,Inputs!Q77/1000,IF(Inputs!$B$101=Inputs!$B$104,Inputs!Q85/1000,0))) -> 7422.186062 | Q17: =IF(Inputs!$B$101=Inputs!$B$102,Inputs!R69/1000,IF(Inputs!$B$101=Inputs!$B$103,Inputs!R77/1000,IF(Inputs!$B$101=Inputs!$B$104,Inputs!R85/1000,0))) -> 7983.042333 | R17: =IF(Inputs!$B$101=Inputs!$B$102,Inputs!S69/1000,IF(Inputs!$B$101=Inputs!$B$103,Inputs!S77/1000,IF(Inputs!$B$101=Inputs!$B$104,Inputs!S85/1000,0))) -> 8543.898603 | S17: =IF(Inputs!$B$101=Inputs!$B$102,Inputs!T69/1000,IF(Inputs!$B$101=Inputs!$B$103,Inputs!T77/1000,IF(Inputs!$B$101=Inputs!$B$104,Inputs!T85/1000,0))) -> 9104.754874 | T17: =IF(Inputs!$B$101=Inputs!$B$102,Inputs!U69/1000,IF(Inputs!$B$101=Inputs!$B$103,Inputs!U77/1000,IF(Inputs!$B$101=Inputs!$B$104,Inputs!U85/1000,0))) -> 9665.611144 | U17: =IF(Inputs!$B$101=Inputs!$B$102,Inputs!V69/1000,IF(Inputs!$B$101=Inputs!$B$103,Inputs!V77/1000,IF(Inputs!$B$101=Inputs!$B$104,Inputs!V85/1000,0))) -> 10226.46741 | V17: =IF(Inputs!$B$101=Inputs!$B$102,Inputs!W69/1000,IF(Inputs!$B$101=Inputs!$B$103,Inputs!W77/1000,IF(Inputs!$B$101=Inputs!$B$104,Inputs!W85/1000,0))) -> 10787.32368 | W17: =IF(Inputs!$B$101=Inputs!$B$102,Inputs!X69/1000,IF(Inputs!$B$101=Inputs!$B$103,Inputs!X77/1000,IF(Inputs!$B$101=Inputs!$B$104,Inputs!X85/1000,0))) -> 11348.17996 | X17: =IF(Inputs!$B$101=Inputs!$B$102,Inputs!Y69/1000,IF(Inputs!$B$101=Inputs!$B$103,Inputs!Y77/1000,IF(Inputs!$B$101=Inputs!$B$104,Inputs!Y85/1000,0))) -> 11808.10823 | Y17: =IF(Inputs!$B$101=Inputs!$B$102,Inputs!Z69/1000,IF(Inputs!$B$101=Inputs!$B$103,Inputs!Z77/1000,IF(Inputs!$B$101=Inputs!$B$104,Inputs!Z85/1000,0))) -> 12268.0365 | Z17: =IF(Inputs!$B$101=Inputs!$B$102,Inputs!AA69/1000,IF(Inputs!$B$101=Inputs!$B$103,Inputs!AA77/1000,IF(Inputs!$B$101=Inputs!$B$104,Inputs!AA85/1000,0))) -> 12727.96477 | AA17: =IF(Inputs!$B$101=Inputs!$B$102,Inputs!AB69/1000,IF(Inputs!$B$101=Inputs!$B$103,Inputs!AB77/1000,IF(Inputs!$B$101=Inputs!$B$104,Inputs!AB85/1000,0))) -> 13187.89304 | AB17: =IF(Inputs!$B$101=Inputs!$B$102,Inputs!AC69/1000,IF(Inputs!$B$101=Inputs!$B$103,Inputs!AC77/1000,IF(Inputs!$B$101=Inputs!$B$104,Inputs!AC85/1000,0))) -> 13647.82131 | AC17: =IF(Inputs!$B$101=Inputs!$B$102,Inputs!AD69/1000,IF(Inputs!$B$101=Inputs!$B$103,Inputs!AD77/1000,IF(Inputs!$B$101=Inputs!$B$104,Inputs!AD85/1000,0))) -> 14107.74958 | AD17: =IF(Inputs!$B$101=Inputs!$B$102,Inputs!AE69/1000,IF(Inputs!$B$101=Inputs!$B$103,Inputs!AE77/1000,IF(Inputs!$B$101=Inputs!$B$104,Inputs!AE85/1000,0))) -> 14567.67785 | AE17: =IF(Inputs!$B$101=Inputs!$B$102,Inputs!AF69/1000,IF(Inputs!$B$101=Inputs!$B$103,Inputs!AF77/1000,IF(Inputs!$B$101=Inputs!$B$104,Inputs!AF85/1000,0))) -> 15027.60612 | AF17: =IF(Inputs!$B$101=Inputs!$B$102,Inputs!AG69/1000,IF(Inputs!$B$101=Inputs!$B$103,Inputs!AG77/1000,IF(Inputs!$B$101=Inputs!$B$104,Inputs!AG85/1000,0))) -> 15487.53439 | AG17: =IF(Inputs!$B$101=Inputs!$B$102,Inputs!AH69/1000,IF(Inputs!$B$101=Inputs!$B$103,Inputs!AH77/1000,IF(Inputs!$B$101=Inputs!$B$104,Inputs!AH85/1000,0))) -> 15947.46266 | AH17: =IF(Inputs!$B$101=Inputs!$B$102,Inputs!AI69/1000,IF(Inputs!$B$101=Inputs!$B$103,Inputs!AI77/1000,IF(Inputs!$B$101=Inputs!$B$104,Inputs!AI85/1000,0))) -> 16100.01599 | AI17: =IF(Inputs!$B$101=Inputs!$B$102,Inputs!AJ69/1000,IF(Inputs!$B$101=Inputs!$B$103,Inputs!AJ77/1000,IF(Inputs!$B$101=Inputs!$B$104,Inputs!AJ85/1000,0))) -> 16252.56933 | AJ17: =IF(Inputs!$B$101=Inputs!$B$102,Inputs!AK69/1000,IF(Inputs!$B$101=Inputs!$B$103,Inputs!AK77/1000,IF(Inputs!$B$101=Inputs!$B$104,Inputs!AK85/1000,0))) -> 16405.12266 | AK17: =IF(Inputs!$B$101=Inputs!$B$102,Inputs!AL69/1000,IF(Inputs!$B$101=Inputs!$B$103,Inputs!AL77/1000,IF(Inputs!$B$101=Inputs!$B$104,Inputs!AL85/1000,0))) -> 16557.676 | AL17: =IF(Inputs!$B$101=Inputs!$B$102,Inputs!AM69/1000,IF(Inputs!$B$101=Inputs!$B$103,Inputs!AM77/1000,IF(Inputs!$B$101=Inputs!$B$104,Inputs!AM85/1000,0))) -> 16710.22933 | AM17: =IF(Inputs!$B$101=Inputs!$B$102,Inputs!AN69/1000,IF(Inputs!$B$101=Inputs!$B$103,Inputs!AN77/1000,IF(Inputs!$B$101=Inputs!$B$104,Inputs!AN85/1000,0))) -> 16862.78267 | AN17: =IF(Inputs!$B$101=Inputs!$B$102,Inputs!AO69/1000,IF(Inputs!$B$101=Inputs!$B$103,Inputs!AO77/1000,IF(Inputs!$B$101=Inputs!$B$104,Inputs!AO85/1000,0))) -> 17015.336 | AO17: =IF(Inputs!$B$101=Inputs!$B$102,Inputs!AP69/1000,IF(Inputs!$B$101=Inputs!$B$103,Inputs!AP77/1000,IF(Inputs!$B$101=Inputs!$B$104,Inputs!AP85/1000,0))) -> 17015.336 | AP17: =IF(Inputs!$B$101=Inputs!$B$102,Inputs!AQ69/1000,IF(Inputs!$B$101=Inputs!$B$103,Inputs!AQ77/1000,IF(Inputs!$B$101=Inputs!$B$104,Inputs!AQ85/1000,0))) -> 17015.336 | AQ17: =IF(Inputs!$B$101=Inputs!$B$102,Inputs!AR69/1000,IF(Inputs!$B$101=Inputs!$B$103,Inputs!AR77/1000,IF(Inputs!$B$101=Inputs!$B$104,Inputs!AR85/1000,0))) -> 17015.336
A18: V Tarriff (P2 + P3 + P4) | D18: =IF(Inputs!$B$101=Inputs!$B$102,SUM(Inputs!E70:E72)/1000,IF(Inputs!$B$101=Inputs!$B$103,Inputs!E78/1000,IF(Inputs!$B$101=Inputs!$B$104,Inputs!E86/1000,0))) -> 2.058399333 | E18: =IF(Inputs!$B$101=Inputs!$B$102,SUM(Inputs!F70:F72)/1000,IF(Inputs!$B$101=Inputs!$B$103,Inputs!F78/1000,IF(Inputs!$B$101=Inputs!$B$104,Inputs!F86/1000,0))) -> 39.32469658 | F18: =IF(Inputs!$B$101=Inputs!$B$102,SUM(Inputs!G70:G72)/1000,IF(Inputs!$B$101=Inputs!$B$103,Inputs!G78/1000,IF(Inputs!$B$101=Inputs!$B$104,Inputs!G86/1000,0))) -> 125.7975849 | G18: =IF(Inputs!$B$101=Inputs!$B$102,SUM(Inputs!H70:H72)/1000,IF(Inputs!$B$101=Inputs!$B$103,Inputs!H78/1000,IF(Inputs!$B$101=Inputs!$B$104,Inputs!H86/1000,0))) -> 204.4357998 | H18: =IF(Inputs!$B$101=Inputs!$B$102,SUM(Inputs!I70:I72)/1000,IF(Inputs!$B$101=Inputs!$B$103,Inputs!I78/1000,IF(Inputs!$B$101=Inputs!$B$104,Inputs!I86/1000,0))) -> 272.5592841 | I18: =IF(Inputs!$B$101=Inputs!$B$102,SUM(Inputs!J70:J72)/1000,IF(Inputs!$B$101=Inputs!$B$103,Inputs!J78/1000,IF(Inputs!$B$101=Inputs!$B$104,Inputs!J86/1000,0))) -> 351.7216212 | J18: =IF(Inputs!$B$101=Inputs!$B$102,SUM(Inputs!K70:K72)/1000,IF(Inputs!$B$101=Inputs!$B$103,Inputs!K78/1000,IF(Inputs!$B$101=Inputs!$B$104,Inputs!K86/1000,0))) -> 451.2817569 | K18: =IF(Inputs!$B$101=Inputs!$B$102,SUM(Inputs!L70:L72)/1000,IF(Inputs!$B$101=Inputs!$B$103,Inputs!L78/1000,IF(Inputs!$B$101=Inputs!$B$104,Inputs!L86/1000,0))) -> 551.932642 | L18: =IF(Inputs!$B$101=Inputs!$B$102,SUM(Inputs!M70:M72)/1000,IF(Inputs!$B$101=Inputs!$B$103,Inputs!M78/1000,IF(Inputs!$B$101=Inputs!$B$104,Inputs!M86/1000,0))) -> 660.8400183 | M18: =IF(Inputs!$B$101=Inputs!$B$102,SUM(Inputs!N70:N72)/1000,IF(Inputs!$B$101=Inputs!$B$103,Inputs!N78/1000,IF(Inputs!$B$101=Inputs!$B$104,Inputs!N86/1000,0))) -> 779.4718636 | N18: =IF(Inputs!$B$101=Inputs!$B$102,SUM(Inputs!O70:O72)/1000,IF(Inputs!$B$101=Inputs!$B$103,Inputs!O78/1000,IF(Inputs!$B$101=Inputs!$B$104,Inputs!O86/1000,0))) -> 871.9921933 | O18: =IF(Inputs!$B$101=Inputs!$B$102,SUM(Inputs!P70:P72)/1000,IF(Inputs!$B$101=Inputs!$B$103,Inputs!P78/1000,IF(Inputs!$B$101=Inputs!$B$104,Inputs!P86/1000,0))) -> 924.4047376 | P18: =IF(Inputs!$B$101=Inputs!$B$102,SUM(Inputs!Q70:Q72)/1000,IF(Inputs!$B$101=Inputs!$B$103,Inputs!Q78/1000,IF(Inputs!$B$101=Inputs!$B$104,Inputs!Q86/1000,0))) -> 976.848943 | Q18: =IF(Inputs!$B$101=Inputs!$B$102,SUM(Inputs!R70:R72)/1000,IF(Inputs!$B$101=Inputs!$B$103,Inputs!R78/1000,IF(Inputs!$B$101=Inputs!$B$104,Inputs!R86/1000,0))) -> 1029.325603 | R18: =IF(Inputs!$B$101=Inputs!$B$102,SUM(Inputs!S70:S72)/1000,IF(Inputs!$B$101=Inputs!$B$103,Inputs!S78/1000,IF(Inputs!$B$101=Inputs!$B$104,Inputs!S86/1000,0))) -> 1081.835256 | S18: =IF(Inputs!$B$101=Inputs!$B$102,SUM(Inputs!T70:T72)/1000,IF(Inputs!$B$101=Inputs!$B$103,Inputs!T78/1000,IF(Inputs!$B$101=Inputs!$B$104,Inputs!T86/1000,0))) -> 1134.378451 | T18: =IF(Inputs!$B$101=Inputs!$B$102,SUM(Inputs!U70:U72)/1000,IF(Inputs!$B$101=Inputs!$B$103,Inputs!U78/1000,IF(Inputs!$B$101=Inputs!$B$104,Inputs!U86/1000,0))) -> 1186.955746 | U18: =IF(Inputs!$B$101=Inputs!$B$102,SUM(Inputs!V70:V72)/1000,IF(Inputs!$B$101=Inputs!$B$103,Inputs!V78/1000,IF(Inputs!$B$101=Inputs!$B$104,Inputs!V86/1000,0))) -> 1239.567708 | V18: =IF(Inputs!$B$101=Inputs!$B$102,SUM(Inputs!W70:W72)/1000,IF(Inputs!$B$101=Inputs!$B$103,Inputs!W78/1000,IF(Inputs!$B$101=Inputs!$B$104,Inputs!W86/1000,0))) -> 1290.05944 | W18: =IF(Inputs!$B$101=Inputs!$B$102,SUM(Inputs!X70:X72)/1000,IF(Inputs!$B$101=Inputs!$B$103,Inputs!X78/1000,IF(Inputs!$B$101=Inputs!$B$104,Inputs!X86/1000,0))) -> 1340.551171 | X18: =IF(Inputs!$B$101=Inputs!$B$102,SUM(Inputs!Y70:Y72)/1000,IF(Inputs!$B$101=Inputs!$B$103,Inputs!Y78/1000,IF(Inputs!$B$101=Inputs!$B$104,Inputs!Y86/1000,0))) -> 1391.042903 | Y18: =IF(Inputs!$B$101=Inputs!$B$102,SUM(Inputs!Z70:Z72)/1000,IF(Inputs!$B$101=Inputs!$B$103,Inputs!Z78/1000,IF(Inputs!$B$101=Inputs!$B$104,Inputs!Z86/1000,0))) -> 1441.534635 | Z18: =IF(Inputs!$B$101=Inputs!$B$102,SUM(Inputs!AA70:AA72)/1000,IF(Inputs!$B$101=Inputs!$B$103,Inputs!AA78/1000,IF(Inputs!$B$101=Inputs!$B$104,Inputs!AA86/1000,0))) -> 1492.026366 | AA18: =IF(Inputs!$B$101=Inputs!$B$102,SUM(Inputs!AB70:AB72)/1000,IF(Inputs!$B$101=Inputs!$B$103,Inputs!AB78/1000,IF(Inputs!$B$101=Inputs!$B$104,Inputs!AB86/1000,0))) -> 1542.518098 | AB18: =IF(Inputs!$B$101=Inputs!$B$102,SUM(Inputs!AC70:AC72)/1000,IF(Inputs!$B$101=Inputs!$B$103,Inputs!AC78/1000,IF(Inputs!$B$101=Inputs!$B$104,Inputs!AC86/1000,0))) -> 1593.00983 | AC18: =IF(Inputs!$B$101=Inputs!$B$102,SUM(Inputs!AD70:AD72)/1000,IF(Inputs!$B$101=Inputs!$B$103,Inputs!AD78/1000,IF(Inputs!$B$101=Inputs!$B$104,Inputs!AD86/1000,0))) -> 1643.501561 | AD18: =IF(Inputs!$B$101=Inputs!$B$102,SUM(Inputs!AE70:AE72)/1000,IF(Inputs!$B$101=Inputs!$B$103,Inputs!AE78/1000,IF(Inputs!$B$101=Inputs!$B$104,Inputs!AE86/1000,0))) -> 1693.993293 | AE18: =IF(Inputs!$B$101=Inputs!$B$102,SUM(Inputs!AF70:AF72)/1000,IF(Inputs!$B$101=Inputs!$B$103,Inputs!AF78/1000,IF(Inputs!$B$101=Inputs!$B$104,Inputs!AF86/1000,0))) -> 1744.485025 | AF18: =IF(Inputs!$B$101=Inputs!$B$102,SUM(Inputs!AG70:AG72)/1000,IF(Inputs!$B$101=Inputs!$B$103,Inputs!AG78/1000,IF(Inputs!$B$101=Inputs!$B$104,Inputs!AG86/1000,0))) -> 1794.976756 | AG18: =IF(Inputs!$B$101=Inputs!$B$102,SUM(Inputs!AH70:AH72)/1000,IF(Inputs!$B$101=Inputs!$B$103,Inputs!AH78/1000,IF(Inputs!$B$101=Inputs!$B$104,Inputs!AH86/1000,0))) -> 1845.468488 | AH18: =IF(Inputs!$B$101=Inputs!$B$102,SUM(Inputs!AI70:AI72)/1000,IF(Inputs!$B$101=Inputs!$B$103,Inputs!AI78/1000,IF(Inputs!$B$101=Inputs!$B$104,Inputs!AI86/1000,0))) -> 1891.98528 | AI18: =IF(Inputs!$B$101=Inputs!$B$102,SUM(Inputs!AJ70:AJ72)/1000,IF(Inputs!$B$101=Inputs!$B$103,Inputs!AJ78/1000,IF(Inputs!$B$101=Inputs!$B$104,Inputs!AJ86/1000,0))) -> 1896.885608 | AJ18: =IF(Inputs!$B$101=Inputs!$B$102,SUM(Inputs!AK70:AK72)/1000,IF(Inputs!$B$101=Inputs!$B$103,Inputs!AK78/1000,IF(Inputs!$B$101=Inputs!$B$104,Inputs!AK86/1000,0))) -> 1896.885608 | AK18: =IF(Inputs!$B$101=Inputs!$B$102,SUM(Inputs!AL70:AL72)/1000,IF(Inputs!$B$101=Inputs!$B$103,Inputs!AL78/1000,IF(Inputs!$B$101=Inputs!$B$104,Inputs!AL86/1000,0))) -> 1896.885608 | AL18: =IF(Inputs!$B$101=Inputs!$B$102,SUM(Inputs!AM70:AM72)/1000,IF(Inputs!$B$101=Inputs!$B$103,Inputs!AM78/1000,IF(Inputs!$B$101=Inputs!$B$104,Inputs!AM86/1000,0))) -> 1896.885608 | AM18: =IF(Inputs!$B$101=Inputs!$B$102,SUM(Inputs!AN70:AN72)/1000,IF(Inputs!$B$101=Inputs!$B$103,Inputs!AN78/1000,IF(Inputs!$B$101=Inputs!$B$104,Inputs!AN86/1000,0))) -> 1896.885608 | AN18: =IF(Inputs!$B$101=Inputs!$B$102,SUM(Inputs!AO70:AO72)/1000,IF(Inputs!$B$101=Inputs!$B$103,Inputs!AO78/1000,IF(Inputs!$B$101=Inputs!$B$104,Inputs!AO86/1000,0))) -> 1896.885608 | AO18: =IF(Inputs!$B$101=Inputs!$B$102,SUM(Inputs!AP70:AP72)/1000,IF(Inputs!$B$101=Inputs!$B$103,Inputs!AP78/1000,IF(Inputs!$B$101=Inputs!$B$104,Inputs!AP86/1000,0))) -> 1896.885608 | AP18: =IF(Inputs!$B$101=Inputs!$B$102,SUM(Inputs!AQ70:AQ72)/1000,IF(Inputs!$B$101=Inputs!$B$103,Inputs!AQ78/1000,IF(Inputs!$B$101=Inputs!$B$104,Inputs!AQ86/1000,0))) -> 1896.885608 | AQ18: =IF(Inputs!$B$101=Inputs!$B$102,SUM(Inputs!AR70:AR72)/1000,IF(Inputs!$B$101=Inputs!$B$103,Inputs!AR78/1000,IF(Inputs!$B$101=Inputs!$B$104,Inputs!AR86/1000,0))) -> 1896.885608
A19: V Contract (P5 + P6) | D19: =IF(Inputs!$B$101=Inputs!$B$102,SUM(Inputs!E73:E74)/1000,IF(Inputs!$B$101=Inputs!$B$103,SUM(Inputs!E80:E82)/1000,IF(Inputs!$B$101=Inputs!$B$104,Inputs!E89/1000,0))) -> 23975.58733 | E19: =IF(Inputs!$B$101=Inputs!$B$102,SUM(Inputs!F73:F74)/1000,IF(Inputs!$B$101=Inputs!$B$103,SUM(Inputs!F80:F82)/1000,IF(Inputs!$B$101=Inputs!$B$104,Inputs!F89/1000,0))) -> 32602.9 | F19: =IF(Inputs!$B$101=Inputs!$B$102,SUM(Inputs!G73:G74)/1000,IF(Inputs!$B$101=Inputs!$B$103,SUM(Inputs!G80:G82)/1000,IF(Inputs!$B$101=Inputs!$B$104,Inputs!G89/1000,0))) -> 32602.9 | G19: =IF(Inputs!$B$101=Inputs!$B$102,SUM(Inputs!H73:H74)/1000,IF(Inputs!$B$101=Inputs!$B$103,SUM(Inputs!H80:H82)/1000,IF(Inputs!$B$101=Inputs!$B$104,Inputs!H89/1000,0))) -> 32602.9 | H19: =IF(Inputs!$B$101=Inputs!$B$102,SUM(Inputs!I73:I74)/1000,IF(Inputs!$B$101=Inputs!$B$103,SUM(Inputs!I80:I82)/1000,IF(Inputs!$B$101=Inputs!$B$104,Inputs!I89/1000,0))) -> 32602.9 | I19: =IF(Inputs!$B$101=Inputs!$B$102,SUM(Inputs!J73:J74)/1000,IF(Inputs!$B$101=Inputs!$B$103,SUM(Inputs!J80:J82)/1000,IF(Inputs!$B$101=Inputs!$B$104,Inputs!J89/1000,0))) -> 32602.9 | J19: =IF(Inputs!$B$101=Inputs!$B$102,SUM(Inputs!K73:K74)/1000,IF(Inputs!$B$101=Inputs!$B$103,SUM(Inputs!K80:K82)/1000,IF(Inputs!$B$101=Inputs!$B$104,Inputs!K89/1000,0))) -> 32602.9 | K19: =IF(Inputs!$B$101=Inputs!$B$102,SUM(Inputs!L73:L74)/1000,IF(Inputs!$B$101=Inputs!$B$103,SUM(Inputs!L80:L82)/1000,IF(Inputs!$B$101=Inputs!$B$104,Inputs!L89/1000,0))) -> 32602.9 | L19: =IF(Inputs!$B$101=Inputs!$B$102,SUM(Inputs!M73:M74)/1000,IF(Inputs!$B$101=Inputs!$B$103,SUM(Inputs!M80:M82)/1000,IF(Inputs!$B$101=Inputs!$B$104,Inputs!M89/1000,0))) -> 32602.9 | M19: =IF(Inputs!$B$101=Inputs!$B$102,SUM(Inputs!N73:N74)/1000,IF(Inputs!$B$101=Inputs!$B$103,SUM(Inputs!N80:N82)/1000,IF(Inputs!$B$101=Inputs!$B$104,Inputs!N89/1000,0))) -> 32602.9 | N19: =IF(Inputs!$B$101=Inputs!$B$102,SUM(Inputs!O73:O74)/1000,IF(Inputs!$B$101=Inputs!$B$103,SUM(Inputs!O80:O82)/1000,IF(Inputs!$B$101=Inputs!$B$104,Inputs!O89/1000,0))) -> 32602.9 | O19: =IF(Inputs!$B$101=Inputs!$B$102,SUM(Inputs!P73:P74)/1000,IF(Inputs!$B$101=Inputs!$B$103,SUM(Inputs!P80:P82)/1000,IF(Inputs!$B$101=Inputs!$B$104,Inputs!P89/1000,0))) -> 32602.9 | P19: =IF(Inputs!$B$101=Inputs!$B$102,SUM(Inputs!Q73:Q74)/1000,IF(Inputs!$B$101=Inputs!$B$103,SUM(Inputs!Q80:Q82)/1000,IF(Inputs!$B$101=Inputs!$B$104,Inputs!Q89/1000,0))) -> 32602.9 | Q19: =IF(Inputs!$B$101=Inputs!$B$102,SUM(Inputs!R73:R74)/1000,IF(Inputs!$B$101=Inputs!$B$103,SUM(Inputs!R80:R82)/1000,IF(Inputs!$B$101=Inputs!$B$104,Inputs!R89/1000,0))) -> 32602.9 | R19: =IF(Inputs!$B$101=Inputs!$B$102,SUM(Inputs!S73:S74)/1000,IF(Inputs!$B$101=Inputs!$B$103,SUM(Inputs!S80:S82)/1000,IF(Inputs!$B$101=Inputs!$B$104,Inputs!S89/1000,0))) -> 32602.9 | S19: =IF(Inputs!$B$101=Inputs!$B$102,SUM(Inputs!T73:T74)/1000,IF(Inputs!$B$101=Inputs!$B$103,SUM(Inputs!T80:T82)/1000,IF(Inputs!$B$101=Inputs!$B$104,Inputs!T89/1000,0))) -> 32602.9 | T19: =IF(Inputs!$B$101=Inputs!$B$102,SUM(Inputs!U73:U74)/1000,IF(Inputs!$B$101=Inputs!$B$103,SUM(Inputs!U80:U82)/1000,IF(Inputs!$B$101=Inputs!$B$104,Inputs!U89/1000,0))) -> 32602.9 | U19: =IF(Inputs!$B$101=Inputs!$B$102,SUM(Inputs!V73:V74)/1000,IF(Inputs!$B$101=Inputs!$B$103,SUM(Inputs!V80:V82)/1000,IF(Inputs!$B$101=Inputs!$B$104,Inputs!V89/1000,0))) -> 32602.9 | V19: =IF(Inputs!$B$101=Inputs!$B$102,SUM(Inputs!W73:W74)/1000,IF(Inputs!$B$101=Inputs!$B$103,SUM(Inputs!W80:W82)/1000,IF(Inputs!$B$101=Inputs!$B$104,Inputs!W89/1000,0))) -> 18742.9 | W19: =IF(Inputs!$B$101=Inputs!$B$102,SUM(Inputs!X73:X74)/1000,IF(Inputs!$B$101=Inputs!$B$103,SUM(Inputs!X80:X82)/1000,IF(Inputs!$B$101=Inputs!$B$104,Inputs!X89/1000,0))) -> 18742.9 | X19: =IF(Inputs!$B$101=Inputs!$B$102,SUM(Inputs!Y73:Y74)/1000,IF(Inputs!$B$101=Inputs!$B$103,SUM(Inputs!Y80:Y82)/1000,IF(Inputs!$B$101=Inputs!$B$104,Inputs!Y89/1000,0))) -> 18742.9 | Y19: =IF(Inputs!$B$101=Inputs!$B$102,SUM(Inputs!Z73:Z74)/1000,IF(Inputs!$B$101=Inputs!$B$103,SUM(Inputs!Z80:Z82)/1000,IF(Inputs!$B$101=Inputs!$B$104,Inputs!Z89/1000,0))) -> 18742.9 | Z19: =IF(Inputs!$B$101=Inputs!$B$102,SUM(Inputs!AA73:AA74)/1000,IF(Inputs!$B$101=Inputs!$B$103,SUM(Inputs!AA80:AA82)/1000,IF(Inputs!$B$101=Inputs!$B$104,Inputs!AA89/1000,0))) -> 18742.9 | AA19: =IF(Inputs!$B$101=Inputs!$B$102,SUM(Inputs!AB73:AB74)/1000,IF(Inputs!$B$101=Inputs!$B$103,SUM(Inputs!AB80:AB82)/1000,IF(Inputs!$B$101=Inputs!$B$104,Inputs!AB89/1000,0))) -> 18742.9 | AB19: =IF(Inputs!$B$101=Inputs!$B$102,SUM(Inputs!AC73:AC74)/1000,IF(Inputs!$B$101=Inputs!$B$103,SUM(Inputs!AC80:AC82)/1000,IF(Inputs!$B$101=Inputs!$B$104,Inputs!AC89/1000,0))) -> 18742.9 | AC19: =IF(Inputs!$B$101=Inputs!$B$102,SUM(Inputs!AD73:AD74)/1000,IF(Inputs!$B$101=Inputs!$B$103,SUM(Inputs!AD80:AD82)/1000,IF(Inputs!$B$101=Inputs!$B$104,Inputs!AD89/1000,0))) -> 18742.9 | AD19: =IF(Inputs!$B$101=Inputs!$B$102,SUM(Inputs!AE73:AE74)/1000,IF(Inputs!$B$101=Inputs!$B$103,SUM(Inputs!AE80:AE82)/1000,IF(Inputs!$B$101=Inputs!$B$104,Inputs!AE89/1000,0))) -> 18742.9 | AE19: =IF(Inputs!$B$101=Inputs!$B$102,SUM(Inputs!AF73:AF74)/1000,IF(Inputs!$B$101=Inputs!$B$103,SUM(Inputs!AF80:AF82)/1000,IF(Inputs!$B$101=Inputs!$B$104,Inputs!AF89/1000,0))) -> 18742.9 | AF19: =IF(Inputs!$B$101=Inputs!$B$102,SUM(Inputs!AG73:AG74)/1000,IF(Inputs!$B$101=Inputs!$B$103,SUM(Inputs!AG80:AG82)/1000,IF(Inputs!$B$101=Inputs!$B$104,Inputs!AG89/1000,0))) -> 18742.9 | AG19: =IF(Inputs!$B$101=Inputs!$B$102,SUM(Inputs!AH73:AH74)/1000,IF(Inputs!$B$101=Inputs!$B$103,SUM(Inputs!AH80:AH82)/1000,IF(Inputs!$B$101=Inputs!$B$104,Inputs!AH89/1000,0))) -> 18742.9 | AH19: =IF(Inputs!$B$101=Inputs!$B$102,SUM(Inputs!AI73:AI74)/1000,IF(Inputs!$B$101=Inputs!$B$103,SUM(Inputs!AI80:AI82)/1000,IF(Inputs!$B$101=Inputs!$B$104,Inputs!AI89/1000,0))) -> 18742.9 | AI19: =IF(Inputs!$B$101=Inputs!$B$102,SUM(Inputs!AJ73:AJ74)/1000,IF(Inputs!$B$101=Inputs!$B$103,SUM(Inputs!AJ80:AJ82)/1000,IF(Inputs!$B$101=Inputs!$B$104,Inputs!AJ89/1000,0))) -> 18742.9 | AJ19: =IF(Inputs!$B$101=Inputs!$B$102,SUM(Inputs!AK73:AK74)/1000,IF(Inputs!$B$101=Inputs!$B$103,SUM(Inputs!AK80:AK82)/1000,IF(Inputs!$B$101=Inputs!$B$104,Inputs!AK89/1000,0))) -> 18742.9 | AK19: =IF(Inputs!$B$101=Inputs!$B$102,SUM(Inputs!AL73:AL74)/1000,IF(Inputs!$B$101=Inputs!$B$103,SUM(Inputs!AL80:AL82)/1000,IF(Inputs!$B$101=Inputs!$B$104,Inputs!AL89/1000,0))) -> 18742.9 | AL19: =IF(Inputs!$B$101=Inputs!$B$102,SUM(Inputs!AM73:AM74)/1000,IF(Inputs!$B$101=Inputs!$B$103,SUM(Inputs!AM80:AM82)/1000,IF(Inputs!$B$101=Inputs!$B$104,Inputs!AM89/1000,0))) -> 18742.9 | AM19: =IF(Inputs!$B$101=Inputs!$B$102,SUM(Inputs!AN73:AN74)/1000,IF(Inputs!$B$101=Inputs!$B$103,SUM(Inputs!AN80:AN82)/1000,IF(Inputs!$B$101=Inputs!$B$104,Inputs!AN89/1000,0))) -> 18742.9 | AN19: =IF(Inputs!$B$101=Inputs!$B$102,SUM(Inputs!AO73:AO74)/1000,IF(Inputs!$B$101=Inputs!$B$103,SUM(Inputs!AO80:AO82)/1000,IF(Inputs!$B$101=Inputs!$B$104,Inputs!AO89/1000,0))) -> 18742.9 | AO19: =IF(Inputs!$B$101=Inputs!$B$102,SUM(Inputs!AP73:AP74)/1000,IF(Inputs!$B$101=Inputs!$B$103,SUM(Inputs!AP80:AP82)/1000,IF(Inputs!$B$101=Inputs!$B$104,Inputs!AP89/1000,0))) -> 18742.9 | AP19: =IF(Inputs!$B$101=Inputs!$B$102,SUM(Inputs!AQ73:AQ74)/1000,IF(Inputs!$B$101=Inputs!$B$103,SUM(Inputs!AQ80:AQ82)/1000,IF(Inputs!$B$101=Inputs!$B$104,Inputs!AQ89/1000,0))) -> 18742.9 | AQ19: =IF(Inputs!$B$101=Inputs!$B$102,SUM(Inputs!AR73:AR74)/1000,IF(Inputs!$B$101=Inputs!$B$103,SUM(Inputs!AR80:AR82)/1000,IF(Inputs!$B$101=Inputs!$B$104,Inputs!AR89/1000,0))) -> 18742.9
A20: £/therm | D20: =D21/Inputs!D1*Inputs!D2 -> 0.3226153439
A21: P Domestic (P1) | D21: 0.3207360312 | E21: =D21 -> 0.3207360312 | F21: =E21 -> 0.3207360312 | G21: 0.3207360312 | H21: 0.3207360312 | I21: 0.3207360312 | J21: 0.3207360312 | K21: 0.3207360312 | L21: 0.3207360312 | M21: 0.3207360312 | N21: 0.3207360312 | O21: 0.3207360312 | P21: 0.3207360312 | Q21: 0.3207360312 | R21: 0.3207360312 | S21: 0.3207360312 | T21: 0.3207360312 | U21: 0.3207360312 | V21: 0.3207360312 | W21: 0.3207360312 | X21: 0.3207360312 | Y21: 0.3207360312 | Z21: 0.3207360312 | AA21: 0.3207360312 | AB21: 0.3207360312 | AC21: 0.3207360312 | AD21: 0.3207360312 | AE21: 0.3207360312 | AF21: 0.3207360312 | AG21: 0.3207360312 | AH21: 0.3207360312 | AI21: 0.3207360312 | AJ21: 0.3207360312 | AK21: 0.3207360312 | AL21: 0.3207360312 | AM21: 0.3207360312 | AN21: 0.3207360312 | AO21: 0.3207360312 | AP21: 0.3207360312 | AQ21: 0.3207360312
A22: P Tariff (P2 + P3 + P4) | C22: 0.9798007127 | D22: =$D$21*C22 -> 0.314257392 | E22: =D22 -> 0.314257392 | F22: 0.314257392 | G22: 0.314257392 | H22: 0.314257392 | I22: 0.314257392 | J22: 0.314257392 | K22: 0.314257392 | L22: 0.314257392 | M22: 0.314257392 | N22: 0.314257392 | O22: 0.314257392 | P22: 0.314257392 | Q22: 0.314257392 | R22: 0.314257392 | S22: 0.314257392 | T22: 0.314257392 | U22: 0.314257392 | V22: 0.314257392 | W22: 0.314257392 | X22: 0.314257392 | Y22: 0.314257392 | Z22: 0.314257392 | AA22: 0.314257392 | AB22: 0.314257392 | AC22: 0.314257392 | AD22: 0.314257392 | AE22: 0.314257392 | AF22: 0.314257392 | AG22: 0.314257392 | AH22: 0.314257392 | AI22: 0.314257392 | AJ22: 0.314257392 | AK22: 0.314257392 | AL22: 0.314257392 | AM22: 0.314257392 | AN22: 0.314257392 | AO22: 0.314257392 | AP22: 0.314257392 | AQ22: 0.314257392
A23: P Contract (P5 + P6) | C23: 0.3833602572 | D23: =$D$21*C23 -> 0.1229574474 | E23: 0.1229574474 | F23: 0.1229574474 | G23: 0.1229574474 | H23: 0.1229574474 | I23: 0.1229574474 | J23: 0.1229574474 | K23: 0.1229574474 | L23: 0.1229574474 | M23: 0.1229574474 | N23: 0.1229574474 | O23: 0.1229574474 | P23: 0.1229574474 | Q23: 0.1229574474 | R23: 0.1229574474 | S23: 0.1229574474 | T23: 0.1229574474 | U23: 0.1229574474 | V23: 0.1229574474 | W23: 0.1229574474 | X23: 0.1229574474 | Y23: 0.1229574474 | Z23: 0.1229574474 | AA23: 0.1229574474 | AB23: 0.1229574474 | AC23: 0.1229574474 | AD23: 0.1229574474 | AE23: 0.1229574474 | AF23: 0.1229574474 | AG23: 0.1229574474 | AH23: 0.1229574474 | AI23: 0.1229574474 | AJ23: 0.1229574474 | AK23: 0.1229574474 | AL23: 0.1229574474 | AM23: 0.1229574474 | AN23: 0.1229574474 | AO23: 0.1229574474 | AP23: 0.1229574474 | AQ23: 0.1229574474
A25: Conditions 4.6 and 4.6.6 Establishing Best Available Revenue Per Unit and Calculating Cashflow
A27: Allowed Revenue | D27: =SUMPRODUCT(D21:D23,D17:D19) -> 3235.846818 | E27: 4541.376471 | F27: 4739.780302 | G27: 4943.195015 | H27: 5140.389109 | I27: 5320.35362 | J27: 5510.097849 | K27: 5702.1922 | L27: 5896.881214 | M27: 6094.626215 | N27: 6303.588227 | O27: 6499.946071 | P27: 6696.313864 | Q27: 6892.691857 | R27: 7089.080218 | S27: 7285.479119 | T27: 7481.888737 | U27: 7678.309249 | V27: 6169.873242 | W27: 6365.627456 | X27: 6529.010424 | Y27: 6692.393392 | Z27: 6855.77636 | AA27: 7019.159328 | AB27: 7182.542296 | AC27: 7345.925264 | AD27: 7509.308232 | AE27: 7672.6912 | AF27: 7836.074168 | AG27: 7999.457136 | AH27: 8063.004733 | AI27: 8113.474049 | AJ27: 8162.4034 | AK27: 8211.332751 | AL27: 8260.262102 | AM27: 8309.191453 | AN27: 8358.120804 | AO27: 8358.120804 | AP27: 8358.120804 | AQ27: 8358.120804
A28: Capex | D28: =-D14 -> -11401.71844 | E28: -9629.684107 | F28: -5912.93236 | G28: -5857.823358 | H28: -5838.588926 | I28: -4137.573328 | J28: -3243.477761 | K28: -3217.291884 | L28: -2781.605937 | M28: -2750.389127 | N28: -2874.507911 | O28: -1927.876689 | P28: -1923.137137 | Q28: -1914.612991 | R28: -1909.873439 | S28: -1909.488778 | T28: -1903.904432 | U28: -1893.081198 | V28: -1890.704666 | W28: =-W14 -> -2222.172463 | X28: -2649.879611 | Y28: -2535.643244 | Z28: -2176.679482 | AA28: -2126.628959 | AB28: -2137.090067 | AC28: -2289.199851 | AD28: -2039.793287 | AE28: -2018.428751 | AF28: -2018.428751 | AG28: -2018.428751 | AH28: -2018.428751 | AI28: -2018.428751 | AJ28: -2018.428751 | AK28: -2018.428751 | AL28: -2018.428751 | AM28: -2018.428751 | AN28: -2018.428751 | AO28: -2018.428751 | AP28: -2018.428751 | AQ28: -2018.428751
A29: Opex | D29: =-D15 -> -2129.200608 | E29: -1580.319757 | F29: -1387.190587 | G29: -1431.612075 | H29: -1494.512306 | I29: -1518.70591 | J29: -1544.593065 | K29: -1572.292322 | L29: -1601.930527 | M29: -1633.643406 | N29: -1667.576186 | O29: -1703.884262 | P29: -1742.733902 | Q29: -1784.303017 | R29: -1828.781971 | S29: -1876.374451 | T29: -1927.298404 | U29: -1981.787035 | V29: -2040.089869 | W29: =-W15 -> -2102.473902 | X29: -2169.224818 | Y29: -2240.648297 | Z29: -2317.07142 | AA29: -2398.844162 | AB29: -2486.340995 | AC29: -2579.962607 | AD29: -2680.137732 | AE29: -2787.325115 | AF29: -2902.015615 | AG29: -3024.73445 | AH29: -3156.043604 | AI29: -3296.544398 | AJ29: -3446.880248 | AK29: -3607.739608 | AL29: -3779.859123 | AM29: -3964.027003 | AN29: -4161.086636 | AO29: -4371.940442 | AP29: -4597.554015 | AQ29: -4838.960539
A31: Cashflows | D31: =SUM(D27:D30) -> -10295.07223 | E31: -6668.627392 | F31: -2560.342645 | G31: -2346.240418 | H31: -2192.712124 | I31: -335.9256176 | J31: 722.0270219 | K31: 912.6079937 | L31: =SUM(L27:L30) -> 1513.34475 | M31: 1710.593683 | N31: 1761.50413 | O31: 2868.18512 | P31: 3030.442825 | Q31: 3193.775848 | R31: 3350.424808 | S31: 3499.61589 | T31: 3650.685901 | U31: =SUM(U27:U30) -> 3803.441016 | V31: 2239.078706 | W31: 2040.981091 | X31: 1709.905995 | Y31: 1916.101851 | Z31: 2362.025458 | AA31: 2493.686207 | AB31: 2559.111234 | AC31: 2476.762807 | AD31: 2789.377213 | AE31: 2866.937334 | AF31: 2915.629802 | AG31: 2956.293935 | AH31: 2888.532378 | AI31: 2798.500899 | AJ31: 2697.0944 | AK31: 2585.164391 | AL31: 2461.974228 | AM31: 2326.735698 | AN31: 2178.605417 | AO31: 1967.75161 | AP31: 1742.138037 | AQ31: =SUM(AQ27:AQ30) -> 1500.731514
A35: Discounted Cashflow | C35: =SUM(D35:AQ35) -> 3603.476111 | D35: =D31*D7 -> -9994.556941 | E35: -6096.015798 | F35: -2203.855952 | G35: -1901.661046 | H35: -1673.469107 | I35: -242.1864892 | J35: 493.4098089 | K35: 591.1342685 | L35: 929.1531057 | M35: 995.5058409 | N35: 971.690943 | O35: 1499.6821 | P35: 1501.916071 | Q35: 1500.346407 | R35: 1491.882179 | S35: 1477.075078 | T35: 1460.508873 | U35: 1442.294532 | V35: 804.811497 | W35: 695.3626079 | X35: 552.1945649 | Y35: 586.5243183 | Z35: 685.3296913 | AA35: 685.8107952 | AB35: 667.1127137 | AC35: 611.9867393 | AD35: 653.2995871 | AE35: 636.4596497 | AF35: 613.5254693 | AG35: 589.6514466 | AH35: 546.1004524 | AI35: 501.49694 | AJ35: 458.1276713 | AK35: 416.2230072 | AL35: 375.7240198 | AM35: 336.5736025 | AN35: 298.716435 | AO35: 255.7398201 | AP35: 214.6140658 | AQ35: 175.2371422
A39: Closing DAV | D39: =DAV!E34/1000 -> 17664.46589 | E39: =DAV!F34/1000 -> 26382.96559 | F39: =DAV!G34/1000 -> 31146.9097 | G39: =DAV!H34/1000 -> 35621.30812 | H39: =DAV!I34/1000 -> 39842.55376 | I39: =DAV!J34/1000 -> 42293.4701 | J39: =DAV!K34/1000 -> 43813.0487 | K39: =DAV!L34/1000 -> 45270.14751 | L39: =DAV!M34/1000 -> 46266.96224 | M39: =DAV!N34/1000 -> 47208.87105 | N39: =DAV!O34/1000 -> 48187.79849 | O39: =DAV!P34/1000 -> 48157.38897 | P39: =DAV!Q34/1000 -> 48059.71162 | Q39: =DAV!R34/1000 -> 47891.36992 | R39: =DAV!S34/1000 -> 47656.32593 | S39: =DAV!T34/1000 -> 47427.27277 | T39: =DAV!U34/1000 -> 47192.238 | U39: =DAV!V34/1000 -> 46923.25624 | V39: =DAV!W34/1000 -> 46626.30551 | W39: =DAV!X34/1000 -> 46613.68619 | X39: =DAV!Y34/1000 -> 46955.03109 | Y39: =DAV!Z34/1000 -> 47099.22694 | Z39: =DAV!AA34/1000 -> 46824.17301 | AA39: =DAV!AB34/1000 -> 46439.8526 | AB39: =DAV!AC34/1000 -> 46005.13212 | AC39: =DAV!AD34/1000 -> 45652.32352 | AD39: =DAV!AE34/1000 -> 44995.32216 | AE39: =DAV!AF34/1000 -> 44263.41374 | AF39: =DAV!AG34/1000 -> 43477.68286 | AG39: =DAV!AH34/1000 -> 42638.03515 | AH39: =DAV!AI34/1000 -> 41744.4706 | AI39: =DAV!AJ34/1000 -> 40796.86233 | AJ39: =DAV!AK34/1000 -> 39794.86143 | AK39: =DAV!AL34/1000 -> 38738.44248 | AL39: =DAV!AM34/1000 -> 37649.73751 | AM39: =DAV!AN34/1000 -> 36571.82638 | AN39: =DAV!AO34/1000 -> 35497.49403 | AO39: =DAV!AP34/1000 -> 34402.96894 | AP39: =DAV!AQ34/1000 -> 33285.31509 | AQ39: =DAV!AR34/1000 -> 32145.25554
A43: TRV | C43: =-C59 -> -7256.54794
A44: Discounted DAV2045 | C44: =AQ39*AQ8 -> 3653.071829
A45: Backsolve to 0 by running Macro Ctrl + q | C45: =SUM(C35:C44) -> -2.819433575e-11
A49: Condition 4.6.8 Calculating TRV
B51: Total Regulatory Value (TRV) | H51: =H61+H63 -> 39346.40167 | M51: =M61+M63 -> 46538.81265 | R51: =R61+R63 -> 44751.23234 | W51: =W61+W63 -> 40754.72488 | AB51: =AB61+AB63 -> 40742.46461 | AG51: =AG61+AG63 -> 37253.74788 | AL51: =AL61+AL63 -> 33219.36845 | AQ51: =AQ61+AQ63 -> 32145.25554
A55: Condition 4.6.9 Calculating Profile Adjustment
B57: Adjusted Cashflows | D57: =D31*(1+$H$6*$B$7)*(1+$H$6)^($H$12-D12) -> -13501.62776 | E57: =E31*(1+$H$6*$B$7)*(1+$H$6)^($H$12-E12) -> -8235.096023 | F57: =F31*(1+$H$6*$B$7)*(1+$H$6)^($H$12-F12) -> -2977.18477 | G57: =G31*(1+$H$6*$B$7)*(1+$H$6)^($H$12-G12) -> -2568.950251 | H57: =H31*(1+$H$6*$B$7)*(1+$H$6)^($H$12-H12) -> -2260.6862 | I57: =I31*(1+$M$6*$B$7)*(1+$M$6)^($M$12-I12) -> -427.5971416 | J57: =J31*(1+$M$6*$B$7)*(1+$M$6)^($M$12-J12) -> 871.1494381 | K57: =K31*(1+$M$6*$B$7)*(1+$M$6)^($M$12-K12) -> 1043.688789 | L57: =L31*(1+$M$6*$B$7)*(1+$M$6)^($M$12-L12) -> 1640.484626 | M57: =M31*(1+$M$6*$B$7)*(1+$M$6)^($M$12-M12) -> 1757.635009 | N57: =N31*(1+$R$6*$B$7)*(1+$R$6)^($R$12-N12) -> 2242.205094 | O57: =O31*(1+$R$6*$B$7)*(1+$R$6)^($R$12-O12) -> 3460.560034 | P57: =P31*(1+$R$6*$B$7)*(1+$R$6)^($R$12-P12) -> 3465.714987 | Q57: =Q31*(1+$R$6*$B$7)*(1+$R$6)^($R$12-Q12) -> 3462.092941 | R57: =R31*(1+$R$6*$B$7)*(1+$R$6)^($R$12-R12) -> 3442.56149 | S57: =S31*(1+$W$6*$B$7)*(1+$W$6)^($W$12-S12) -> 4454.63422 | T57: =T31*(1+$W$6*$B$7)*(1+$W$6)^($W$12-T12) -> 4404.673059 | U57: =U31*(1+$W$6*$B$7)*(1+$W$6)^($W$12-U12) -> 4349.741373 | V57: =V31*(1+$W$6*$B$7)*(1+$W$6)^($W$12-V12) -> 2427.189306 | W57: =W31*(1+$W$6*$B$7)*(1+$W$6)^($W$12-W12) -> 2097.108071 | X57: =X31*(1+$AB$6*$B$7)*(1+$AB$6)^($AB$12-X12) -> 2176.526224 | Y57: =Y31*(1+$AB$6*$B$7)*(1+$AB$6)^($AB$12-Y12) -> 2311.840139 | Z57: =Z31*(1+$AB$6*$B$7)*(1+$AB$6)^($AB$12-Z12) -> 2701.290704 | AA57: =AA31*(1+$AB$6*$B$7)*(1+$AB$6)^($AB$12-AA12) -> 2703.18702 | AB57: =AB31*(1+$AB$6*$B$7)*(1+$AB$6)^($AB$12-AB12) -> 2629.486793 | AC57: =AC31*(1+$AG$6*$B$7)*(1+$AG$6)^($AG$12-AC12) -> 3152.652376 | AD57: =AD31*(1+$AG$6*$B$7)*(1+$AG$6)^($AG$12-AD12) -> 3365.475693 | AE57: =AE31*(1+$AG$6*$B$7)*(1+$AG$6)^($AG$12-AE12) -> 3278.724682 | AF57: =AF31*(1+$AG$6*$B$7)*(1+$AG$6)^($AG$12-AF12) -> 3160.579151 | AG57: =AG31*(1+$AG$6*$B$7)*(1+$AG$6)^($AG$12-AG12) -> 3037.592018 | AH57: =AH31*(1+$AL$6*$B$7)*(1+$AL$6)^($AL$12-AH12) -> 3676.790704 | AI57: =AI31*(1+$AL$6*$B$7)*(1+$AL$6)^($AL$12-AI12) -> 3376.483721 | AJ57: =AJ31*(1+$AL$6*$B$7)*(1+$AL$6)^($AL$12-AJ12) -> 3084.486665 | AK57: =AK31*(1+$AL$6*$B$7)*(1+$AL$6)^($AL$12-AK12) -> 2802.350515 | AL57: =AL31*(1+$AL$6*$B$7)*(1+$AL$6)^($AL$12-AL12) -> 2529.678519 | AM57: =AM31*(1+$AQ$6*$B$7)*(1+$AQ$6)^($AQ$12-AM12) -> 2961.68402 | AN57: =AN31*(1+$AQ$6*$B$7)*(1+$AQ$6)^($AQ$12-AN12) -> 2628.559357 | AO57: =AO31*(1+$AQ$6*$B$7)*(1+$AQ$6)^($AQ$12-AO12) -> 2250.386046 | AP57: =AP31*(1+$AQ$6*$B$7)*(1+$AQ$6)^($AQ$12-AP12) -> 1888.499409 | AQ57: =AQ31*(1+$AQ$6*$B$7)*(1+$AQ$6)^($AQ$12-AQ12) -> 1542.00163
B59: Closing TRV (Incl Return) | C59: =Inputs!D97/1000 -> 7256.54794 | H59: =-$C$59*(1+H6)^(H12-C12) -> -9802.856664 | M59: =-H51*(1+M6)^(M12-H12) -> -51424.17337 | R59: =-M51*(1+R6)^(R12-M12) -> -60824.36689 | W59: =-R51*(1+W6)^(W12-R12) -> -58488.0709 | AB59: =-W51*(1+AB6)^(AB12-W12) -> -53264.79549 | AG59: =-AB51*(1+AG6)^(AG12-AB12) -> -53248.7718 | AL59: =-AG51*(1+AL6)^(AL12-AG12) -> -48689.15857 | AQ59: =-AL51*(1+AQ6)^(AQ12-AL12) -> -43416.386
B61: DAV | H61: =H39 -> 39842.55376 | M61: =M39 -> 47208.87105 | R61: =R39 -> 47656.32593 | W61: =W39 -> 46613.68619 | AB61: =AB39 -> 46005.13212 | AG61: =AG39 -> 42638.03515 | AL61: =AL39 -> 37649.73751 | AQ61: =AQ39 -> 32145.25554
B63: Calculated PA | H63: =-SUM(D57:H62) -> -496.1520969 | M63: =-SUM(I57:M62) -> -670.0583972 | R63: =-SUM(N57:R62) -> -2905.093594 | W63: =-SUM(S57:W62) -> -5858.961313 | AB63: =-SUM(X57:AB62) -> -5262.667514 | AG63: =-SUM(AC57:AG62) -> -5384.287264 | AL63: =-SUM(AH57:AL62) -> -4430.369061 | AQ63: =-SUM(AM57:AQ62) -> 1.818989404e-10
B64: Check | H64: =SUM(D57:H63) -> 0 | M64: =SUM(I57:M63) -> 0 | R64: =SUM(N57:R63) -> 0 | W64: =SUM(S57:W63) -> 0 | AB64: =SUM(X57:AB63) -> 0 | AG64: =SUM(AC57:AG63) -> 0 | AL64: =SUM(AH57:AL63) -> 0 | AQ64: =SUM(AM57:AQ63) -> 0
